Body Name,Transaction Number,Account Code Description,Expenses Type,Service Code,Service Area Categorisation,Supplier Name,Date,Amount
Bath & North East Somerset Council,10718754,3F7,External Fees,P02,"Early Years, Children & Youth",MITCHELL PARTNERS T/A RHINO FIRE CONTROL,23/09/2013,873.35
Bath & North East Somerset Council,10717906,LM3,Residential Care,P03,Wellbeing,ROYAL MENCAP SOCIETY,27/09/2013,23672.66
Bath & North East Somerset Council,10717350,LV2,Contributions to Organisations,P04,Leader,CANAL & RIVER TRUST,29/10/2013,1500
Bath & North East Somerset Council,80274250,LA7,Purchases for Resale,P06,Sustainable Development,THE MASTER HERBALIST LIMITED,01/11/2013,1.49
Bath & North East Somerset Council,80274232,LA7,Purchases for Resale,P06,Sustainable Development,ROMAN VISION LTD,01/11/2013,15
Bath & North East Somerset Council,10713575,LK1,Fees,P05,Neighbourhoods,UNIVERSITY OF BATH,01/11/2013,18
Bath & North East Somerset Council,80274393,LM8,Home Care,P03,Wellbeing,ACTIVE ASSISTANCE,01/11/2013,1200
Bath & North East Somerset Council,80274392,LM8,Home Care,P03,Wellbeing,ACTIVE ASSISTANCE,01/11/2013,1300
Bath & North East Somerset Council,80274189,LA7,Purchases for Resale,P06,Sustainable Development,THE BALAGAN GROUP LTD,01/11/2013,26.8
Bath & North East Somerset Council,10717526,DB1,Agency Staff,P01,Transport,CT COACHES,01/11/2013,40
Bath & North East Somerset Council,80274204,LA7,Purchases for Resale,P06,Sustainable Development,MIO JEWELLERY LTD (T/A RODGERS & RODGERS),01/11/2013,69
Bath & North East Somerset Council,80274287,LM9,Day Care,P03,Wellbeing,CARE FUTURES,01/11/2013,85.5
Bath & North East Somerset Council,80274287,LM9,Day Care,P03,Wellbeing,CARE FUTURES,01/11/2013,171
Bath & North East Somerset Council,80274287,LM9,Day Care,P03,Wellbeing,CARE FUTURES,01/11/2013,171
Bath & North East Somerset Council,80274287,LM9,Day Care,P03,Wellbeing,CARE FUTURES,01/11/2013,171
Bath & North East Somerset Council,80274287,LM9,Day Care,P03,Wellbeing,CARE FUTURES,01/11/2013,171
Bath & North East Somerset Council,80274286,LM9,Day Care,P03,Wellbeing,CARE FUTURES,01/11/2013,186
Bath & North East Somerset Council,80274288,LM9,Day Care,P03,Wellbeing,CARE FUTURES,01/11/2013,261
Bath & North East Somerset Council,80274286,LM9,Day Care,P03,Wellbeing,CARE FUTURES,01/11/2013,310
Bath & North East Somerset Council,80274286,LM9,Day Care,P03,Wellbeing,CARE FUTURES,01/11/2013,310
Bath & North East Somerset Council,80274286,LM9,Day Care,P03,Wellbeing,CARE FUTURES,01/11/2013,310
Bath & North East Somerset Council,80274286,LM9,Day Care,P03,Wellbeing,CARE FUTURES,01/11/2013,310
Bath & North East Somerset Council,80274288,LM9,Day Care,P03,Wellbeing,CARE FUTURES,01/11/2013,435
Bath & North East Somerset Council,80274288,LM9,Day Care,P03,Wellbeing,CARE FUTURES,01/11/2013,435
Bath & North East Somerset Council,80274288,LM9,Day Care,P03,Wellbeing,CARE FUTURES,01/11/2013,435
Bath & North East Somerset Council,80274288,LM9,Day Care,P03,Wellbeing,CARE FUTURES,01/11/2013,435
Bath & North East Somerset Council,80274205,LA7,Purchases for Resale,P06,Sustainable Development,ST JUSTIN CORNWALL LIMITED,01/11/2013,167.58
Bath & North East Somerset Council,10717526,LJ4,Contracts,P01,Transport,CT COACHES,01/11/2013,175.2
Bath & North East Somerset Council,80274390,LM8,Home Care,P03,Wellbeing,COMPLETE CARE HOLDINGS LIMITED,01/11/2013,1827.11
Bath & North East Somerset Council,80274390,LM8,Home Care,P03,Wellbeing,COMPLETE CARE HOLDINGS LIMITED,01/11/2013,5418.48
Bath & North East Somerset Council,80274390,LM8,Home Care,P03,Wellbeing,COMPLETE CARE HOLDINGS LIMITED,01/11/2013,5418.48
Bath & North East Somerset Council,80274390,LM8,Home Care,P03,Wellbeing,COMPLETE CARE HOLDINGS LIMITED,01/11/2013,5418.48
Bath & North East Somerset Council,80274390,LM8,Home Care,P03,Wellbeing,COMPLETE CARE HOLDINGS LIMITED,01/11/2013,5418.48
Bath & North East Somerset Council,80274205,LA7,Purchases for Resale,P06,Sustainable Development,ST JUSTIN CORNWALL LIMITED,01/11/2013,442.32
Bath & North East Somerset Council,80274238,LA7,Purchases for Resale,P06,Sustainable Development,YARTO EUROPE LTD,01/11/2013,470.4
Bath & North East Somerset Council,80274333,LL3,Supported Living,P03,Wellbeing,HOME FARM TRUST,01/11/2013,699.88
Bath & North East Somerset Council,80274333,LL3,Supported Living,P03,Wellbeing,HOME FARM TRUST,01/11/2013,699.88
Bath & North East Somerset Council,80274333,LL3,Supported Living,P03,Wellbeing,HOME FARM TRUST,01/11/2013,699.88
Bath & North East Somerset Council,80274333,LL3,Supported Living,P03,Wellbeing,HOME FARM TRUST,01/11/2013,699.88
Bath & North East Somerset Council,80274335,LL3,Supported Living,P03,Wellbeing,HOME FARM TRUST,01/11/2013,1204.59
Bath & North East Somerset Council,80274335,LL3,Supported Living,P03,Wellbeing,HOME FARM TRUST,01/11/2013,1204.59
Bath & North East Somerset Council,80274335,LL3,Supported Living,P03,Wellbeing,HOME FARM TRUST,01/11/2013,1204.59
Bath & North East Somerset Council,80274335,LL3,Supported Living,P03,Wellbeing,HOME FARM TRUST,01/11/2013,1204.59
Bath & North East Somerset Council,80274336,LL3,Supported Living,P03,Wellbeing,HOME FARM TRUST,01/11/2013,1632.89
Bath & North East Somerset Council,80274336,LL3,Supported Living,P03,Wellbeing,HOME FARM TRUST,01/11/2013,1632.89
Bath & North East Somerset Council,80274336,LL3,Supported Living,P03,Wellbeing,HOME FARM TRUST,01/11/2013,1632.89
Bath & North East Somerset Council,80274336,LL3,Supported Living,P03,Wellbeing,HOME FARM TRUST,01/11/2013,1632.89
Bath & North East Somerset Council,80274357,LM8,Home Care,P03,Wellbeing,I & S DUTTON LTD T/A CAREWATCH,01/11/2013,36
Bath & North East Somerset Council,80274399,LM8,Home Care,P03,Wellbeing,I & S DUTTON LTD T/A CAREWATCH,01/11/2013,72
Bath & North East Somerset Council,80274399,LM8,Home Care,P03,Wellbeing,I & S DUTTON LTD T/A CAREWATCH,01/11/2013,72
Bath & North East Somerset Council,80274399,LM8,Home Care,P03,Wellbeing,I & S DUTTON LTD T/A CAREWATCH,01/11/2013,72
Bath & North East Somerset Council,80274399,LM8,Home Care,P03,Wellbeing,I & S DUTTON LTD T/A CAREWATCH,01/11/2013,72
Bath & North East Somerset Council,80274401,LM8,Home Care,P03,Wellbeing,I & S DUTTON LTD T/A CAREWATCH,01/11/2013,126
Bath & North East Somerset Council,80274401,LM8,Home Care,P03,Wellbeing,I & S DUTTON LTD T/A CAREWATCH,01/11/2013,126
Bath & North East Somerset Council,80274402,LM8,Home Care,P03,Wellbeing,I & S DUTTON LTD T/A CAREWATCH,01/11/2013,126
Bath & North East Somerset Council,80274402,LM8,Home Care,P03,Wellbeing,I & S DUTTON LTD T/A CAREWATCH,01/11/2013,126
Bath & North East Somerset Council,80274402,LM8,Home Care,P03,Wellbeing,I & S DUTTON LTD T/A CAREWATCH,01/11/2013,126
Bath & North East Somerset Council,80274399,LM8,Home Care,P03,Wellbeing,I & S DUTTON LTD T/A CAREWATCH,01/11/2013,144
Bath & North East Somerset Council,80274399,LM8,Home Care,P03,Wellbeing,I & S DUTTON LTD T/A CAREWATCH,01/11/2013,144
Bath & North East Somerset Council,80274399,LM8,Home Care,P03,Wellbeing,I & S DUTTON LTD T/A CAREWATCH,01/11/2013,144
Bath & North East Somerset Council,80274399,LM8,Home Care,P03,Wellbeing,I & S DUTTON LTD T/A CAREWATCH,01/11/2013,144
Bath & North East Somerset Council,80274402,LM8,Home Care,P03,Wellbeing,I & S DUTTON LTD T/A CAREWATCH,01/11/2013,252
Bath & North East Somerset Council,80274402,LM8,Home Care,P03,Wellbeing,I & S DUTTON LTD T/A CAREWATCH,01/11/2013,252
Bath & North East Somerset Council,80274402,LM8,Home Care,P03,Wellbeing,I & S DUTTON LTD T/A CAREWATCH,01/11/2013,252
Bath & North East Somerset Council,80274402,LM8,Home Care,P03,Wellbeing,I & S DUTTON LTD T/A CAREWATCH,01/11/2013,252
Bath & North East Somerset Council,80274400,LM8,Home Care,P03,Wellbeing,I & S DUTTON LTD T/A CAREWATCH,01/11/2013,504
Bath & North East Somerset Council,80274400,LM8,Home Care,P03,Wellbeing,I & S DUTTON LTD T/A CAREWATCH,01/11/2013,504
Bath & North East Somerset Council,80274400,LM8,Home Care,P03,Wellbeing,I & S DUTTON LTD T/A CAREWATCH,01/11/2013,504
Bath & North East Somerset Council,80274400,LM8,Home Care,P03,Wellbeing,I & S DUTTON LTD T/A CAREWATCH,01/11/2013,504
Bath & North East Somerset Council,80274401,LM8,Home Care,P03,Wellbeing,I & S DUTTON LTD T/A CAREWATCH,01/11/2013,504
Bath & North East Somerset Council,80274401,LM8,Home Care,P03,Wellbeing,I & S DUTTON LTD T/A CAREWATCH,01/11/2013,504
Bath & North East Somerset Council,80274401,LM8,Home Care,P03,Wellbeing,I & S DUTTON LTD T/A CAREWATCH,01/11/2013,504
Bath & North East Somerset Council,80274401,LM8,Home Care,P03,Wellbeing,I & S DUTTON LTD T/A CAREWATCH,01/11/2013,504
Bath & North East Somerset Council,80274388,LM8,Home Care,P03,Wellbeing,I & S DUTTON LTD T/A CAREWATCH,01/11/2013,648
Bath & North East Somerset Council,80274388,LM8,Home Care,P03,Wellbeing,I & S DUTTON LTD T/A CAREWATCH,01/11/2013,756
Bath & North East Somerset Council,80274357,LM8,Home Care,P03,Wellbeing,I & S DUTTON LTD T/A CAREWATCH,01/11/2013,810
Bath & North East Somerset Council,80274357,LM8,Home Care,P03,Wellbeing,I & S DUTTON LTD T/A CAREWATCH,01/11/2013,810
Bath & North East Somerset Council,80274357,LM8,Home Care,P03,Wellbeing,I & S DUTTON LTD T/A CAREWATCH,01/11/2013,810
Bath & North East Somerset Council,80274357,LM8,Home Care,P03,Wellbeing,I & S DUTTON LTD T/A CAREWATCH,01/11/2013,810
Bath & North East Somerset Council,80274366,LM8,Home Care,P03,Wellbeing,I & S DUTTON LTD T/A CAREWATCH,01/11/2013,980
Bath & North East Somerset Council,80274366,LM8,Home Care,P03,Wellbeing,I & S DUTTON LTD T/A CAREWATCH,01/11/2013,980
Bath & North East Somerset Council,80274366,LM8,Home Care,P03,Wellbeing,I & S DUTTON LTD T/A CAREWATCH,01/11/2013,980
Bath & North East Somerset Council,80274366,LM8,Home Care,P03,Wellbeing,I & S DUTTON LTD T/A CAREWATCH,01/11/2013,980
Bath & North East Somerset Council,80274174,LA7,Purchases for Resale,P06,Sustainable Development,CHRIS ANDREWS PUBLICATIONS LTD,01/11/2013,490
Bath & North East Somerset Council,10716786,3G1,Grants/Advances,P03,Wellbeing,H SEAMAN & SON,01/11/2013,4005
Bath & North East Somerset Council,80274301,LM8,Home Care,P03,Wellbeing,KUMARI HOMECARE SERVICE,01/11/2013,650.7
Bath & North East Somerset Council,80274301,LM8,Home Care,P03,Wellbeing,KUMARI HOMECARE SERVICE,01/11/2013,659.75
Bath & North East Somerset Council,80274409,PG1,Rent Allowances,P07,Community Resources,CURO,01/11/2013,24845.76
Bath & North East Somerset Council,10715388,3G1,Grants/Advances,P03,Wellbeing,H SEAMAN & SON,01/11/2013,6045.69
Bath & North East Somerset Council,80274407,PG1,Rent Allowances,P07,Community Resources,CURO,01/11/2013,95377.77
Bath & North East Somerset Council,80274178,LA7,Purchases for Resale,P06,Sustainable Development,THE HISTORY PRESS LTD,01/11/2013,548.91
Bath & North East Somerset Council,80274334,LL3,Supported Living,P03,Wellbeing,NATIONAL AUTISTIC SOCIETY,01/11/2013,25
Bath & North East Somerset Council,80274334,LL3,Supported Living,P03,Wellbeing,NATIONAL AUTISTIC SOCIETY,01/11/2013,25
Bath & North East Somerset Council,80274334,LL3,Supported Living,P03,Wellbeing,NATIONAL AUTISTIC SOCIETY,01/11/2013,25
Bath & North East Somerset Council,80274334,LL3,Supported Living,P03,Wellbeing,NATIONAL AUTISTIC SOCIETY,01/11/2013,25
Bath & North East Somerset Council,80274352,LL3,Supported Living,P03,Wellbeing,NATIONAL AUTISTIC SOCIETY,01/11/2013,25
Bath & North East Somerset Council,80274352,LL3,Supported Living,P03,Wellbeing,NATIONAL AUTISTIC SOCIETY,01/11/2013,25
Bath & North East Somerset Council,80274352,LL3,Supported Living,P03,Wellbeing,NATIONAL AUTISTIC SOCIETY,01/11/2013,25
Bath & North East Somerset Council,80274354,LL3,Supported Living,P03,Wellbeing,NATIONAL AUTISTIC SOCIETY,01/11/2013,25
Bath & North East Somerset Council,80274354,LL3,Supported Living,P03,Wellbeing,NATIONAL AUTISTIC SOCIETY,01/11/2013,25
Bath & North East Somerset Council,80274354,LL3,Supported Living,P03,Wellbeing,NATIONAL AUTISTIC SOCIETY,01/11/2013,25
Bath & North East Somerset Council,80274353,LL3,Supported Living,P03,Wellbeing,NATIONAL AUTISTIC SOCIETY,01/11/2013,130.75
Bath & North East Somerset Council,80274353,LL3,Supported Living,P03,Wellbeing,NATIONAL AUTISTIC SOCIETY,01/11/2013,130.75
Bath & North East Somerset Council,80274353,LL3,Supported Living,P03,Wellbeing,NATIONAL AUTISTIC SOCIETY,01/11/2013,130.75
Bath & North East Somerset Council,80274353,LL3,Supported Living,P03,Wellbeing,NATIONAL AUTISTIC SOCIETY,01/11/2013,130.75
Bath & North East Somerset Council,80274312,LL3,Supported Living,P03,Wellbeing,NATIONAL AUTISTIC SOCIETY,01/11/2013,387.76
Bath & North East Somerset Council,80274312,LL3,Supported Living,P03,Wellbeing,NATIONAL AUTISTIC SOCIETY,01/11/2013,387.76
Bath & North East Somerset Council,80274312,LL3,Supported Living,P03,Wellbeing,NATIONAL AUTISTIC SOCIETY,01/11/2013,387.76
Bath & North East Somerset Council,80274312,LL3,Supported Living,P03,Wellbeing,NATIONAL AUTISTIC SOCIETY,01/11/2013,387.76
Bath & North East Somerset Council,80274323,LL3,Supported Living,P03,Wellbeing,NATIONAL AUTISTIC SOCIETY,01/11/2013,387.76
Bath & North East Somerset Council,80274323,LL3,Supported Living,P03,Wellbeing,NATIONAL AUTISTIC SOCIETY,01/11/2013,387.76
Bath & North East Somerset Council,80274323,LL3,Supported Living,P03,Wellbeing,NATIONAL AUTISTIC SOCIETY,01/11/2013,387.76
Bath & North East Somerset Council,80274323,LL3,Supported Living,P03,Wellbeing,NATIONAL AUTISTIC SOCIETY,01/11/2013,387.76
Bath & North East Somerset Council,80274352,LL3,Supported Living,P03,Wellbeing,NATIONAL AUTISTIC SOCIETY,01/11/2013,784.21
Bath & North East Somerset Council,10717479,LJ4,Contracts,P01,Transport,MARIAN CALINOIU,01/11/2013,560
Bath & North East Somerset Council,80274352,LL3,Supported Living,P03,Wellbeing,NATIONAL AUTISTIC SOCIETY,01/11/2013,784.21
Bath & North East Somerset Council,80274352,LL3,Supported Living,P03,Wellbeing,NATIONAL AUTISTIC SOCIETY,01/11/2013,784.21
Bath & North East Somerset Council,80274352,LL3,Supported Living,P03,Wellbeing,NATIONAL AUTISTIC SOCIETY,01/11/2013,784.21
Bath & North East Somerset Council,80274354,LL3,Supported Living,P03,Wellbeing,NATIONAL AUTISTIC SOCIETY,01/11/2013,924.81
Bath & North East Somerset Council,80274354,LL3,Supported Living,P03,Wellbeing,NATIONAL AUTISTIC SOCIETY,01/11/2013,924.81
Bath & North East Somerset Council,80274354,LL3,Supported Living,P03,Wellbeing,NATIONAL AUTISTIC SOCIETY,01/11/2013,924.81
Bath & North East Somerset Council,80274354,LL3,Supported Living,P03,Wellbeing,NATIONAL AUTISTIC SOCIETY,01/11/2013,924.81
Bath & North East Somerset Council,80274334,LL3,Supported Living,P03,Wellbeing,NATIONAL AUTISTIC SOCIETY,01/11/2013,2209.79
Bath & North East Somerset Council,80274334,LL3,Supported Living,P03,Wellbeing,NATIONAL AUTISTIC SOCIETY,01/11/2013,2209.79
Bath & North East Somerset Council,80274334,LL3,Supported Living,P03,Wellbeing,NATIONAL AUTISTIC SOCIETY,01/11/2013,2209.79
Bath & North East Somerset Council,80274334,LL3,Supported Living,P03,Wellbeing,NATIONAL AUTISTIC SOCIETY,01/11/2013,2209.79
Bath & North East Somerset Council,80274398,LM8,Home Care,P03,Wellbeing,NORTH SOMERSET CROSSROADS LTD,01/11/2013,134.13
Bath & North East Somerset Council,80274398,LM8,Home Care,P03,Wellbeing,NORTH SOMERSET CROSSROADS LTD,01/11/2013,134.13
Bath & North East Somerset Council,80274398,LM8,Home Care,P03,Wellbeing,NORTH SOMERSET CROSSROADS LTD,01/11/2013,134.13
Bath & North East Somerset Council,80274398,LM8,Home Care,P03,Wellbeing,NORTH SOMERSET CROSSROADS LTD,01/11/2013,134.13
Bath & North East Somerset Council,80274370,LM8,Home Care,P03,Wellbeing,NURSING SOLUTIONS LIMITED,01/11/2013,96
Bath & North East Somerset Council,80274370,LM8,Home Care,P03,Wellbeing,NURSING SOLUTIONS LIMITED,01/11/2013,96
Bath & North East Somerset Council,80274370,LM8,Home Care,P03,Wellbeing,NURSING SOLUTIONS LIMITED,01/11/2013,116
Bath & North East Somerset Council,80274370,LM8,Home Care,P03,Wellbeing,NURSING SOLUTIONS LIMITED,01/11/2013,116
Bath & North East Somerset Council,80274370,LM8,Home Care,P03,Wellbeing,NURSING SOLUTIONS LIMITED,01/11/2013,1552
Bath & North East Somerset Council,80274370,LM8,Home Care,P03,Wellbeing,NURSING SOLUTIONS LIMITED,01/11/2013,1552
Bath & North East Somerset Council,80274258,LA7,Purchases for Resale,P06,Sustainable Development,UNIVERSAL MAIL UNITED KINGDOM LTD,01/11/2013,586.5
Bath & North East Somerset Council,10717500,LJ4,Contracts,P01,Transport,CENTURION TRAVEL LTD,01/11/2013,600
Bath & North East Somerset Council,80274232,LA7,Purchases for Resale,P06,Sustainable Development,ROMAN VISION LTD,01/11/2013,620
Bath & North East Somerset Council,80274169,LA7,Purchases for Resale,P06,Sustainable Development,ANCESTORS OF DOVER LTD,01/11/2013,630
Bath & North East Somerset Council,80274233,LA7,Purchases for Resale,P06,Sustainable Development,RB CERAMICS LTD,01/11/2013,632.5
Bath & North East Somerset Council,80274227,LA7,Purchases for Resale,P06,Sustainable Development,THE MASTER HERBALIST LIMITED,01/11/2013,636
Bath & North East Somerset Council,80274250,LA7,Purchases for Resale,P06,Sustainable Development,THE MASTER HERBALIST LIMITED,01/11/2013,637.71
Bath & North East Somerset Council,80274338,LL3,Supported Living,P03,Wellbeing,PRESTIGE NURSING HEALTHCARE,01/11/2013,4402
Bath & North East Somerset Council,80274261,LA7,Purchases for Resale,P06,Sustainable Development,YARTO EUROPE LTD,01/11/2013,648
Bath & North East Somerset Council,80274374,LM8,Home Care,P03,Wellbeing,ROBERT SAGE LTD T/A PRESTIGE NURSING PAYROLL,01/11/2013,497.18
Bath & North East Somerset Council,80274373,LM8,Home Care,P03,Wellbeing,ROBERT SAGE LTD T/A PRESTIGE NURSING PAYROLL,01/11/2013,524.18
Bath & North East Somerset Council,80274373,LM8,Home Care,P03,Wellbeing,ROBERT SAGE LTD T/A PRESTIGE NURSING PAYROLL,01/11/2013,543.62
Bath & North East Somerset Council,80274374,LM8,Home Care,P03,Wellbeing,ROBERT SAGE LTD T/A PRESTIGE NURSING PAYROLL,01/11/2013,543.62
Bath & North East Somerset Council,80274375,LM8,Home Care,P03,Wellbeing,ROBERT SAGE LTD T/A PRESTIGE NURSING PAYROLL,01/11/2013,1032.48
Bath & North East Somerset Council,80274319,LL3,Supported Living,P03,Wellbeing,ROYAL MENCAP SOCIETY,01/11/2013,86.14
Bath & North East Somerset Council,80274321,LL3,Supported Living,P03,Wellbeing,ROYAL MENCAP SOCIETY,01/11/2013,134
Bath & North East Somerset Council,80274321,LL3,Supported Living,P03,Wellbeing,ROYAL MENCAP SOCIETY,01/11/2013,134
Bath & North East Somerset Council,80274321,LL3,Supported Living,P03,Wellbeing,ROYAL MENCAP SOCIETY,01/11/2013,134
Bath & North East Somerset Council,80274321,LL3,Supported Living,P03,Wellbeing,ROYAL MENCAP SOCIETY,01/11/2013,134
Bath & North East Somerset Council,80274321,LL3,Supported Living,P03,Wellbeing,ROYAL MENCAP SOCIETY,01/11/2013,134
Bath & North East Somerset Council,80274319,LL3,Supported Living,P03,Wellbeing,ROYAL MENCAP SOCIETY,01/11/2013,201
Bath & North East Somerset Council,80274319,LL3,Supported Living,P03,Wellbeing,ROYAL MENCAP SOCIETY,01/11/2013,201
Bath & North East Somerset Council,80274319,LL3,Supported Living,P03,Wellbeing,ROYAL MENCAP SOCIETY,01/11/2013,201
Bath & North East Somerset Council,80274318,LL3,Supported Living,P03,Wellbeing,ROYAL MENCAP SOCIETY,01/11/2013,234.5
Bath & North East Somerset Council,80274318,LL3,Supported Living,P03,Wellbeing,ROYAL MENCAP SOCIETY,01/11/2013,234.5
Bath & North East Somerset Council,80274318,LL3,Supported Living,P03,Wellbeing,ROYAL MENCAP SOCIETY,01/11/2013,234.5
Bath & North East Somerset Council,80274318,LL3,Supported Living,P03,Wellbeing,ROYAL MENCAP SOCIETY,01/11/2013,234.5
Bath & North East Somerset Council,80274317,LL3,Supported Living,P03,Wellbeing,ROYAL MENCAP SOCIETY,01/11/2013,279.14
Bath & North East Somerset Council,80274317,LL3,Supported Living,P03,Wellbeing,ROYAL MENCAP SOCIETY,01/11/2013,279.14
Bath & North East Somerset Council,80274317,LL3,Supported Living,P03,Wellbeing,ROYAL MENCAP SOCIETY,01/11/2013,279.14
Bath & North East Somerset Council,80274317,LL3,Supported Living,P03,Wellbeing,ROYAL MENCAP SOCIETY,01/11/2013,279.14
Bath & North East Somerset Council,80274347,LM8,Home Care,P03,Wellbeing,RV CARE LTD,01/11/2013,37.25
Bath & North East Somerset Council,80274346,LM8,Home Care,P03,Wellbeing,RV CARE LTD,01/11/2013,107.64
Bath & North East Somerset Council,80274346,LM8,Home Care,P03,Wellbeing,RV CARE LTD,01/11/2013,136.62
Bath & North East Somerset Council,80274346,LM8,Home Care,P03,Wellbeing,RV CARE LTD,01/11/2013,239.09
Bath & North East Somerset Council,80274346,LM8,Home Care,P03,Wellbeing,RV CARE LTD,01/11/2013,239.09
Bath & North East Somerset Council,80274346,LM8,Home Care,P03,Wellbeing,RV CARE LTD,01/11/2013,239.09
Bath & North East Somerset Council,80274347,LM8,Home Care,P03,Wellbeing,RV CARE LTD,01/11/2013,480
Bath & North East Somerset Council,80274347,LM8,Home Care,P03,Wellbeing,RV CARE LTD,01/11/2013,480
Bath & North East Somerset Council,80274347,LM8,Home Care,P03,Wellbeing,RV CARE LTD,01/11/2013,480
Bath & North East Somerset Council,80274347,LM8,Home Care,P03,Wellbeing,RV CARE LTD,01/11/2013,480
Bath & North East Somerset Council,80274362,LM8,Home Care,P03,Wellbeing,SAFE & SOUND HOMECARE SERVICES,01/11/2013,4
Bath & North East Somerset Council,80274363,LM8,Home Care,P03,Wellbeing,SAFE & SOUND HOMECARE SERVICES,01/11/2013,22
Bath & North East Somerset Council,80274363,LM8,Home Care,P03,Wellbeing,SAFE & SOUND HOMECARE SERVICES,01/11/2013,33
Bath & North East Somerset Council,80274363,LM8,Home Care,P03,Wellbeing,SAFE & SOUND HOMECARE SERVICES,01/11/2013,46
Bath & North East Somerset Council,80274363,LM8,Home Care,P03,Wellbeing,SAFE & SOUND HOMECARE SERVICES,01/11/2013,79
Bath & North East Somerset Council,80274363,LM8,Home Care,P03,Wellbeing,SAFE & SOUND HOMECARE SERVICES,01/11/2013,79
Bath & North East Somerset Council,80274361,LM8,Home Care,P03,Wellbeing,SAFE & SOUND HOMECARE SERVICES,01/11/2013,115.5
Bath & North East Somerset Council,80274361,LM8,Home Care,P03,Wellbeing,SAFE & SOUND HOMECARE SERVICES,01/11/2013,115.5
Bath & North East Somerset Council,80274361,LM8,Home Care,P03,Wellbeing,SAFE & SOUND HOMECARE SERVICES,01/11/2013,115.5
Bath & North East Somerset Council,80274361,LM8,Home Care,P03,Wellbeing,SAFE & SOUND HOMECARE SERVICES,01/11/2013,115.5
Bath & North East Somerset Council,80274361,LM8,Home Care,P03,Wellbeing,SAFE & SOUND HOMECARE SERVICES,01/11/2013,115.5
Bath & North East Somerset Council,10717368,LX1,Educational Activity,P02,"Early Years, Children & Youth",MR R THOMPSON & MRS E JOLLIFFE,01/11/2013,660
Bath & North East Somerset Council,80274202,LA7,Purchases for Resale,P06,Sustainable Development,TIMOTHY RICHARDS ARCHITECTURAL FINE ARTS COMM LTD,01/11/2013,679
Bath & North East Somerset Council,80274363,LM8,Home Care,P03,Wellbeing,SAFE & SOUND HOMECARE SERVICES,01/11/2013,301.5
Bath & North East Somerset Council,80274362,LM8,Home Care,P03,Wellbeing,SAFE & SOUND HOMECARE SERVICES,01/11/2013,308
Bath & North East Somerset Council,80274362,LM8,Home Care,P03,Wellbeing,SAFE & SOUND HOMECARE SERVICES,01/11/2013,440
Bath & North East Somerset Council,80274362,LM8,Home Care,P03,Wellbeing,SAFE & SOUND HOMECARE SERVICES,01/11/2013,484
Bath & North East Somerset Council,80274362,LM8,Home Care,P03,Wellbeing,SAFE & SOUND HOMECARE SERVICES,01/11/2013,616
Bath & North East Somerset Council,80274362,LM8,Home Care,P03,Wellbeing,SAFE & SOUND HOMECARE SERVICES,01/11/2013,616
Bath & North East Somerset Council,80274185,LA7,Purchases for Resale,P06,Sustainable Development,REX INTERNATIONAL LTD,01/11/2013,738.04
Bath & North East Somerset Council,10717502,PB4,Payments to Private Contractors,P05,Neighbourhoods,HILLS WASTE SOLUTIONS LTD,01/11/2013,745.92
Bath & North East Somerset Council,80274226,LA7,Purchases for Resale,P06,Sustainable Development,KAEMINGK,01/11/2013,759.66
Bath & North East Somerset Council,80274259,LA7,Purchases for Resale,P06,Sustainable Development,UNIVERSAL MAIL UNITED KINGDOM LTD,01/11/2013,783
Bath & North East Somerset Council,80274245,LA7,Purchases for Resale,P06,Sustainable Development,THE HISTORY PRESS LTD,01/11/2013,824.08
Bath & North East Somerset Council,10717614,3C4,Building Works,P02,"Early Years, Children & Youth",KEN BIGGS CONTRACTORS LIMITED,01/11/2013,509.8
Bath & North East Somerset Council,10717362,LJ1,Consultants Fees,P04,Leader,225 DEGREES LIMITED,01/11/2013,850
Bath & North East Somerset Council,80274186,LA7,Purchases for Resale,P06,Sustainable Development,SAMPSONS LTD,01/11/2013,864
Bath & North East Somerset Council,80274221,LA7,Purchases for Resale,P06,Sustainable Development,DROYT PRODUCTS LTD,01/11/2013,870.15
Bath & North East Somerset Council,10717392,LA5,Materials,P05,Neighbourhoods,SOMERSET COUNTY COUNCIL,01/11/2013,15904.1
Bath & North East Somerset Council,10717519,LH2,Advertising,P09,Homes & Planning,LOCAL WORLD LTD,01/11/2013,902.64
Bath & North East Somerset Council,80274204,LA7,Purchases for Resale,P06,Sustainable Development,MIO JEWELLERY LTD (T/A RODGERS & RODGERS),01/11/2013,949
Bath & North East Somerset Council,80274215,LA7,Purchases for Resale,P06,Sustainable Development,WESTAIR REPRODUCTIONS LIMITED,01/11/2013,963
Bath & North East Somerset Council,80274212,LA7,Purchases for Resale,P06,Sustainable Development,UNEX DESIGNS LTD,01/11/2013,963.9
Bath & North East Somerset Council,10717525,DB1,Agency Staff,P01,Transport,M WIDDOWSON LTD,01/11/2013,978.13
Bath & North East Somerset Council,80274355,LM8,Home Care,P03,Wellbeing,STAR HOME CARE SERVICES LIMITED,01/11/2013,524.03
Bath & North East Somerset Council,10717486,LJ4,Contracts,P01,Transport,NEED TO GET HOME? TAXI COMPANY,01/11/2013,1126.7
Bath & North East Somerset Council,80274200,LA7,Purchases for Resale,P06,Sustainable Development,POWDER DESIGN LTD,01/11/2013,1144.5
Bath & North East Somerset Council,80274187,LA7,Purchases for Resale,P06,Sustainable Development,SOMERSET TOILETRY COMPANY LTD,01/11/2013,1222.5
Bath & North East Somerset Council,80274309,LL3,Supported Living,P03,Wellbeing,THE ALZHEIMER'S SOCIETY N.E.SO,01/11/2013,35.8
Bath & North East Somerset Council,80274192,LA7,Purchases for Resale,P06,Sustainable Development,FIKKERTS LTD,01/11/2013,1320
Bath & North East Somerset Council,80274309,LL3,Supported Living,P03,Wellbeing,THE ALZHEIMER'S SOCIETY N.E.SO,01/11/2013,143.2
Bath & North East Somerset Council,80274209,LA7,Purchases for Resale,P06,Sustainable Development,TEMPLE ISLAND COLLECTIONS,01/11/2013,1322.1
Bath & North East Somerset Council,80274309,LL3,Supported Living,P03,Wellbeing,THE ALZHEIMER'S SOCIETY N.E.SO,01/11/2013,143.2
Bath & North East Somerset Council,80274309,LL3,Supported Living,P03,Wellbeing,THE ALZHEIMER'S SOCIETY N.E.SO,01/11/2013,143.2
Bath & North East Somerset Council,80274309,LL3,Supported Living,P03,Wellbeing,THE ALZHEIMER'S SOCIETY N.E.SO,01/11/2013,143.2
Bath & North East Somerset Council,80274236,LA7,Purchases for Resale,P06,Sustainable Development,F H SWIFT,01/11/2013,1357.2
Bath & North East Somerset Council,80274260,LA7,Purchases for Resale,P06,Sustainable Development,F H SWIFT,01/11/2013,1357.2
Bath & North East Somerset Council,10717492,LJ4,Contracts,P01,Transport,MR M L BRACEY T/A A B M MINIBUSES,01/11/2013,1459.2
Bath & North East Somerset Council,10717484,LJ4,Contracts,P01,Transport,MR M L BRACEY T/A A B M MINIBUSES,01/11/2013,1469.46
Bath & North East Somerset Council,10717522,LJ4,Contracts,P01,Transport,MR P S MATTHEWS T/A NORAD TAXIS,01/11/2013,1474.56
Bath & North East Somerset Council,80274188,LA7,Purchases for Resale,P06,Sustainable Development,WESTAIR REPRODUCTIONS LIMITED,01/11/2013,1485
Bath & North East Somerset Council,80274183,LA7,Purchases for Resale,P06,Sustainable Development,PENFOUND PRODUCTS,01/11/2013,1540
Bath & North East Somerset Council,10717488,EA1,Training,P03,Wellbeing,CARE AND HEALTH LAW,01/11/2013,1770
Bath & North East Somerset Council,80274342,LL3,Supported Living,P03,Wellbeing,THREE TREES COMMUNITY SUPPORT LTD,01/11/2013,1551.5
Bath & North East Somerset Council,80274342,LL3,Supported Living,P03,Wellbeing,THREE TREES COMMUNITY SUPPORT LTD,01/11/2013,1551.5
Bath & North East Somerset Council,80274342,LL3,Supported Living,P03,Wellbeing,THREE TREES COMMUNITY SUPPORT LTD,01/11/2013,1551.5
Bath & North East Somerset Council,80274342,LL3,Supported Living,P03,Wellbeing,THREE TREES COMMUNITY SUPPORT LTD,01/11/2013,1551.5
Bath & North East Somerset Council,80274342,LL3,Supported Living,P03,Wellbeing,THREE TREES COMMUNITY SUPPORT LTD,01/11/2013,1551.5
Bath & North East Somerset Council,80274256,LA7,Purchases for Resale,P06,Sustainable Development,TEMPLE ISLAND COLLECTIONS,01/11/2013,1904.6
Bath & North East Somerset Council,80274394,LM8,Home Care,P03,Wellbeing,V CARS,01/11/2013,124.8
Bath & North East Somerset Council,80274394,LM8,Home Care,P03,Wellbeing,V CARS,01/11/2013,124.8
Bath & North East Somerset Council,80274394,LM8,Home Care,P03,Wellbeing,V CARS,01/11/2013,124.8
Bath & North East Somerset Council,80274394,LM8,Home Care,P03,Wellbeing,V CARS,01/11/2013,124.8
Bath & North East Somerset Council,80274394,LM8,Home Care,P03,Wellbeing,V CARS,01/11/2013,124.8
Bath & North East Somerset Council,10717526,LJ4,Contracts,P01,Transport,CT COACHES,01/11/2013,2234.7
Bath & North East Somerset Council,10717394,3G1,Grants/Advances,P03,Wellbeing,DOLPHIN LIFTS (WESTERN) LTD,01/11/2013,2245
Bath & North East Somerset Council,10713575,LK1,Fees,P05,Neighbourhoods,UNIVERSITY OF BATH,01/11/2013,2328.58
Bath & North East Somerset Council,80274189,LA7,Purchases for Resale,P06,Sustainable Development,THE BALAGAN GROUP LTD,01/11/2013,2333.7
Bath & North East Somerset Council,80274242,LA7,Purchases for Resale,P06,Sustainable Development,CUSTOMWORKS,01/11/2013,2360
Bath & North East Somerset Council,80274239,LA7,Purchases for Resale,P06,Sustainable Development,BATH AQUA GLASS LTD,01/11/2013,2522.6
Bath & North East Somerset Council,10717389,3G1,Grants/Advances,P03,Wellbeing,P & J SHOWERS LTD,01/11/2013,2995
Bath & North East Somerset Council,10717478,LJ4,Contracts,P01,Transport,MARIAN CALINOIU,01/11/2013,2850
Bath & North East Somerset Council,10717477,LJ4,Contracts,P01,Transport,MARIAN CALINOIU,01/11/2013,2927.4
Bath & North East Somerset Council,10717395,3G1,Grants/Advances,P03,Wellbeing,OASIS BATHROOM CENTRE,01/11/2013,3025
Bath & North East Somerset Council,80274261,LA7,Purchases for Resale,P06,Sustainable Development,YARTO EUROPE LTD,01/11/2013,3240
Bath & North East Somerset Council,10717513,LJ4,Contracts,P01,Transport,S. J. & J M MUNDEN T/A GUYAN MINI BUSES,01/11/2013,3441.7
Bath & North East Somerset Council,80274217,LA7,Purchases for Resale,P06,Sustainable Development,YARTO EUROPE LTD,01/11/2013,3467.52
Bath & North East Somerset Council,10717390,3G1,Grants/Advances,P03,Wellbeing,LIFTABILITY LIMITED,01/11/2013,3980
Bath & North East Somerset Council,10717106,HK1,Highway Maintenance,P01,Transport,SIEMENS PLC,01/11/2013,124096.04
Bath & North East Somerset Council,10716520,LJ3,Other Services to the Council,P07,Community Resources,SAINSBURYS SUPERMARKETS LTD,01/11/2013,4875
Bath & North East Somerset Council,10720003,LM3,Residential Care,P03,Wellbeing,WILLOWBANK CARE LTD,01/11/2013,5906.88
Bath & North East Somerset Council,10717604,3E6,IT Software,P04,Leader,NORTHGATE INFORMATION SOLUTIONS,01/11/2013,6300
Bath & North East Somerset Council,10717526,LJ4,Contracts,P01,Transport,CT COACHES,01/11/2013,6517.5
Bath & North East Somerset Council,10717526,LJ4,Contracts,P01,Transport,CT COACHES,01/11/2013,6776.42
Bath & North East Somerset Council,10717521,LN4,Mobile Phones,P04,Leader,VODAFONE LIMITED,01/11/2013,6889.65
Bath & North East Somerset Council,10714757,HA5,Service Contract PCB,P07,Community Resources,TYCO FIRE & INTEGRATED SOLUTIONS (UK) LTD,01/11/2013,7555
Bath & North East Somerset Council,10717475,LJ1,Consultants Fees,P04,Leader,ACHIEVE BREAKTHROUGH LTD,01/11/2013,10000
Bath & North East Somerset Council,10717495,LJ4,Contracts,P01,Transport,CENTURION TRAVEL LTD,01/11/2013,19745.84
Bath & North East Somerset Council,10717506,LJ1,Consultants Fees,P07,Community Resources,PRICE WATERHOUSE COOPERS,01/11/2013,20176
Bath & North East Somerset Council,80274469,LK4,Nursery/Childcare Vouchers,P02,"Early Years, Children & Youth",3-2-4 PLAYGROUP,04/11/2013,5560.09
Bath & North East Somerset Council,80274728,LL8,Individualised Budget,P03,Wellbeing,REDACTED,04/11/2013,463.34
Bath & North East Somerset Council,80274728,LL8,Individualised Budget,P03,Wellbeing,REDACTED,04/11/2013,463.34
Bath & North East Somerset Council,80274847,LL8,Individualised Budget,P03,Wellbeing,REDACTED,04/11/2013,926.2
Bath & North East Somerset Council,80274847,LL8,Individualised Budget,P03,Wellbeing,REDACTED,04/11/2013,926.2
Bath & North East Somerset Council,80274825,LL8,Individualised Budget,P03,Wellbeing,REDACTED,04/11/2013,602.22
Bath & North East Somerset Council,80274825,LL8,Individualised Budget,P03,Wellbeing,REDACTED,04/11/2013,602.22
Bath & North East Somerset Council,10717675,DB1,Agency Staff,P01,Transport,MINIBUS TRAVEL,04/11/2013,35
Bath & North East Somerset Council,80274862,LL8,Individualised Budget,P03,Wellbeing,REDACTED,04/11/2013,346.5
Bath & North East Somerset Council,80274862,LL8,Individualised Budget,P03,Wellbeing,REDACTED,04/11/2013,346.5
Bath & North East Somerset Council,80274917,LL8,Individualised Budget,P03,Wellbeing,REDACTED,04/11/2013,500
Bath & North East Somerset Council,80274636,LL4,Direct Payments,P03,Wellbeing,REDACTED,04/11/2013,1293.48
Bath & North East Somerset Council,80274636,LL4,Direct Payments,P03,Wellbeing,REDACTED,04/11/2013,1293.48
Bath & North East Somerset Council,80274856,LL8,Individualised Budget,P03,Wellbeing,REDACTED,04/11/2013,357.52
Bath & North East Somerset Council,80274856,LL8,Individualised Budget,P03,Wellbeing,REDACTED,04/11/2013,357.52
Bath & North East Somerset Council,80274870,LL3,Supported Living,P03,Wellbeing,ARCH CARE SERVICES,04/11/2013,54.54
Bath & North East Somerset Council,80274870,LL3,Supported Living,P03,Wellbeing,ARCH CARE SERVICES,04/11/2013,54.54
Bath & North East Somerset Council,80274870,LL3,Supported Living,P03,Wellbeing,ARCH CARE SERVICES,04/11/2013,90
Bath & North East Somerset Council,80274870,LL3,Supported Living,P03,Wellbeing,ARCH CARE SERVICES,04/11/2013,90
Bath & North East Somerset Council,80274870,LL3,Supported Living,P03,Wellbeing,ARCH CARE SERVICES,04/11/2013,90.9
Bath & North East Somerset Council,80274870,LL3,Supported Living,P03,Wellbeing,ARCH CARE SERVICES,04/11/2013,90.9
Bath & North East Somerset Council,80274870,LL3,Supported Living,P03,Wellbeing,ARCH CARE SERVICES,04/11/2013,252.5
Bath & North East Somerset Council,80274870,LL3,Supported Living,P03,Wellbeing,ARCH CARE SERVICES,04/11/2013,252.5
Bath & North East Somerset Council,80274870,LL3,Supported Living,P03,Wellbeing,ARCH CARE SERVICES,04/11/2013,277.75
Bath & North East Somerset Council,80274870,LL3,Supported Living,P03,Wellbeing,ARCH CARE SERVICES,04/11/2013,277.75
Bath & North East Somerset Council,80274870,LL3,Supported Living,P03,Wellbeing,ARCH CARE SERVICES,04/11/2013,278.76
Bath & North East Somerset Council,80274870,LL3,Supported Living,P03,Wellbeing,ARCH CARE SERVICES,04/11/2013,278.76
Bath & North East Somerset Council,80274870,LL3,Supported Living,P03,Wellbeing,ARCH CARE SERVICES,04/11/2013,278.76
Bath & North East Somerset Council,80274870,LL3,Supported Living,P03,Wellbeing,ARCH CARE SERVICES,04/11/2013,278.76
Bath & North East Somerset Council,80274870,LL3,Supported Living,P03,Wellbeing,ARCH CARE SERVICES,04/11/2013,310.07
Bath & North East Somerset Council,80274870,LL3,Supported Living,P03,Wellbeing,ARCH CARE SERVICES,04/11/2013,310.07
Bath & North East Somerset Council,80274870,LL3,Supported Living,P03,Wellbeing,ARCH CARE SERVICES,04/11/2013,321
Bath & North East Somerset Council,80274870,LL3,Supported Living,P03,Wellbeing,ARCH CARE SERVICES,04/11/2013,321
Bath & North East Somerset Council,80274870,LL3,Supported Living,P03,Wellbeing,ARCH CARE SERVICES,04/11/2013,330
Bath & North East Somerset Council,80274870,LL3,Supported Living,P03,Wellbeing,ARCH CARE SERVICES,04/11/2013,330
Bath & North East Somerset Council,80274870,LL3,Supported Living,P03,Wellbeing,ARCH CARE SERVICES,04/11/2013,343
Bath & North East Somerset Council,80274870,LL3,Supported Living,P03,Wellbeing,ARCH CARE SERVICES,04/11/2013,343
Bath & North East Somerset Council,80274870,LL3,Supported Living,P03,Wellbeing,ARCH CARE SERVICES,04/11/2013,346.43
Bath & North East Somerset Council,80274870,LL3,Supported Living,P03,Wellbeing,ARCH CARE SERVICES,04/11/2013,346.43
Bath & North East Somerset Council,80274603,LM6,Nursing Care,P03,Wellbeing,ARCH CARE SERVICES,04/11/2013,427
Bath & North East Somerset Council,80274603,LM6,Nursing Care,P03,Wellbeing,ARCH CARE SERVICES,04/11/2013,427
Bath & North East Somerset Council,80274870,LL3,Supported Living,P03,Wellbeing,ARCH CARE SERVICES,04/11/2013,431.27
Bath & North East Somerset Council,80274870,LL3,Supported Living,P03,Wellbeing,ARCH CARE SERVICES,04/11/2013,431.27
Bath & North East Somerset Council,80274870,LL3,Supported Living,P03,Wellbeing,ARCH CARE SERVICES,04/11/2013,445
Bath & North East Somerset Council,80274870,LL3,Supported Living,P03,Wellbeing,ARCH CARE SERVICES,04/11/2013,445
Bath & North East Somerset Council,80274616,LM6,Nursing Care,P03,Wellbeing,BARCHESTER HEALTH CARE,04/11/2013,993
Bath & North East Somerset Council,80274616,LM6,Nursing Care,P03,Wellbeing,BARCHESTER HEALTH CARE,04/11/2013,993
Bath & North East Somerset Council,80274592,LM6,Nursing Care,P03,Wellbeing,BARCHESTER HEALTHCARE,04/11/2013,915.3
Bath & North East Somerset Council,80274592,LM6,Nursing Care,P03,Wellbeing,BARCHESTER HEALTHCARE,04/11/2013,915.3
Bath & North East Somerset Council,80274584,LM6,Nursing Care,P03,Wellbeing,BARCHESTER HEALTHCARE HOMES LTD,04/11/2013,185.71
Bath & North East Somerset Council,80274584,LM6,Nursing Care,P03,Wellbeing,BARCHESTER HEALTHCARE HOMES LTD,04/11/2013,464.29
Bath & North East Somerset Council,80274584,LM6,Nursing Care,P03,Wellbeing,BARCHESTER HEALTHCARE HOMES LTD,04/11/2013,650
Bath & North East Somerset Council,80274584,LM6,Nursing Care,P03,Wellbeing,BARCHESTER HEALTHCARE HOMES LTD,04/11/2013,650
Bath & North East Somerset Council,80274584,LM6,Nursing Care,P03,Wellbeing,BARCHESTER HEALTHCARE HOMES LTD,04/11/2013,650
Bath & North East Somerset Council,80274584,LM6,Nursing Care,P03,Wellbeing,BARCHESTER HEALTHCARE HOMES LTD,04/11/2013,650
Bath & North East Somerset Council,80274584,LM6,Nursing Care,P03,Wellbeing,BARCHESTER HEALTHCARE HOMES LTD,04/11/2013,650
Bath & North East Somerset Council,80274584,LM6,Nursing Care,P03,Wellbeing,BARCHESTER HEALTHCARE HOMES LTD,04/11/2013,650
Bath & North East Somerset Council,80274584,LM6,Nursing Care,P03,Wellbeing,BARCHESTER HEALTHCARE HOMES LTD,04/11/2013,650
Bath & North East Somerset Council,80274584,LM6,Nursing Care,P03,Wellbeing,BARCHESTER HEALTHCARE HOMES LTD,04/11/2013,650
Bath & North East Somerset Council,80274584,LM6,Nursing Care,P03,Wellbeing,BARCHESTER HEALTHCARE HOMES LTD,04/11/2013,650
Bath & North East Somerset Council,80274584,LM6,Nursing Care,P03,Wellbeing,BARCHESTER HEALTHCARE HOMES LTD,04/11/2013,650
Bath & North East Somerset Council,80274584,LM6,Nursing Care,P03,Wellbeing,BARCHESTER HEALTHCARE HOMES LTD,04/11/2013,746
Bath & North East Somerset Council,80274584,LM6,Nursing Care,P03,Wellbeing,BARCHESTER HEALTHCARE HOMES LTD,04/11/2013,746
Bath & North East Somerset Council,80274584,LM6,Nursing Care,P03,Wellbeing,BARCHESTER HEALTHCARE HOMES LTD,04/11/2013,750
Bath & North East Somerset Council,80274584,LM6,Nursing Care,P03,Wellbeing,BARCHESTER HEALTHCARE HOMES LTD,04/11/2013,750
Bath & North East Somerset Council,80274584,LM6,Nursing Care,P03,Wellbeing,BARCHESTER HEALTHCARE HOMES LTD,04/11/2013,755
Bath & North East Somerset Council,80274584,LM6,Nursing Care,P03,Wellbeing,BARCHESTER HEALTHCARE HOMES LTD,04/11/2013,755
Bath & North East Somerset Council,80274584,LM6,Nursing Care,P03,Wellbeing,BARCHESTER HEALTHCARE HOMES LTD,04/11/2013,830
Bath & North East Somerset Council,80274584,LM6,Nursing Care,P03,Wellbeing,BARCHESTER HEALTHCARE HOMES LTD,04/11/2013,830
Bath & North East Somerset Council,80274584,LM6,Nursing Care,P03,Wellbeing,BARCHESTER HEALTHCARE HOMES LTD,04/11/2013,839.03
Bath & North East Somerset Council,80274584,LM6,Nursing Care,P03,Wellbeing,BARCHESTER HEALTHCARE HOMES LTD,04/11/2013,839.03
Bath & North East Somerset Council,80274584,LM6,Nursing Care,P03,Wellbeing,BARCHESTER HEALTHCARE HOMES LTD,04/11/2013,846
Bath & North East Somerset Council,80274584,LM6,Nursing Care,P03,Wellbeing,BARCHESTER HEALTHCARE HOMES LTD,04/11/2013,846
Bath & North East Somerset Council,80274584,LM6,Nursing Care,P03,Wellbeing,BARCHESTER HEALTHCARE HOMES LTD,04/11/2013,1100
Bath & North East Somerset Council,80274584,LM6,Nursing Care,P03,Wellbeing,BARCHESTER HEALTHCARE HOMES LTD,04/11/2013,1100
Bath & North East Somerset Council,80274607,LM6,Nursing Care,P03,Wellbeing,BARKER CHEMICALS LTD T/A ST TERESA'S NH,04/11/2013,278.57
Bath & North East Somerset Council,80274607,LM6,Nursing Care,P03,Wellbeing,BARKER CHEMICALS LTD T/A ST TERESA'S NH,04/11/2013,650
Bath & North East Somerset Council,80274607,LM6,Nursing Care,P03,Wellbeing,BARKER CHEMICALS LTD T/A ST TERESA'S NH,04/11/2013,650
Bath & North East Somerset Council,80274607,LM6,Nursing Care,P03,Wellbeing,BARKER CHEMICALS LTD T/A ST TERESA'S NH,04/11/2013,650
Bath & North East Somerset Council,80274607,LM6,Nursing Care,P03,Wellbeing,BARKER CHEMICALS LTD T/A ST TERESA'S NH,04/11/2013,650
Bath & North East Somerset Council,80274607,LM6,Nursing Care,P03,Wellbeing,BARKER CHEMICALS LTD T/A ST TERESA'S NH,04/11/2013,750.75
Bath & North East Somerset Council,80274607,LM6,Nursing Care,P03,Wellbeing,BARKER CHEMICALS LTD T/A ST TERESA'S NH,04/11/2013,750.75
Bath & North East Somerset Council,80274607,LM6,Nursing Care,P03,Wellbeing,BARKER CHEMICALS LTD T/A ST TERESA'S NH,04/11/2013,787
Bath & North East Somerset Council,80274607,LM6,Nursing Care,P03,Wellbeing,BARKER CHEMICALS LTD T/A ST TERESA'S NH,04/11/2013,787
Bath & North East Somerset Council,80274607,LM6,Nursing Care,P03,Wellbeing,BARKER CHEMICALS LTD T/A ST TERESA'S NH,04/11/2013,800.35
Bath & North East Somerset Council,80274607,LM6,Nursing Care,P03,Wellbeing,BARKER CHEMICALS LTD T/A ST TERESA'S NH,04/11/2013,800.35
Bath & North East Somerset Council,80274607,LM6,Nursing Care,P03,Wellbeing,BARKER CHEMICALS LTD T/A ST TERESA'S NH,04/11/2013,810
Bath & North East Somerset Council,80274607,LM6,Nursing Care,P03,Wellbeing,BARKER CHEMICALS LTD T/A ST TERESA'S NH,04/11/2013,810
Bath & North East Somerset Council,80274607,LM6,Nursing Care,P03,Wellbeing,BARKER CHEMICALS LTD T/A ST TERESA'S NH,04/11/2013,927
Bath & North East Somerset Council,80274607,LM6,Nursing Care,P03,Wellbeing,BARKER CHEMICALS LTD T/A ST TERESA'S NH,04/11/2013,927
Bath & North East Somerset Council,80274607,LM6,Nursing Care,P03,Wellbeing,BARKER CHEMICALS LTD T/A ST TERESA'S NH,04/11/2013,1275.25
Bath & North East Somerset Council,80274607,LM6,Nursing Care,P03,Wellbeing,BARKER CHEMICALS LTD T/A ST TERESA'S NH,04/11/2013,1275.25
Bath & North East Somerset Council,80274613,LM6,Nursing Care,P03,Wellbeing,BRIDGE CARE LTD,04/11/2013,685.71
Bath & North East Somerset Council,80274602,LM6,Nursing Care,P03,Wellbeing,BRIDGE CARE LTD,04/11/2013,800
Bath & North East Somerset Council,80274602,LM6,Nursing Care,P03,Wellbeing,BRIDGE CARE LTD,04/11/2013,800
Bath & North East Somerset Council,80274613,LM6,Nursing Care,P03,Wellbeing,BRIDGE CARE LTD,04/11/2013,800
Bath & North East Somerset Council,80274613,LM6,Nursing Care,P03,Wellbeing,BRIDGE CARE LTD,04/11/2013,800
Bath & North East Somerset Council,80274613,LM6,Nursing Care,P03,Wellbeing,BRIDGE CARE LTD,04/11/2013,800
Bath & North East Somerset Council,80274613,LM6,Nursing Care,P03,Wellbeing,BRIDGE CARE LTD,04/11/2013,800
Bath & North East Somerset Council,80274587,LM6,Nursing Care,P03,Wellbeing,BRISTOL AGE CARE,04/11/2013,750
Bath & North East Somerset Council,80274587,LM6,Nursing Care,P03,Wellbeing,BRISTOL AGE CARE,04/11/2013,750
Bath & North East Somerset Council,80274593,LM6,Nursing Care,P03,Wellbeing,BROOKDALE HEALTHCARE LTD,04/11/2013,3619
Bath & North East Somerset Council,80274593,LM6,Nursing Care,P03,Wellbeing,BROOKDALE HEALTHCARE LTD,04/11/2013,3619
Bath & North East Somerset Council,80274610,LM6,Nursing Care,P03,Wellbeing,CEDAR CARE HOMES LTD,04/11/2013,278.57
Bath & North East Somerset Council,80274610,LM6,Nursing Care,P03,Wellbeing,CEDAR CARE HOMES LTD,04/11/2013,321.43
Bath & North East Somerset Council,80274610,LM6,Nursing Care,P03,Wellbeing,CEDAR CARE HOMES LTD,04/11/2013,642.86
Bath & North East Somerset Council,80274597,LM6,Nursing Care,P03,Wellbeing,CEDAR CARE HOMES LTD,04/11/2013,650
Bath & North East Somerset Council,80274597,LM6,Nursing Care,P03,Wellbeing,CEDAR CARE HOMES LTD,04/11/2013,650
Bath & North East Somerset Council,80274610,LM6,Nursing Care,P03,Wellbeing,CEDAR CARE HOMES LTD,04/11/2013,650
Bath & North East Somerset Council,80274610,LM6,Nursing Care,P03,Wellbeing,CEDAR CARE HOMES LTD,04/11/2013,650
Bath & North East Somerset Council,80274610,LM6,Nursing Care,P03,Wellbeing,CEDAR CARE HOMES LTD,04/11/2013,800
Bath & North East Somerset Council,80274610,LM6,Nursing Care,P03,Wellbeing,CEDAR CARE HOMES LTD,04/11/2013,800
Bath & North East Somerset Council,80274610,LM6,Nursing Care,P03,Wellbeing,CEDAR CARE HOMES LTD,04/11/2013,800
Bath & North East Somerset Council,80274610,LM6,Nursing Care,P03,Wellbeing,CEDAR CARE HOMES LTD,04/11/2013,800
Bath & North East Somerset Council,80274597,LM6,Nursing Care,P03,Wellbeing,CEDAR CARE HOMES LTD,04/11/2013,2019
Bath & North East Somerset Council,80274597,LM6,Nursing Care,P03,Wellbeing,CEDAR CARE HOMES LTD,04/11/2013,2019
Bath & North East Somerset Council,80274597,LM6,Nursing Care,P03,Wellbeing,CEDAR CARE HOMES LTD,04/11/2013,2019
Bath & North East Somerset Council,80274597,LM6,Nursing Care,P03,Wellbeing,CEDAR CARE HOMES LTD,04/11/2013,2019
Bath & North East Somerset Council,80274597,LM6,Nursing Care,P03,Wellbeing,CEDAR CARE HOMES LTD,04/11/2013,2019
Bath & North East Somerset Council,80274597,LM6,Nursing Care,P03,Wellbeing,CEDAR CARE HOMES LTD,04/11/2013,2019
Bath & North East Somerset Council,80274597,LM6,Nursing Care,P03,Wellbeing,CEDAR CARE HOMES LTD,04/11/2013,2019
Bath & North East Somerset Council,80274597,LM6,Nursing Care,P03,Wellbeing,CEDAR CARE HOMES LTD,04/11/2013,2019
Bath & North East Somerset Council,80274597,LM6,Nursing Care,P03,Wellbeing,CEDAR CARE HOMES LTD,04/11/2013,2019
Bath & North East Somerset Council,80274597,LM6,Nursing Care,P03,Wellbeing,CEDAR CARE HOMES LTD,04/11/2013,2019
Bath & North East Somerset Council,80274597,LM6,Nursing Care,P03,Wellbeing,CEDAR CARE HOMES LTD,04/11/2013,2019
Bath & North East Somerset Council,80274597,LM6,Nursing Care,P03,Wellbeing,CEDAR CARE HOMES LTD,04/11/2013,2019
Bath & North East Somerset Council,80274597,LM6,Nursing Care,P03,Wellbeing,CEDAR CARE HOMES LTD,04/11/2013,2019
Bath & North East Somerset Council,80274597,LM6,Nursing Care,P03,Wellbeing,CEDAR CARE HOMES LTD,04/11/2013,2019
Bath & North East Somerset Council,80274597,LM6,Nursing Care,P03,Wellbeing,CEDAR CARE HOMES LTD,04/11/2013,2019
Bath & North East Somerset Council,80274597,LM6,Nursing Care,P03,Wellbeing,CEDAR CARE HOMES LTD,04/11/2013,2019
Bath & North East Somerset Council,80274623,LM6,Nursing Care,P03,Wellbeing,CEDAR PARK NURSING HOME,04/11/2013,278.57
Bath & North East Somerset Council,80274623,LM6,Nursing Care,P03,Wellbeing,CEDAR PARK NURSING HOME,04/11/2013,650
Bath & North East Somerset Council,80274623,LM6,Nursing Care,P03,Wellbeing,CEDAR PARK NURSING HOME,04/11/2013,650
Bath & North East Somerset Council,80274623,LM6,Nursing Care,P03,Wellbeing,CEDAR PARK NURSING HOME,04/11/2013,650
Bath & North East Somerset Council,80274623,LM6,Nursing Care,P03,Wellbeing,CEDAR PARK NURSING HOME,04/11/2013,650
Bath & North East Somerset Council,80274623,LM6,Nursing Care,P03,Wellbeing,CEDAR PARK NURSING HOME,04/11/2013,725
Bath & North East Somerset Council,80274623,LM6,Nursing Care,P03,Wellbeing,CEDAR PARK NURSING HOME,04/11/2013,725
Bath & North East Somerset Council,80274580,LM6,Nursing Care,P03,Wellbeing,CHOLWELL HOUSE NURSING HOME,04/11/2013,77.57
Bath & North East Somerset Council,80274580,LM6,Nursing Care,P03,Wellbeing,CHOLWELL HOUSE NURSING HOME,04/11/2013,569
Bath & North East Somerset Council,80274580,LM6,Nursing Care,P03,Wellbeing,CHOLWELL HOUSE NURSING HOME,04/11/2013,569
Bath & North East Somerset Council,80274495,LK4,Nursery/Childcare Vouchers,P02,"Early Years, Children & Youth",REDACTED,04/11/2013,695.17
Bath & North East Somerset Council,80274580,LM6,Nursing Care,P03,Wellbeing,CHOLWELL HOUSE NURSING HOME,04/11/2013,646.6
Bath & North East Somerset Council,80274580,LM6,Nursing Care,P03,Wellbeing,CHOLWELL HOUSE NURSING HOME,04/11/2013,646.6
Bath & North East Somerset Council,80274580,LM6,Nursing Care,P03,Wellbeing,CHOLWELL HOUSE NURSING HOME,04/11/2013,650
Bath & North East Somerset Council,80274580,LM6,Nursing Care,P03,Wellbeing,CHOLWELL HOUSE NURSING HOME,04/11/2013,650
Bath & North East Somerset Council,80274580,LM6,Nursing Care,P03,Wellbeing,CHOLWELL HOUSE NURSING HOME,04/11/2013,675
Bath & North East Somerset Council,80274580,LM6,Nursing Care,P03,Wellbeing,CHOLWELL HOUSE NURSING HOME,04/11/2013,675
Bath & North East Somerset Council,80274580,LM6,Nursing Care,P03,Wellbeing,CHOLWELL HOUSE NURSING HOME,04/11/2013,675
Bath & North East Somerset Council,80274580,LM6,Nursing Care,P03,Wellbeing,CHOLWELL HOUSE NURSING HOME,04/11/2013,675
Bath & North East Somerset Council,80274580,LM6,Nursing Care,P03,Wellbeing,CHOLWELL HOUSE NURSING HOME,04/11/2013,711.9
Bath & North East Somerset Council,80274580,LM6,Nursing Care,P03,Wellbeing,CHOLWELL HOUSE NURSING HOME,04/11/2013,711.9
Bath & North East Somerset Council,80274580,LM6,Nursing Care,P03,Wellbeing,CHOLWELL HOUSE NURSING HOME,04/11/2013,711.9
Bath & North East Somerset Council,80274580,LM6,Nursing Care,P03,Wellbeing,CHOLWELL HOUSE NURSING HOME,04/11/2013,711.9
Bath & North East Somerset Council,80274580,LM6,Nursing Care,P03,Wellbeing,CHOLWELL HOUSE NURSING HOME,04/11/2013,725
Bath & North East Somerset Council,80274580,LM6,Nursing Care,P03,Wellbeing,CHOLWELL HOUSE NURSING HOME,04/11/2013,725
Bath & North East Somerset Council,80274580,LM6,Nursing Care,P03,Wellbeing,CHOLWELL HOUSE NURSING HOME,04/11/2013,1010
Bath & North East Somerset Council,80274580,LM6,Nursing Care,P03,Wellbeing,CHOLWELL HOUSE NURSING HOME,04/11/2013,1010
Bath & North East Somerset Council,80274580,LM6,Nursing Care,P03,Wellbeing,CHOLWELL HOUSE NURSING HOME,04/11/2013,1743
Bath & North East Somerset Council,80274580,LM6,Nursing Care,P03,Wellbeing,CHOLWELL HOUSE NURSING HOME,04/11/2013,1743
Bath & North East Somerset Council,80274864,LL8,Individualised Budget,P03,Wellbeing,REDACTED,04/11/2013,500
Bath & North East Somerset Council,80274601,LM6,Nursing Care,P03,Wellbeing,COMMUNITY OF ST ANTONY & ST ELIAS & REV FR BGPR &,04/11/2013,1665
Bath & North East Somerset Council,80274601,LM6,Nursing Care,P03,Wellbeing,COMMUNITY OF ST ANTONY & ST ELIAS & REV FR BGPR &,04/11/2013,1665
Bath & North East Somerset Council,10716869,HE1,General Maintenance,P05,Neighbourhoods,PAUL LEDBURY LTD,04/11/2013,210
Bath & North East Somerset Council,80274622,LM6,Nursing Care,P03,Wellbeing,CRANHILL NURSING HOME,04/11/2013,371.43
Bath & North East Somerset Council,80274622,LM6,Nursing Care,P03,Wellbeing,CRANHILL NURSING HOME,04/11/2013,650
Bath & North East Somerset Council,80274622,LM6,Nursing Care,P03,Wellbeing,CRANHILL NURSING HOME,04/11/2013,650
Bath & North East Somerset Council,80274622,LM6,Nursing Care,P03,Wellbeing,CRANHILL NURSING HOME,04/11/2013,650
Bath & North East Somerset Council,80274622,LM6,Nursing Care,P03,Wellbeing,CRANHILL NURSING HOME,04/11/2013,650
Bath & North East Somerset Council,80274622,LM6,Nursing Care,P03,Wellbeing,CRANHILL NURSING HOME,04/11/2013,650
Bath & North East Somerset Council,80274622,LM6,Nursing Care,P03,Wellbeing,CRANHILL NURSING HOME,04/11/2013,650
Bath & North East Somerset Council,80274622,LM6,Nursing Care,P03,Wellbeing,CRANHILL NURSING HOME,04/11/2013,706
Bath & North East Somerset Council,80274622,LM6,Nursing Care,P03,Wellbeing,CRANHILL NURSING HOME,04/11/2013,706
Bath & North East Somerset Council,80274582,LM6,Nursing Care,P03,Wellbeing,CULVERHAY NURSING HOME,04/11/2013,347.14
Bath & North East Somerset Council,80274582,LM6,Nursing Care,P03,Wellbeing,CULVERHAY NURSING HOME,04/11/2013,810
Bath & North East Somerset Council,80274582,LM6,Nursing Care,P03,Wellbeing,CULVERHAY NURSING HOME,04/11/2013,810
Bath & North East Somerset Council,80274582,LM6,Nursing Care,P03,Wellbeing,CULVERHAY NURSING HOME,04/11/2013,810
Bath & North East Somerset Council,80274582,LM6,Nursing Care,P03,Wellbeing,CULVERHAY NURSING HOME,04/11/2013,810
Bath & North East Somerset Council,80274582,LM6,Nursing Care,P03,Wellbeing,CULVERHAY NURSING HOME,04/11/2013,810
Bath & North East Somerset Council,80274582,LM6,Nursing Care,P03,Wellbeing,CULVERHAY NURSING HOME,04/11/2013,810
Bath & North East Somerset Council,80274582,LM6,Nursing Care,P03,Wellbeing,CULVERHAY NURSING HOME,04/11/2013,810
Bath & North East Somerset Council,80274582,LM6,Nursing Care,P03,Wellbeing,CULVERHAY NURSING HOME,04/11/2013,810
Bath & North East Somerset Council,80274582,LM6,Nursing Care,P03,Wellbeing,CULVERHAY NURSING HOME,04/11/2013,810
Bath & North East Somerset Council,80274582,LM6,Nursing Care,P03,Wellbeing,CULVERHAY NURSING HOME,04/11/2013,810
Bath & North East Somerset Council,80274582,LM6,Nursing Care,P03,Wellbeing,CULVERHAY NURSING HOME,04/11/2013,810
Bath & North East Somerset Council,80274582,LM6,Nursing Care,P03,Wellbeing,CULVERHAY NURSING HOME,04/11/2013,810
Bath & North East Somerset Council,80274582,LM6,Nursing Care,P03,Wellbeing,CULVERHAY NURSING HOME,04/11/2013,810
Bath & North East Somerset Council,80274582,LM6,Nursing Care,P03,Wellbeing,CULVERHAY NURSING HOME,04/11/2013,810
Bath & North East Somerset Council,80274582,LM6,Nursing Care,P03,Wellbeing,CULVERHAY NURSING HOME,04/11/2013,810
Bath & North East Somerset Council,80274582,LM6,Nursing Care,P03,Wellbeing,CULVERHAY NURSING HOME,04/11/2013,810
Bath & North East Somerset Council,80274582,LM6,Nursing Care,P03,Wellbeing,CULVERHAY NURSING HOME,04/11/2013,810
Bath & North East Somerset Council,80274582,LM6,Nursing Care,P03,Wellbeing,CULVERHAY NURSING HOME,04/11/2013,810
Bath & North East Somerset Council,80274582,LM6,Nursing Care,P03,Wellbeing,CULVERHAY NURSING HOME,04/11/2013,810
Bath & North East Somerset Council,80274582,LM6,Nursing Care,P03,Wellbeing,CULVERHAY NURSING HOME,04/11/2013,810
Bath & North East Somerset Council,80274582,LM6,Nursing Care,P03,Wellbeing,CULVERHAY NURSING HOME,04/11/2013,810
Bath & North East Somerset Council,80274582,LM6,Nursing Care,P03,Wellbeing,CULVERHAY NURSING HOME,04/11/2013,810
Bath & North East Somerset Council,80274582,LM6,Nursing Care,P03,Wellbeing,CULVERHAY NURSING HOME,04/11/2013,810
Bath & North East Somerset Council,80274582,LM6,Nursing Care,P03,Wellbeing,CULVERHAY NURSING HOME,04/11/2013,810
Bath & North East Somerset Council,80274582,LM6,Nursing Care,P03,Wellbeing,CULVERHAY NURSING HOME,04/11/2013,810
Bath & North East Somerset Council,80274582,LM6,Nursing Care,P03,Wellbeing,CULVERHAY NURSING HOME,04/11/2013,810
Bath & North East Somerset Council,80274582,LM6,Nursing Care,P03,Wellbeing,CULVERHAY NURSING HOME,04/11/2013,810
Bath & North East Somerset Council,80274582,LM6,Nursing Care,P03,Wellbeing,CULVERHAY NURSING HOME,04/11/2013,810
Bath & North East Somerset Council,80274582,LM6,Nursing Care,P03,Wellbeing,CULVERHAY NURSING HOME,04/11/2013,810
Bath & North East Somerset Council,80274582,LM6,Nursing Care,P03,Wellbeing,CULVERHAY NURSING HOME,04/11/2013,810
Bath & North East Somerset Council,80274788,LL8,Individualised Budget,P03,Wellbeing,REDACTED,04/11/2013,1487.45
Bath & North East Somerset Council,80274788,LL8,Individualised Budget,P03,Wellbeing,REDACTED,04/11/2013,1487.45
Bath & North East Somerset Council,80274698,LL8,Individualised Budget,P03,Wellbeing,REDACTED,04/11/2013,386.53
Bath & North East Somerset Council,80274698,LL8,Individualised Budget,P03,Wellbeing,REDACTED,04/11/2013,386.53
Bath & North East Somerset Council,80274924,YF2,Fees & Charges,P03,Wellbeing,REDACTED,04/11/2013,57.66
Bath & North East Somerset Council,80274924,YF2,Fees & Charges,P03,Wellbeing,REDACTED,04/11/2013,67.27
Bath & North East Somerset Council,80274924,YF2,Fees & Charges,P03,Wellbeing,REDACTED,04/11/2013,67.27
Bath & North East Somerset Council,80274924,YF2,Fees & Charges,P03,Wellbeing,REDACTED,04/11/2013,67.27
Bath & North East Somerset Council,80274924,YF2,Fees & Charges,P03,Wellbeing,REDACTED,04/11/2013,67.27
Bath & North East Somerset Council,80274924,YF2,Fees & Charges,P03,Wellbeing,REDACTED,04/11/2013,67.27
Bath & North East Somerset Council,80274924,YF2,Fees & Charges,P03,Wellbeing,REDACTED,04/11/2013,67.27
Bath & North East Somerset Council,80274924,YF2,Fees & Charges,P03,Wellbeing,REDACTED,04/11/2013,67.27
Bath & North East Somerset Council,80274924,YF2,Fees & Charges,P03,Wellbeing,REDACTED,04/11/2013,67.27
Bath & North East Somerset Council,80274924,YF2,Fees & Charges,P03,Wellbeing,REDACTED,04/11/2013,67.27
Bath & North East Somerset Council,80274924,YF2,Fees & Charges,P03,Wellbeing,REDACTED,04/11/2013,67.27
Bath & North East Somerset Council,80274924,YF2,Fees & Charges,P03,Wellbeing,REDACTED,04/11/2013,67.27
Bath & North East Somerset Council,80274924,YF2,Fees & Charges,P03,Wellbeing,REDACTED,04/11/2013,67.27
Bath & North East Somerset Council,80274924,YF2,Fees & Charges,P03,Wellbeing,REDACTED,04/11/2013,67.27
Bath & North East Somerset Council,80274924,YF2,Fees & Charges,P03,Wellbeing,REDACTED,04/11/2013,67.27
Bath & North East Somerset Council,80274924,YF2,Fees & Charges,P03,Wellbeing,REDACTED,04/11/2013,67.27
Bath & North East Somerset Council,80274924,YF2,Fees & Charges,P03,Wellbeing,REDACTED,04/11/2013,67.27
Bath & North East Somerset Council,80274924,YF2,Fees & Charges,P03,Wellbeing,REDACTED,04/11/2013,67.27
Bath & North East Somerset Council,80274924,YF2,Fees & Charges,P03,Wellbeing,REDACTED,04/11/2013,67.27
Bath & North East Somerset Council,80274924,YF2,Fees & Charges,P03,Wellbeing,REDACTED,04/11/2013,67.27
Bath & North East Somerset Council,80274924,YF2,Fees & Charges,P03,Wellbeing,REDACTED,04/11/2013,67.27
Bath & North East Somerset Council,80274924,YF2,Fees & Charges,P03,Wellbeing,REDACTED,04/11/2013,67.27
Bath & North East Somerset Council,80274924,YF2,Fees & Charges,P03,Wellbeing,REDACTED,04/11/2013,67.27
Bath & North East Somerset Council,80274924,YF2,Fees & Charges,P03,Wellbeing,REDACTED,04/11/2013,67.27
Bath & North East Somerset Council,80274924,YF2,Fees & Charges,P03,Wellbeing,REDACTED,04/11/2013,67.27
Bath & North East Somerset Council,80274924,YF2,Fees & Charges,P03,Wellbeing,REDACTED,04/11/2013,67.27
Bath & North East Somerset Council,80274924,YF2,Fees & Charges,P03,Wellbeing,REDACTED,04/11/2013,67.27
Bath & North East Somerset Council,80274924,YF2,Fees & Charges,P03,Wellbeing,REDACTED,04/11/2013,67.27
Bath & North East Somerset Council,80274924,YF2,Fees & Charges,P03,Wellbeing,REDACTED,04/11/2013,67.27
Bath & North East Somerset Council,80274925,LL8,Individualised Budget,P03,Wellbeing,REDACTED,04/11/2013,345
Bath & North East Somerset Council,80274925,LL8,Individualised Budget,P03,Wellbeing,REDACTED,04/11/2013,345
Bath & North East Somerset Council,80274703,LL8,Individualised Budget,P03,Wellbeing,REDACTED,04/11/2013,1419.81
Bath & North East Somerset Council,80274703,LL8,Individualised Budget,P03,Wellbeing,REDACTED,04/11/2013,1419.81
Bath & North East Somerset Council,80274915,LL8,Individualised Budget,P03,Wellbeing,REDACTED,04/11/2013,500
Bath & North East Somerset Council,80274420,LK4,Nursery/Childcare Vouchers,P02,"Early Years, Children & Youth",ATELIER NURSERY LTD,04/11/2013,16299.08
Bath & North East Somerset Council,80274468,LK4,Nursery/Childcare Vouchers,P02,"Early Years, Children & Youth",BARNABY PRE-SCHOOL,04/11/2013,8425.57
Bath & North East Somerset Council,10716461,3C4,Building Works,P01,Transport,BT OPENREACH,04/11/2013,14202.8
Bath & North East Somerset Council,80274600,LM6,Nursing Care,P03,Wellbeing,DORSET LODGE LTD,04/11/2013,1082
Bath & North East Somerset Council,80274600,LM6,Nursing Care,P03,Wellbeing,DORSET LODGE LTD,04/11/2013,1082
Bath & North East Somerset Council,80274798,LL8,Individualised Budget,P03,Wellbeing,REDACTED,04/11/2013,393.27
Bath & North East Somerset Council,80274798,LL8,Individualised Budget,P03,Wellbeing,REDACTED,04/11/2013,393.27
Bath & North East Somerset Council,80274743,LL8,Individualised Budget,P03,Wellbeing,REDACTED,04/11/2013,474.15
Bath & North East Somerset Council,80274743,LL8,Individualised Budget,P03,Wellbeing,REDACTED,04/11/2013,474.15
Bath & North East Somerset Council,80274850,LL8,Individualised Budget,P03,Wellbeing,REDACTED,04/11/2013,369.38
Bath & North East Somerset Council,80274850,LL8,Individualised Budget,P03,Wellbeing,REDACTED,04/11/2013,369.38
Bath & North East Somerset Council,80274693,LL8,Individualised Budget,P03,Wellbeing,REDACTED,04/11/2013,499.61
Bath & North East Somerset Council,80274693,LL8,Individualised Budget,P03,Wellbeing,REDACTED,04/11/2013,499.61
Bath & North East Somerset Council,80274585,LM6,Nursing Care,P03,Wellbeing,EUROPEAN CARE (UK) LTD - REDACTED,04/11/2013,278.57
Bath & North East Somerset Council,10717692,HK5,PCB Highways Maintenance,P01,Transport,E R HEMMINGS (BUILDING) LTD,04/11/2013,807
Bath & North East Somerset Council,80274585,LM6,Nursing Care,P03,Wellbeing,EUROPEAN CARE (UK) LTD - REDACTED,04/11/2013,464.29
Bath & North East Somerset Council,80274585,LM6,Nursing Care,P03,Wellbeing,EUROPEAN CARE (UK) LTD - REDACTED,04/11/2013,650
Bath & North East Somerset Council,80274585,LM6,Nursing Care,P03,Wellbeing,EUROPEAN CARE (UK) LTD - REDACTED,04/11/2013,650
Bath & North East Somerset Council,80274585,LM6,Nursing Care,P03,Wellbeing,EUROPEAN CARE (UK) LTD - REDACTED,04/11/2013,650
Bath & North East Somerset Council,80274585,LM6,Nursing Care,P03,Wellbeing,EUROPEAN CARE (UK) LTD - REDACTED,04/11/2013,650
Bath & North East Somerset Council,80274585,LM6,Nursing Care,P03,Wellbeing,EUROPEAN CARE (UK) LTD - REDACTED,04/11/2013,650
Bath & North East Somerset Council,80274585,LM6,Nursing Care,P03,Wellbeing,EUROPEAN CARE (UK) LTD - REDACTED,04/11/2013,650
Bath & North East Somerset Council,80274928,LM6,Nursing Care,P03,Wellbeing,EUROPEAN CARE SW LTD - REDACTED,04/11/2013,236.57
Bath & North East Somerset Council,80274590,LM6,Nursing Care,P03,Wellbeing,EUROPEAN CARE SW LTD - REDACTED,04/11/2013,278.57
Bath & North East Somerset Council,80274928,LM6,Nursing Care,P03,Wellbeing,EUROPEAN CARE SW LTD - REDACTED,04/11/2013,394.29
Bath & North East Somerset Council,80274590,LM6,Nursing Care,P03,Wellbeing,EUROPEAN CARE SW LTD - REDACTED,04/11/2013,464.29
Bath & North East Somerset Council,80274590,LM6,Nursing Care,P03,Wellbeing,EUROPEAN CARE SW LTD - REDACTED,04/11/2013,552
Bath & North East Somerset Council,80274590,LM6,Nursing Care,P03,Wellbeing,EUROPEAN CARE SW LTD - REDACTED,04/11/2013,552
Bath & North East Somerset Council,80274928,LM6,Nursing Care,P03,Wellbeing,EUROPEAN CARE SW LTD - REDACTED,04/11/2013,552
Bath & North East Somerset Council,80274590,LM6,Nursing Care,P03,Wellbeing,EUROPEAN CARE SW LTD - REDACTED,04/11/2013,557.14
Bath & North East Somerset Council,80274590,LM6,Nursing Care,P03,Wellbeing,EUROPEAN CARE SW LTD - REDACTED,04/11/2013,650
Bath & North East Somerset Council,80274590,LM6,Nursing Care,P03,Wellbeing,EUROPEAN CARE SW LTD - REDACTED,04/11/2013,650
Bath & North East Somerset Council,80274590,LM6,Nursing Care,P03,Wellbeing,EUROPEAN CARE SW LTD - REDACTED,04/11/2013,650
Bath & North East Somerset Council,80274590,LM6,Nursing Care,P03,Wellbeing,EUROPEAN CARE SW LTD - REDACTED,04/11/2013,650
Bath & North East Somerset Council,80274590,LM6,Nursing Care,P03,Wellbeing,EUROPEAN CARE SW LTD - REDACTED,04/11/2013,650
Bath & North East Somerset Council,80274590,LM6,Nursing Care,P03,Wellbeing,EUROPEAN CARE SW LTD - REDACTED,04/11/2013,650
Bath & North East Somerset Council,80274590,LM6,Nursing Care,P03,Wellbeing,EUROPEAN CARE SW LTD - REDACTED,04/11/2013,650
Bath & North East Somerset Council,80274598,LM6,Nursing Care,P03,Wellbeing,EXTRAFRIEND LTD,04/11/2013,762.75
Bath & North East Somerset Council,80274598,LM6,Nursing Care,P03,Wellbeing,EXTRAFRIEND LTD,04/11/2013,762.75
Bath & North East Somerset Council,80274604,LM6,Nursing Care,P03,Wellbeing,GLENSIDE MANOR HEALTHCARE SERVICES LTD,04/11/2013,1401.43
Bath & North East Somerset Council,80274604,LM6,Nursing Care,P03,Wellbeing,GLENSIDE MANOR HEALTHCARE SERVICES LTD,04/11/2013,1401.43
Bath & North East Somerset Council,80274604,LM6,Nursing Care,P03,Wellbeing,GLENSIDE MANOR HEALTHCARE SERVICES LTD,04/11/2013,1511.26
Bath & North East Somerset Council,80274604,LM6,Nursing Care,P03,Wellbeing,GLENSIDE MANOR HEALTHCARE SERVICES LTD,04/11/2013,1511.26
Bath & North East Somerset Council,80274605,LM6,Nursing Care,P03,Wellbeing,GLENSIDE MANOR HEALTHCARE SERVICES LTD,04/11/2013,1528.55
Bath & North East Somerset Council,80274605,LM6,Nursing Care,P03,Wellbeing,GLENSIDE MANOR HEALTHCARE SERVICES LTD,04/11/2013,1528.55
Bath & North East Somerset Council,80274757,LL8,Individualised Budget,P03,Wellbeing,REDACTED,04/11/2013,735
Bath & North East Somerset Council,80274757,LL8,Individualised Budget,P03,Wellbeing,REDACTED,04/11/2013,735
Bath & North East Somerset Council,10717581,LA1,Equipment Purchase (Non Medical),P03,Wellbeing,BRITISH TELECOM,04/11/2013,434.28
Bath & North East Somerset Council,10716869,HE1,General Maintenance,P05,Neighbourhoods,PAUL LEDBURY LTD,04/11/2013,450
Bath & North East Somerset Council,80274822,LL8,Individualised Budget,P03,Wellbeing,REDACTED,04/11/2013,381.33
Bath & North East Somerset Council,80274822,LL8,Individualised Budget,P03,Wellbeing,REDACTED,04/11/2013,381.33
Bath & North East Somerset Council,80274618,LM6,Nursing Care,P03,Wellbeing,HUNTERS MOORE RESIDENTIAL SERVICES,04/11/2013,1960
Bath & North East Somerset Council,80274618,LM6,Nursing Care,P03,Wellbeing,HUNTERS MOORE RESIDENTIAL SERVICES,04/11/2013,1960
Bath & North East Somerset Council,80274747,LL8,Individualised Budget,P03,Wellbeing,REDACTED,04/11/2013,573.16
Bath & North East Somerset Council,80274747,LL8,Individualised Budget,P03,Wellbeing,REDACTED,04/11/2013,573.16
Bath & North East Somerset Council,80274866,LL8,Individualised Budget,P03,Wellbeing,REDACTED,04/11/2013,372.74
Bath & North East Somerset Council,80274866,LL8,Individualised Budget,P03,Wellbeing,REDACTED,04/11/2013,372.74
Bath & North East Somerset Council,80274839,LL8,Individualised Budget,P03,Wellbeing,REDACTED,04/11/2013,327.2
Bath & North East Somerset Council,80274839,LL8,Individualised Budget,P03,Wellbeing,REDACTED,04/11/2013,327.2
Bath & North East Somerset Council,80274721,LL8,Individualised Budget,P03,Wellbeing,REDACTED,04/11/2013,289.37
Bath & North East Somerset Council,80274721,LL8,Individualised Budget,P03,Wellbeing,REDACTED,04/11/2013,289.37
Bath & North East Somerset Council,80274452,LK4,Nursery/Childcare Vouchers,P02,"Early Years, Children & Youth",BISHOP SUTTON PRE-SCHOOL,04/11/2013,6587.99
Bath & North East Somerset Council,10716365,3N7,Misc. Costs,P07,Community Resources,MS N M TURNER,04/11/2013,526.5
Bath & North East Somerset Council,80274596,LM6,Nursing Care,P03,Wellbeing,LEONARD CHESHIRE FOUNDATION,04/11/2013,1013.81
Bath & North East Somerset Council,80274596,LM6,Nursing Care,P03,Wellbeing,LEONARD CHESHIRE FOUNDATION,04/11/2013,1013.81
Bath & North East Somerset Council,80274596,LM6,Nursing Care,P03,Wellbeing,LEONARD CHESHIRE FOUNDATION,04/11/2013,1260.27
Bath & North East Somerset Council,80274596,LM6,Nursing Care,P03,Wellbeing,LEONARD CHESHIRE FOUNDATION,04/11/2013,1260.27
Bath & North East Somerset Council,80274596,LM6,Nursing Care,P03,Wellbeing,LEONARD CHESHIRE FOUNDATION,04/11/2013,1321.05
Bath & North East Somerset Council,80274596,LM6,Nursing Care,P03,Wellbeing,LEONARD CHESHIRE FOUNDATION,04/11/2013,1321.05
Bath & North East Somerset Council,80274596,LM6,Nursing Care,P03,Wellbeing,LEONARD CHESHIRE FOUNDATION,04/11/2013,1339.61
Bath & North East Somerset Council,80274596,LM6,Nursing Care,P03,Wellbeing,LEONARD CHESHIRE FOUNDATION,04/11/2013,1339.61
Bath & North East Somerset Council,80274596,LM6,Nursing Care,P03,Wellbeing,LEONARD CHESHIRE FOUNDATION,04/11/2013,1348.54
Bath & North East Somerset Council,80274596,LM6,Nursing Care,P03,Wellbeing,LEONARD CHESHIRE FOUNDATION,04/11/2013,1348.54
Bath & North East Somerset Council,80274609,LM6,Nursing Care,P03,Wellbeing,LIFESTYLE CARE (2005) PLC,04/11/2013,775
Bath & North East Somerset Council,80274609,LM6,Nursing Care,P03,Wellbeing,LIFESTYLE CARE (2005) PLC,04/11/2013,775
Bath & North East Somerset Council,80274886,LL8,Individualised Budget,P03,Wellbeing,REDACTED,04/11/2013,297.15
Bath & North East Somerset Council,80274886,LL8,Individualised Budget,P03,Wellbeing,REDACTED,04/11/2013,297.15
Bath & North East Somerset Council,80274918,LL8,Individualised Budget,P03,Wellbeing,REDACTED,04/11/2013,500
Bath & North East Somerset Council,80274792,LL8,Individualised Budget,P03,Wellbeing,REDACTED,04/11/2013,268.69
Bath & North East Somerset Council,80274792,LL8,Individualised Budget,P03,Wellbeing,REDACTED,04/11/2013,268.69
Bath & North East Somerset Council,80274619,LM6,Nursing Care,P03,Wellbeing,MAJESTIC THREE,04/11/2013,650
Bath & North East Somerset Council,80274619,LM6,Nursing Care,P03,Wellbeing,MAJESTIC THREE,04/11/2013,650
Bath & North East Somerset Council,80274849,LL3,Supported Living,P03,Wellbeing,MAPLES COMMUNITY CARE LTD,04/11/2013,122.64
Bath & North East Somerset Council,80274849,LL3,Supported Living,P03,Wellbeing,MAPLES COMMUNITY CARE LTD,04/11/2013,122.64
Bath & North East Somerset Council,80274849,LL3,Supported Living,P03,Wellbeing,MAPLES COMMUNITY CARE LTD,04/11/2013,139.7
Bath & North East Somerset Council,80274849,LL3,Supported Living,P03,Wellbeing,MAPLES COMMUNITY CARE LTD,04/11/2013,139.7
Bath & North East Somerset Council,80274849,LL3,Supported Living,P03,Wellbeing,MAPLES COMMUNITY CARE LTD,04/11/2013,649.25
Bath & North East Somerset Council,80274849,LL3,Supported Living,P03,Wellbeing,MAPLES COMMUNITY CARE LTD,04/11/2013,649.25
Bath & North East Somerset Council,80274797,LL8,Individualised Budget,P03,Wellbeing,REDACTED,04/11/2013,262.64
Bath & North East Somerset Council,80274797,LL8,Individualised Budget,P03,Wellbeing,REDACTED,04/11/2013,262.64
Bath & North East Somerset Council,80274871,LL8,Individualised Budget,P03,Wellbeing,REDACTED,04/11/2013,344.72
Bath & North East Somerset Council,80274871,LL8,Individualised Budget,P03,Wellbeing,REDACTED,04/11/2013,344.72
Bath & North East Somerset Council,80274589,LM6,Nursing Care,P03,Wellbeing,METHODIST HOMES FOR THE AGED,04/11/2013,650
Bath & North East Somerset Council,80274589,LM6,Nursing Care,P03,Wellbeing,METHODIST HOMES FOR THE AGED,04/11/2013,650
Bath & North East Somerset Council,80274685,LL8,Individualised Budget,P03,Wellbeing,REDACTED,04/11/2013,305.94
Bath & North East Somerset Council,80274685,LL8,Individualised Budget,P03,Wellbeing,REDACTED,04/11/2013,305.94
Bath & North East Somerset Council,80274868,LL8,Individualised Budget,P03,Wellbeing,REDACTED,04/11/2013,702
Bath & North East Somerset Council,80274868,LL8,Individualised Budget,P03,Wellbeing,REDACTED,04/11/2013,702
Bath & North East Somerset Council,80274615,LM6,Nursing Care,P03,Wellbeing,MILESTONES TRUST,04/11/2013,1057.46
Bath & North East Somerset Council,80274615,LM6,Nursing Care,P03,Wellbeing,MILESTONES TRUST,04/11/2013,1057.46
Bath & North East Somerset Council,80274853,LL8,Individualised Budget,P03,Wellbeing,REDACTED,04/11/2013,500.06
Bath & North East Somerset Council,80274853,LL8,Individualised Budget,P03,Wellbeing,REDACTED,04/11/2013,500.06
Bath & North East Somerset Council,80274756,YF2,Fees & Charges,P03,Wellbeing,REDACTED,04/11/2013,35.31
Bath & North East Somerset Council,80274756,YF2,Fees & Charges,P03,Wellbeing,REDACTED,04/11/2013,35.31
Bath & North East Somerset Council,80274756,YF2,Fees & Charges,P03,Wellbeing,REDACTED,04/11/2013,35.31
Bath & North East Somerset Council,80274756,YF2,Fees & Charges,P03,Wellbeing,REDACTED,04/11/2013,35.31
Bath & North East Somerset Council,80274756,YF2,Fees & Charges,P03,Wellbeing,REDACTED,04/11/2013,35.31
Bath & North East Somerset Council,80274756,YF2,Fees & Charges,P03,Wellbeing,REDACTED,04/11/2013,35.31
Bath & North East Somerset Council,80274756,YF2,Fees & Charges,P03,Wellbeing,REDACTED,04/11/2013,35.31
Bath & North East Somerset Council,80274756,YF2,Fees & Charges,P03,Wellbeing,REDACTED,04/11/2013,35.31
Bath & North East Somerset Council,80274756,YF2,Fees & Charges,P03,Wellbeing,REDACTED,04/11/2013,35.31
Bath & North East Somerset Council,80274756,YF2,Fees & Charges,P03,Wellbeing,REDACTED,04/11/2013,35.31
Bath & North East Somerset Council,80274756,YF2,Fees & Charges,P03,Wellbeing,REDACTED,04/11/2013,35.31
Bath & North East Somerset Council,80274756,YF2,Fees & Charges,P03,Wellbeing,REDACTED,04/11/2013,35.31
Bath & North East Somerset Council,80274756,YF2,Fees & Charges,P03,Wellbeing,REDACTED,04/11/2013,35.31
Bath & North East Somerset Council,80274756,YF2,Fees & Charges,P03,Wellbeing,REDACTED,04/11/2013,35.31
Bath & North East Somerset Council,80274756,YF2,Fees & Charges,P03,Wellbeing,REDACTED,04/11/2013,35.31
Bath & North East Somerset Council,80274756,YF2,Fees & Charges,P03,Wellbeing,REDACTED,04/11/2013,35.31
Bath & North East Somerset Council,80274756,YF2,Fees & Charges,P03,Wellbeing,REDACTED,04/11/2013,35.31
Bath & North East Somerset Council,80274756,YF2,Fees & Charges,P03,Wellbeing,REDACTED,04/11/2013,35.31
Bath & North East Somerset Council,80274756,YF2,Fees & Charges,P03,Wellbeing,REDACTED,04/11/2013,35.31
Bath & North East Somerset Council,80274756,YF2,Fees & Charges,P03,Wellbeing,REDACTED,04/11/2013,35.31
Bath & North East Somerset Council,80274756,YF2,Fees & Charges,P03,Wellbeing,REDACTED,04/11/2013,35.31
Bath & North East Somerset Council,80274756,YF2,Fees & Charges,P03,Wellbeing,REDACTED,04/11/2013,35.31
Bath & North East Somerset Council,80274756,YF2,Fees & Charges,P03,Wellbeing,REDACTED,04/11/2013,35.31
Bath & North East Somerset Council,80274756,YF2,Fees & Charges,P03,Wellbeing,REDACTED,04/11/2013,35.31
Bath & North East Somerset Council,80274756,YF2,Fees & Charges,P03,Wellbeing,REDACTED,04/11/2013,35.31
Bath & North East Somerset Council,80274756,YF2,Fees & Charges,P03,Wellbeing,REDACTED,04/11/2013,35.31
Bath & North East Somerset Council,80274756,YF2,Fees & Charges,P03,Wellbeing,REDACTED,04/11/2013,35.31
Bath & North East Somerset Council,80274756,YF2,Fees & Charges,P03,Wellbeing,REDACTED,04/11/2013,35.31
Bath & North East Somerset Council,80274756,YF2,Fees & Charges,P03,Wellbeing,REDACTED,04/11/2013,35.31
Bath & North East Somerset Council,80274756,LL8,Individualised Budget,P03,Wellbeing,REDACTED,04/11/2013,260.96
Bath & North East Somerset Council,80274756,LL8,Individualised Budget,P03,Wellbeing,REDACTED,04/11/2013,260.96
Bath & North East Somerset Council,80274796,LL8,Individualised Budget,P03,Wellbeing,REDACTED,04/11/2013,489.65
Bath & North East Somerset Council,80274796,LL8,Individualised Budget,P03,Wellbeing,REDACTED,04/11/2013,489.65
Bath & North East Somerset Council,80274916,LL8,Individualised Budget,P03,Wellbeing,REDACTED,04/11/2013,500
Bath & North East Somerset Council,80274731,LL8,Individualised Budget,P03,Wellbeing,REDACTED,04/11/2013,461.49
Bath & North East Somerset Council,80274731,LL8,Individualised Budget,P03,Wellbeing,REDACTED,04/11/2013,461.49
Bath & North East Somerset Council,80251191,YF2,Fees & Charges,P03,Wellbeing,REDACTED,04/11/2013,15.25
Bath & North East Somerset Council,80251191,YF2,Fees & Charges,P03,Wellbeing,REDACTED,04/11/2013,35.58
Bath & North East Somerset Council,80251191,YF2,Fees & Charges,P03,Wellbeing,REDACTED,04/11/2013,35.58
Bath & North East Somerset Council,80251191,YF2,Fees & Charges,P03,Wellbeing,REDACTED,04/11/2013,35.58
Bath & North East Somerset Council,80251191,YF2,Fees & Charges,P03,Wellbeing,REDACTED,04/11/2013,35.58
Bath & North East Somerset Council,80251191,YF2,Fees & Charges,P03,Wellbeing,REDACTED,04/11/2013,35.58
Bath & North East Somerset Council,80251191,YF2,Fees & Charges,P03,Wellbeing,REDACTED,04/11/2013,35.58
Bath & North East Somerset Council,80251191,YF2,Fees & Charges,P03,Wellbeing,REDACTED,04/11/2013,35.58
Bath & North East Somerset Council,80251191,YF2,Fees & Charges,P03,Wellbeing,REDACTED,04/11/2013,35.58
Bath & North East Somerset Council,80251191,YF2,Fees & Charges,P03,Wellbeing,REDACTED,04/11/2013,35.58
Bath & North East Somerset Council,80251191,YF2,Fees & Charges,P03,Wellbeing,REDACTED,04/11/2013,35.58
Bath & North East Somerset Council,80251191,YF2,Fees & Charges,P03,Wellbeing,REDACTED,04/11/2013,35.58
Bath & North East Somerset Council,80251191,YF2,Fees & Charges,P03,Wellbeing,REDACTED,04/11/2013,35.58
Bath & North East Somerset Council,80251191,YF2,Fees & Charges,P03,Wellbeing,REDACTED,04/11/2013,35.58
Bath & North East Somerset Council,80251191,YF2,Fees & Charges,P03,Wellbeing,REDACTED,04/11/2013,35.58
Bath & North East Somerset Council,80251191,YF2,Fees & Charges,P03,Wellbeing,REDACTED,04/11/2013,35.58
Bath & North East Somerset Council,80251191,YF2,Fees & Charges,P03,Wellbeing,REDACTED,04/11/2013,35.58
Bath & North East Somerset Council,80251191,YF2,Fees & Charges,P03,Wellbeing,REDACTED,04/11/2013,35.58
Bath & North East Somerset Council,80251191,YF2,Fees & Charges,P03,Wellbeing,REDACTED,04/11/2013,35.58
Bath & North East Somerset Council,80251191,YF2,Fees & Charges,P03,Wellbeing,REDACTED,04/11/2013,35.58
Bath & North East Somerset Council,80251191,YF2,Fees & Charges,P03,Wellbeing,REDACTED,04/11/2013,35.58
Bath & North East Somerset Council,80251191,YF2,Fees & Charges,P03,Wellbeing,REDACTED,04/11/2013,35.58
Bath & North East Somerset Council,80251191,YF2,Fees & Charges,P03,Wellbeing,REDACTED,04/11/2013,35.58
Bath & North East Somerset Council,80251191,YF2,Fees & Charges,P03,Wellbeing,REDACTED,04/11/2013,35.58
Bath & North East Somerset Council,80251191,YF2,Fees & Charges,P03,Wellbeing,REDACTED,04/11/2013,35.58
Bath & North East Somerset Council,80251191,YF2,Fees & Charges,P03,Wellbeing,REDACTED,04/11/2013,35.58
Bath & North East Somerset Council,80251191,YF2,Fees & Charges,P03,Wellbeing,REDACTED,04/11/2013,35.58
Bath & North East Somerset Council,80251191,YF2,Fees & Charges,P03,Wellbeing,REDACTED,04/11/2013,35.58
Bath & North East Somerset Council,80251191,YF2,Fees & Charges,P03,Wellbeing,REDACTED,04/11/2013,35.58
Bath & North East Somerset Council,80251191,YF2,Fees & Charges,P03,Wellbeing,REDACTED,04/11/2013,35.58
Bath & North East Somerset Council,80251191,YF2,Fees & Charges,P03,Wellbeing,REDACTED,04/11/2013,35.58
Bath & North East Somerset Council,80251191,YF2,Fees & Charges,P03,Wellbeing,REDACTED,04/11/2013,35.58
Bath & North East Somerset Council,80251191,YF2,Fees & Charges,P03,Wellbeing,REDACTED,04/11/2013,35.58
Bath & North East Somerset Council,80251191,YF2,Fees & Charges,P03,Wellbeing,REDACTED,04/11/2013,35.58
Bath & North East Somerset Council,80251191,YF2,Fees & Charges,P03,Wellbeing,REDACTED,04/11/2013,35.58
Bath & North East Somerset Council,80251191,YF2,Fees & Charges,P03,Wellbeing,REDACTED,04/11/2013,35.58
Bath & North East Somerset Council,80251191,YF2,Fees & Charges,P03,Wellbeing,REDACTED,04/11/2013,35.58
Bath & North East Somerset Council,80251191,LL8,Individualised Budget,P03,Wellbeing,REDACTED,04/11/2013,303.54
Bath & North East Somerset Council,80251191,LL8,Individualised Budget,P03,Wellbeing,REDACTED,04/11/2013,303.54
Bath & North East Somerset Council,80274760,LL8,Individualised Budget,P03,Wellbeing,REDACTED,04/11/2013,500
Bath & North East Somerset Council,80274836,LL8,Individualised Budget,P03,Wellbeing,REDACTED,04/11/2013,325.61
Bath & North East Somerset Council,80274836,LL8,Individualised Budget,P03,Wellbeing,REDACTED,04/11/2013,325.61
Bath & North East Somerset Council,80274783,LL8,Individualised Budget,P03,Wellbeing,REDACTED,04/11/2013,26.16
Bath & North East Somerset Council,80274783,LL8,Individualised Budget,P03,Wellbeing,REDACTED,04/11/2013,26.16
Bath & North East Somerset Council,80274783,LL8,Individualised Budget,P03,Wellbeing,REDACTED,04/11/2013,26.16
Bath & North East Somerset Council,80274783,LL8,Individualised Budget,P03,Wellbeing,REDACTED,04/11/2013,26.16
Bath & North East Somerset Council,80274783,LL8,Individualised Budget,P03,Wellbeing,REDACTED,04/11/2013,26.16
Bath & North East Somerset Council,80274783,LL8,Individualised Budget,P03,Wellbeing,REDACTED,04/11/2013,26.16
Bath & North East Somerset Council,80274783,LL8,Individualised Budget,P03,Wellbeing,REDACTED,04/11/2013,26.16
Bath & North East Somerset Council,80274783,LL8,Individualised Budget,P03,Wellbeing,REDACTED,04/11/2013,26.16
Bath & North East Somerset Council,80274783,LL8,Individualised Budget,P03,Wellbeing,REDACTED,04/11/2013,26.16
Bath & North East Somerset Council,80274783,LL8,Individualised Budget,P03,Wellbeing,REDACTED,04/11/2013,26.16
Bath & North East Somerset Council,80274783,LL8,Individualised Budget,P03,Wellbeing,REDACTED,04/11/2013,26.16
Bath & North East Somerset Council,80274783,LL8,Individualised Budget,P03,Wellbeing,REDACTED,04/11/2013,26.16
Bath & North East Somerset Council,80274783,LL8,Individualised Budget,P03,Wellbeing,REDACTED,04/11/2013,26.16
Bath & North East Somerset Council,80274783,LL8,Individualised Budget,P03,Wellbeing,REDACTED,04/11/2013,26.16
Bath & North East Somerset Council,80274783,LL8,Individualised Budget,P03,Wellbeing,REDACTED,04/11/2013,26.16
Bath & North East Somerset Council,80274783,LL8,Individualised Budget,P03,Wellbeing,REDACTED,04/11/2013,26.16
Bath & North East Somerset Council,80274783,LL8,Individualised Budget,P03,Wellbeing,REDACTED,04/11/2013,26.16
Bath & North East Somerset Council,80274783,LL8,Individualised Budget,P03,Wellbeing,REDACTED,04/11/2013,26.16
Bath & North East Somerset Council,80274783,LL8,Individualised Budget,P03,Wellbeing,REDACTED,04/11/2013,26.16
Bath & North East Somerset Council,80274783,LL8,Individualised Budget,P03,Wellbeing,REDACTED,04/11/2013,26.16
Bath & North East Somerset Council,80274783,LL8,Individualised Budget,P03,Wellbeing,REDACTED,04/11/2013,26.16
Bath & North East Somerset Council,80274783,LL8,Individualised Budget,P03,Wellbeing,REDACTED,04/11/2013,26.16
Bath & North East Somerset Council,80274783,LL8,Individualised Budget,P03,Wellbeing,REDACTED,04/11/2013,26.16
Bath & North East Somerset Council,80274783,LL8,Individualised Budget,P03,Wellbeing,REDACTED,04/11/2013,26.16
Bath & North East Somerset Council,80274783,LL8,Individualised Budget,P03,Wellbeing,REDACTED,04/11/2013,26.16
Bath & North East Somerset Council,80274783,LL8,Individualised Budget,P03,Wellbeing,REDACTED,04/11/2013,26.16
Bath & North East Somerset Council,80274783,LL8,Individualised Budget,P03,Wellbeing,REDACTED,04/11/2013,26.16
Bath & North East Somerset Council,80274783,LL8,Individualised Budget,P03,Wellbeing,REDACTED,04/11/2013,26.16
Bath & North East Somerset Council,80274783,LL8,Individualised Budget,P03,Wellbeing,REDACTED,04/11/2013,26.16
Bath & North East Somerset Council,80274783,LL8,Individualised Budget,P03,Wellbeing,REDACTED,04/11/2013,26.16
Bath & North East Somerset Council,80274783,LL8,Individualised Budget,P03,Wellbeing,REDACTED,04/11/2013,26.16
Bath & North East Somerset Council,80274783,LL8,Individualised Budget,P03,Wellbeing,REDACTED,04/11/2013,26.16
Bath & North East Somerset Council,80274783,LL8,Individualised Budget,P03,Wellbeing,REDACTED,04/11/2013,94.34
Bath & North East Somerset Council,80274783,LL8,Individualised Budget,P03,Wellbeing,REDACTED,04/11/2013,94.34
Bath & North East Somerset Council,80274733,LL8,Individualised Budget,P03,Wellbeing,REDACTED,04/11/2013,259.61
Bath & North East Somerset Council,80274733,LL8,Individualised Budget,P03,Wellbeing,REDACTED,04/11/2013,259.61
Bath & North East Somerset Council,80274863,LL8,Individualised Budget,P03,Wellbeing,REDACTED,04/11/2013,396.4
Bath & North East Somerset Council,80274863,LL8,Individualised Budget,P03,Wellbeing,REDACTED,04/11/2013,396.4
Bath & North East Somerset Council,80274893,LL8,Individualised Budget,P03,Wellbeing,REDACTED,04/11/2013,411.4
Bath & North East Somerset Council,80274893,LL8,Individualised Budget,P03,Wellbeing,REDACTED,04/11/2013,411.4
Bath & North East Somerset Council,80274686,LL8,Individualised Budget,P03,Wellbeing,REDACTED,04/11/2013,390.69
Bath & North East Somerset Council,80274686,LL8,Individualised Budget,P03,Wellbeing,REDACTED,04/11/2013,390.69
Bath & North East Somerset Council,80274891,LL8,Individualised Budget,P03,Wellbeing,REDACTED,04/11/2013,380
Bath & North East Somerset Council,80274891,LL8,Individualised Budget,P03,Wellbeing,REDACTED,04/11/2013,380
Bath & North East Somerset Council,80274712,LL8,Individualised Budget,P03,Wellbeing,REDACTED,04/11/2013,338.56
Bath & North East Somerset Council,80274712,LL8,Individualised Budget,P03,Wellbeing,REDACTED,04/11/2013,338.56
Bath & North East Somerset Council,80274805,LL8,Individualised Budget,P03,Wellbeing,REDACTED,04/11/2013,492.41
Bath & North East Somerset Council,80274805,LL8,Individualised Budget,P03,Wellbeing,REDACTED,04/11/2013,492.41
Bath & North East Somerset Council,80274911,LL8,Individualised Budget,P03,Wellbeing,REDACTED,04/11/2013,285.6
Bath & North East Somerset Council,80274911,LL8,Individualised Budget,P03,Wellbeing,REDACTED,04/11/2013,285.6
Bath & North East Somerset Council,80274911,LL8,Individualised Budget,P03,Wellbeing,REDACTED,04/11/2013,285.6
Bath & North East Somerset Council,80274911,LL8,Individualised Budget,P03,Wellbeing,REDACTED,04/11/2013,285.6
Bath & North East Somerset Council,80274911,LL8,Individualised Budget,P03,Wellbeing,REDACTED,04/11/2013,285.6
Bath & North East Somerset Council,80274911,LL8,Individualised Budget,P03,Wellbeing,REDACTED,04/11/2013,935.6
Bath & North East Somerset Council,80274911,LL8,Individualised Budget,P03,Wellbeing,REDACTED,04/11/2013,935.6
Bath & North East Somerset Council,80274889,LL8,Individualised Budget,P03,Wellbeing,REDACTED,04/11/2013,499.87
Bath & North East Somerset Council,80274889,LL8,Individualised Budget,P03,Wellbeing,REDACTED,04/11/2013,499.87
Bath & North East Somerset Council,80274710,LL8,Individualised Budget,P03,Wellbeing,REDACTED,04/11/2013,978.62
Bath & North East Somerset Council,80274710,LL8,Individualised Budget,P03,Wellbeing,REDACTED,04/11/2013,978.62
Bath & North East Somerset Council,80274814,LL8,Individualised Budget,P03,Wellbeing,REDACTED,04/11/2013,961.34
Bath & North East Somerset Council,80274814,LL8,Individualised Budget,P03,Wellbeing,REDACTED,04/11/2013,961.34
Bath & North East Somerset Council,80274717,LL8,Individualised Budget,P03,Wellbeing,REDACTED,04/11/2013,401.1
Bath & North East Somerset Council,80274717,LL8,Individualised Budget,P03,Wellbeing,REDACTED,04/11/2013,401.1
Bath & North East Somerset Council,80274719,LL8,Individualised Budget,P03,Wellbeing,REDACTED,04/11/2013,310.51
Bath & North East Somerset Council,80274719,LL8,Individualised Budget,P03,Wellbeing,REDACTED,04/11/2013,310.51
Bath & North East Somerset Council,80274736,LL8,Individualised Budget,P03,Wellbeing,REDACTED,04/11/2013,509.16
Bath & North East Somerset Council,80274736,LL8,Individualised Budget,P03,Wellbeing,REDACTED,04/11/2013,509.16
Bath & North East Somerset Council,80274880,LL8,Individualised Budget,P03,Wellbeing,REDACTED,04/11/2013,255.48
Bath & North East Somerset Council,80274880,LL8,Individualised Budget,P03,Wellbeing,REDACTED,04/11/2013,255.48
Bath & North East Somerset Council,80274858,LL8,Individualised Budget,P03,Wellbeing,REDACTED,04/11/2013,858.65
Bath & North East Somerset Council,80274858,LL8,Individualised Budget,P03,Wellbeing,REDACTED,04/11/2013,858.65
Bath & North East Somerset Council,10717748,LL8,Individualised Budget,P03,Wellbeing,REDACTED,04/11/2013,500
Bath & North East Somerset Council,80274902,LL8,Individualised Budget,P03,Wellbeing,REDACTED,04/11/2013,499.51
Bath & North East Somerset Council,80274902,LL8,Individualised Budget,P03,Wellbeing,REDACTED,04/11/2013,499.51
Bath & North East Somerset Council,80274923,LL8,Individualised Budget,P03,Wellbeing,REDACTED,04/11/2013,467.54
Bath & North East Somerset Council,80274923,LL8,Individualised Budget,P03,Wellbeing,REDACTED,04/11/2013,467.54
Bath & North East Somerset Council,80274923,LL8,Individualised Budget,P03,Wellbeing,REDACTED,04/11/2013,5000
Bath & North East Somerset Council,80274742,LL8,Individualised Budget,P03,Wellbeing,REDACTED,04/11/2013,446.72
Bath & North East Somerset Council,80274742,LL8,Individualised Budget,P03,Wellbeing,REDACTED,04/11/2013,446.72
Bath & North East Somerset Council,80274898,LL8,Individualised Budget,P03,Wellbeing,REDACTED,04/11/2013,408.2
Bath & North East Somerset Council,80274898,LL8,Individualised Budget,P03,Wellbeing,REDACTED,04/11/2013,408.2
Bath & North East Somerset Council,80274899,LL8,Individualised Budget,P03,Wellbeing,REDACTED,04/11/2013,619.24
Bath & North East Somerset Council,80274899,LL8,Individualised Budget,P03,Wellbeing,REDACTED,04/11/2013,619.24
Bath & North East Somerset Council,80274777,LL8,Individualised Budget,P03,Wellbeing,REDACTED,04/11/2013,500
Bath & North East Somerset Council,80274895,LL8,Individualised Budget,P03,Wellbeing,REDACTED,04/11/2013,423.92
Bath & North East Somerset Council,80274895,LL8,Individualised Budget,P03,Wellbeing,REDACTED,04/11/2013,423.92
Bath & North East Somerset Council,80274810,LL8,Individualised Budget,P03,Wellbeing,REDACTED,04/11/2013,607.13
Bath & North East Somerset Council,80274810,LL8,Individualised Budget,P03,Wellbeing,REDACTED,04/11/2013,607.13
Bath & North East Somerset Council,80274770,LL8,Individualised Budget,P03,Wellbeing,REDACTED,04/11/2013,367.56
Bath & North East Somerset Council,80274770,LL8,Individualised Budget,P03,Wellbeing,REDACTED,04/11/2013,367.56
Bath & North East Somerset Council,80274922,LL8,Individualised Budget,P03,Wellbeing,REDACTED,04/11/2013,500
Bath & North East Somerset Council,80274859,LL8,Individualised Budget,P03,Wellbeing,REDACTED,04/11/2013,359.93
Bath & North East Somerset Council,80274859,LL8,Individualised Budget,P03,Wellbeing,REDACTED,04/11/2013,359.93
Bath & North East Somerset Council,80274835,LL8,Individualised Budget,P03,Wellbeing,REDACTED,04/11/2013,707
Bath & North East Somerset Council,80274835,LL8,Individualised Budget,P03,Wellbeing,REDACTED,04/11/2013,707
Bath & North East Somerset Council,80274761,LL8,Individualised Budget,P03,Wellbeing,REDACTED,04/11/2013,557.54
Bath & North East Somerset Council,80274761,LL8,Individualised Budget,P03,Wellbeing,REDACTED,04/11/2013,557.54
Bath & North East Somerset Council,80274838,LL8,Individualised Budget,P03,Wellbeing,REDACTED,04/11/2013,327.6
Bath & North East Somerset Council,80274838,LL8,Individualised Budget,P03,Wellbeing,REDACTED,04/11/2013,327.6
Bath & North East Somerset Council,80274649,LL4,Direct Payments,P02,"Early Years, Children & Youth",REDACTED,04/11/2013,269.98
Bath & North East Somerset Council,80274649,LL4,Direct Payments,P02,"Early Years, Children & Youth",REDACTED,04/11/2013,269.98
Bath & North East Somerset Council,80274682,LL4,Direct Payments,P03,Wellbeing,REDACTED,04/11/2013,595.54
Bath & North East Somerset Council,80274682,LL4,Direct Payments,P03,Wellbeing,REDACTED,04/11/2013,595.54
Bath & North East Somerset Council,80274732,LL8,Individualised Budget,P03,Wellbeing,REDACTED,04/11/2013,500
Bath & North East Somerset Council,80274826,LL8,Individualised Budget,P03,Wellbeing,REDACTED,04/11/2013,408.98
Bath & North East Somerset Council,80274826,LL8,Individualised Budget,P03,Wellbeing,REDACTED,04/11/2013,408.98
Bath & North East Somerset Council,80274811,LL8,Individualised Budget,P03,Wellbeing,REDACTED,04/11/2013,425
Bath & North East Somerset Council,80274811,LL8,Individualised Budget,P03,Wellbeing,REDACTED,04/11/2013,425
Bath & North East Somerset Council,80274865,LL8,Individualised Budget,P03,Wellbeing,REDACTED,04/11/2013,618.88
Bath & North East Somerset Council,80274865,LL8,Individualised Budget,P03,Wellbeing,REDACTED,04/11/2013,618.88
Bath & North East Somerset Council,80274725,LL8,Individualised Budget,P03,Wellbeing,REDACTED,04/11/2013,2335.53
Bath & North East Somerset Council,80274725,LL8,Individualised Budget,P03,Wellbeing,REDACTED,04/11/2013,2335.53
Bath & North East Somerset Council,80274752,LL8,Individualised Budget,P03,Wellbeing,REDACTED,04/11/2013,500.86
Bath & North East Somerset Council,80274752,LL8,Individualised Budget,P03,Wellbeing,REDACTED,04/11/2013,500.86
Bath & North East Somerset Council,80274759,LL8,Individualised Budget,P03,Wellbeing,REDACTED,04/11/2013,1235.48
Bath & North East Somerset Council,80274759,LL8,Individualised Budget,P03,Wellbeing,REDACTED,04/11/2013,1235.48
Bath & North East Somerset Council,80274714,LL8,Individualised Budget,P03,Wellbeing,REDACTED,04/11/2013,606.01
Bath & North East Somerset Council,80274714,LL8,Individualised Budget,P03,Wellbeing,REDACTED,04/11/2013,606.01
Bath & North East Somerset Council,80274739,LL8,Individualised Budget,P03,Wellbeing,REDACTED,04/11/2013,391.06
Bath & North East Somerset Council,80274739,LL8,Individualised Budget,P03,Wellbeing,REDACTED,04/11/2013,391.06
Bath & North East Somerset Council,80274583,LM6,Nursing Care,P03,Wellbeing,REDACTED,04/11/2013,278.57
Bath & North East Somerset Council,10717709,HA3,Planned Maintenance,P06,Sustainable Development,HORDERS,04/11/2013,427.32
Bath & North East Somerset Council,80274583,LM6,Nursing Care,P03,Wellbeing,REDACTED,04/11/2013,650
Bath & North East Somerset Council,80274583,LM6,Nursing Care,P03,Wellbeing,REDACTED,04/11/2013,650
Bath & North East Somerset Council,80274583,LM6,Nursing Care,P03,Wellbeing,REDACTED,04/11/2013,650
Bath & North East Somerset Council,80274583,LM6,Nursing Care,P03,Wellbeing,REDACTED,04/11/2013,650
Bath & North East Somerset Council,10717749,LL3,Supported Living,P03,Wellbeing,OFF THE RECORD BATH & N E SOMERSET,04/11/2013,969.98
Bath & North East Somerset Council,80274701,LL3,Supported Living,P03,Wellbeing,OPTIONS FOR LIVING LTD,04/11/2013,58.08
Bath & North East Somerset Council,80274701,LL3,Supported Living,P03,Wellbeing,OPTIONS FOR LIVING LTD,04/11/2013,58.08
Bath & North East Somerset Council,80274701,LL3,Supported Living,P03,Wellbeing,OPTIONS FOR LIVING LTD,04/11/2013,116.16
Bath & North East Somerset Council,80274701,LL3,Supported Living,P03,Wellbeing,OPTIONS FOR LIVING LTD,04/11/2013,116.16
Bath & North East Somerset Council,80274701,LL3,Supported Living,P03,Wellbeing,OPTIONS FOR LIVING LTD,04/11/2013,116.16
Bath & North East Somerset Council,80274701,LL3,Supported Living,P03,Wellbeing,OPTIONS FOR LIVING LTD,04/11/2013,116.16
Bath & North East Somerset Council,80274506,LK4,Nursery/Childcare Vouchers,P02,"Early Years, Children & Youth",BUTTERCUP BARN NURSERY,04/11/2013,3807.38
Bath & North East Somerset Council,80274701,LL3,Supported Living,P03,Wellbeing,OPTIONS FOR LIVING LTD,04/11/2013,170.89
Bath & North East Somerset Council,80274701,LL3,Supported Living,P03,Wellbeing,OPTIONS FOR LIVING LTD,04/11/2013,170.89
Bath & North East Somerset Council,80274701,LL3,Supported Living,P03,Wellbeing,OPTIONS FOR LIVING LTD,04/11/2013,174.24
Bath & North East Somerset Council,80274701,LL3,Supported Living,P03,Wellbeing,OPTIONS FOR LIVING LTD,04/11/2013,174.24
Bath & North East Somerset Council,80274701,LL3,Supported Living,P03,Wellbeing,OPTIONS FOR LIVING LTD,04/11/2013,174.24
Bath & North East Somerset Council,10717710,HA3,Planned Maintenance,P06,Sustainable Development,HORDERS,04/11/2013,448.96
Bath & North East Somerset Council,10716075,EA1,Training,P07,Community Resources,CIPFA BUSINESS LIMITED,04/11/2013,590
Bath & North East Somerset Council,80274701,LL3,Supported Living,P03,Wellbeing,OPTIONS FOR LIVING LTD,04/11/2013,174.24
Bath & North East Somerset Council,80274701,LL3,Supported Living,P03,Wellbeing,OPTIONS FOR LIVING LTD,04/11/2013,232.32
Bath & North East Somerset Council,80274701,LL3,Supported Living,P03,Wellbeing,OPTIONS FOR LIVING LTD,04/11/2013,232.32
Bath & North East Somerset Council,80274476,LK4,Nursery/Childcare Vouchers,P02,"Early Years, Children & Youth",CAMERTON C OF E PRIMARY SCHOOL,04/11/2013,565.5
Bath & North East Somerset Council,10716775,HE5,Security of Premises,P01,Transport,BRISTOL CITY COUNCIL,04/11/2013,594.15
Bath & North East Somerset Council,80274701,LL3,Supported Living,P03,Wellbeing,OPTIONS FOR LIVING LTD,04/11/2013,232.32
Bath & North East Somerset Council,80274701,LL3,Supported Living,P03,Wellbeing,OPTIONS FOR LIVING LTD,04/11/2013,232.32
Bath & North East Somerset Council,80274701,LL3,Supported Living,P03,Wellbeing,OPTIONS FOR LIVING LTD,04/11/2013,232.32
Bath & North East Somerset Council,80274701,LL3,Supported Living,P03,Wellbeing,OPTIONS FOR LIVING LTD,04/11/2013,232.32
Bath & North East Somerset Council,80274701,LL3,Supported Living,P03,Wellbeing,OPTIONS FOR LIVING LTD,04/11/2013,271.04
Bath & North East Somerset Council,80274701,LL3,Supported Living,P03,Wellbeing,OPTIONS FOR LIVING LTD,04/11/2013,271.04
Bath & North East Somerset Council,80274701,LL3,Supported Living,P03,Wellbeing,OPTIONS FOR LIVING LTD,04/11/2013,290.4
Bath & North East Somerset Council,80274701,LL3,Supported Living,P03,Wellbeing,OPTIONS FOR LIVING LTD,04/11/2013,290.4
Bath & North East Somerset Council,80274701,LL3,Supported Living,P03,Wellbeing,OPTIONS FOR LIVING LTD,04/11/2013,290.4
Bath & North East Somerset Council,80274701,LL3,Supported Living,P03,Wellbeing,OPTIONS FOR LIVING LTD,04/11/2013,290.4
Bath & North East Somerset Council,80274701,LL3,Supported Living,P03,Wellbeing,OPTIONS FOR LIVING LTD,04/11/2013,477
Bath & North East Somerset Council,80274701,LL3,Supported Living,P03,Wellbeing,OPTIONS FOR LIVING LTD,04/11/2013,477
Bath & North East Somerset Council,80274701,LL3,Supported Living,P03,Wellbeing,OPTIONS FOR LIVING LTD,04/11/2013,477
Bath & North East Somerset Council,80274701,LL3,Supported Living,P03,Wellbeing,OPTIONS FOR LIVING LTD,04/11/2013,477
Bath & North East Somerset Council,80274701,LL3,Supported Living,P03,Wellbeing,OPTIONS FOR LIVING LTD,04/11/2013,477
Bath & North East Somerset Council,80274701,LL3,Supported Living,P03,Wellbeing,OPTIONS FOR LIVING LTD,04/11/2013,477
Bath & North East Somerset Council,80274701,LL3,Supported Living,P03,Wellbeing,OPTIONS FOR LIVING LTD,04/11/2013,477
Bath & North East Somerset Council,80274701,LL3,Supported Living,P03,Wellbeing,OPTIONS FOR LIVING LTD,04/11/2013,477
Bath & North East Somerset Council,80274701,LL3,Supported Living,P03,Wellbeing,OPTIONS FOR LIVING LTD,04/11/2013,477
Bath & North East Somerset Council,80274701,LL3,Supported Living,P03,Wellbeing,OPTIONS FOR LIVING LTD,04/11/2013,477
Bath & North East Somerset Council,80274701,LL3,Supported Living,P03,Wellbeing,OPTIONS FOR LIVING LTD,04/11/2013,477
Bath & North East Somerset Council,80274701,LL3,Supported Living,P03,Wellbeing,OPTIONS FOR LIVING LTD,04/11/2013,477
Bath & North East Somerset Council,80274701,LL3,Supported Living,P03,Wellbeing,OPTIONS FOR LIVING LTD,04/11/2013,477
Bath & North East Somerset Council,80274701,LL3,Supported Living,P03,Wellbeing,OPTIONS FOR LIVING LTD,04/11/2013,477
Bath & North East Somerset Council,80274701,LL3,Supported Living,P03,Wellbeing,OPTIONS FOR LIVING LTD,04/11/2013,477
Bath & North East Somerset Council,80274701,LL3,Supported Living,P03,Wellbeing,OPTIONS FOR LIVING LTD,04/11/2013,477
Bath & North East Somerset Council,80274701,LL3,Supported Living,P03,Wellbeing,OPTIONS FOR LIVING LTD,04/11/2013,477
Bath & North East Somerset Council,80274701,LL3,Supported Living,P03,Wellbeing,OPTIONS FOR LIVING LTD,04/11/2013,477
Bath & North East Somerset Council,80274701,LL3,Supported Living,P03,Wellbeing,OPTIONS FOR LIVING LTD,04/11/2013,477
Bath & North East Somerset Council,80274701,LL3,Supported Living,P03,Wellbeing,OPTIONS FOR LIVING LTD,04/11/2013,477
Bath & North East Somerset Council,80274701,LL3,Supported Living,P03,Wellbeing,OPTIONS FOR LIVING LTD,04/11/2013,477
Bath & North East Somerset Council,80274701,LL3,Supported Living,P03,Wellbeing,OPTIONS FOR LIVING LTD,04/11/2013,477
Bath & North East Somerset Council,80274701,LL3,Supported Living,P03,Wellbeing,OPTIONS FOR LIVING LTD,04/11/2013,477
Bath & North East Somerset Council,80274701,LL3,Supported Living,P03,Wellbeing,OPTIONS FOR LIVING LTD,04/11/2013,528.75
Bath & North East Somerset Council,80274701,LL3,Supported Living,P03,Wellbeing,OPTIONS FOR LIVING LTD,04/11/2013,528.75
Bath & North East Somerset Council,80274701,LL3,Supported Living,P03,Wellbeing,OPTIONS FOR LIVING LTD,04/11/2013,528.75
Bath & North East Somerset Council,80274701,LL3,Supported Living,P03,Wellbeing,OPTIONS FOR LIVING LTD,04/11/2013,528.75
Bath & North East Somerset Council,80274701,LL3,Supported Living,P03,Wellbeing,OPTIONS FOR LIVING LTD,04/11/2013,528.75
Bath & North East Somerset Council,80274701,LL3,Supported Living,P03,Wellbeing,OPTIONS FOR LIVING LTD,04/11/2013,528.75
Bath & North East Somerset Council,80274701,LL3,Supported Living,P03,Wellbeing,OPTIONS FOR LIVING LTD,04/11/2013,528.75
Bath & North East Somerset Council,80274701,LL3,Supported Living,P03,Wellbeing,OPTIONS FOR LIVING LTD,04/11/2013,528.75
Bath & North East Somerset Council,80274701,LL3,Supported Living,P03,Wellbeing,OPTIONS FOR LIVING LTD,04/11/2013,528.75
Bath & North East Somerset Council,80274701,LL3,Supported Living,P03,Wellbeing,OPTIONS FOR LIVING LTD,04/11/2013,528.75
Bath & North East Somerset Council,80274701,LL3,Supported Living,P03,Wellbeing,OPTIONS FOR LIVING LTD,04/11/2013,528.75
Bath & North East Somerset Council,80274701,LL3,Supported Living,P03,Wellbeing,OPTIONS FOR LIVING LTD,04/11/2013,528.75
Bath & North East Somerset Council,80274701,LL3,Supported Living,P03,Wellbeing,OPTIONS FOR LIVING LTD,04/11/2013,528.75
Bath & North East Somerset Council,80274701,LL3,Supported Living,P03,Wellbeing,OPTIONS FOR LIVING LTD,04/11/2013,528.75
Bath & North East Somerset Council,80274701,LL3,Supported Living,P03,Wellbeing,OPTIONS FOR LIVING LTD,04/11/2013,528.75
Bath & North East Somerset Council,80274701,LL3,Supported Living,P03,Wellbeing,OPTIONS FOR LIVING LTD,04/11/2013,528.75
Bath & North East Somerset Council,80274701,LL3,Supported Living,P03,Wellbeing,OPTIONS FOR LIVING LTD,04/11/2013,528.75
Bath & North East Somerset Council,80274701,LL3,Supported Living,P03,Wellbeing,OPTIONS FOR LIVING LTD,04/11/2013,528.75
Bath & North East Somerset Council,80274701,LL3,Supported Living,P03,Wellbeing,OPTIONS FOR LIVING LTD,04/11/2013,528.75
Bath & North East Somerset Council,80274701,LL3,Supported Living,P03,Wellbeing,OPTIONS FOR LIVING LTD,04/11/2013,528.75
Bath & North East Somerset Council,80274701,LL3,Supported Living,P03,Wellbeing,OPTIONS FOR LIVING LTD,04/11/2013,528.75
Bath & North East Somerset Council,80274701,LL3,Supported Living,P03,Wellbeing,OPTIONS FOR LIVING LTD,04/11/2013,528.75
Bath & North East Somerset Council,80274701,LL3,Supported Living,P03,Wellbeing,OPTIONS FOR LIVING LTD,04/11/2013,546
Bath & North East Somerset Council,80274701,LL3,Supported Living,P03,Wellbeing,OPTIONS FOR LIVING LTD,04/11/2013,546
Bath & North East Somerset Council,80274701,LL3,Supported Living,P03,Wellbeing,OPTIONS FOR LIVING LTD,04/11/2013,615
Bath & North East Somerset Council,80274701,LL3,Supported Living,P03,Wellbeing,OPTIONS FOR LIVING LTD,04/11/2013,615
Bath & North East Somerset Council,80274701,LL3,Supported Living,P03,Wellbeing,OPTIONS FOR LIVING LTD,04/11/2013,615
Bath & North East Somerset Council,80274701,LL3,Supported Living,P03,Wellbeing,OPTIONS FOR LIVING LTD,04/11/2013,615
Bath & North East Somerset Council,80274701,LL3,Supported Living,P03,Wellbeing,OPTIONS FOR LIVING LTD,04/11/2013,753
Bath & North East Somerset Council,80274701,LL3,Supported Living,P03,Wellbeing,OPTIONS FOR LIVING LTD,04/11/2013,753
Bath & North East Somerset Council,80274701,LL3,Supported Living,P03,Wellbeing,OPTIONS FOR LIVING LTD,04/11/2013,753
Bath & North East Somerset Council,80274701,LL3,Supported Living,P03,Wellbeing,OPTIONS FOR LIVING LTD,04/11/2013,753
Bath & North East Somerset Council,80274612,LM6,Nursing Care,P03,Wellbeing,REDACTED,04/11/2013,787
Bath & North East Somerset Council,80274612,LM6,Nursing Care,P03,Wellbeing,REDACTED,04/11/2013,787
Bath & North East Somerset Council,80274612,LM6,Nursing Care,P03,Wellbeing,REDACTED,04/11/2013,1015
Bath & North East Somerset Council,80274612,LM6,Nursing Care,P03,Wellbeing,REDACTED,04/11/2013,1015
Bath & North East Somerset Council,80274624,LM6,Nursing Care,P03,Wellbeing,PARK STREET HOME,04/11/2013,950
Bath & North East Somerset Council,80274624,LM6,Nursing Care,P03,Wellbeing,PARK STREET HOME,04/11/2013,950
Bath & North East Somerset Council,80274774,LL8,Individualised Budget,P03,Wellbeing,PHOENIX (SW) LTD,04/11/2013,66.3
Bath & North East Somerset Council,80274774,LL8,Individualised Budget,P03,Wellbeing,PHOENIX (SW) LTD,04/11/2013,66.3
Bath & North East Somerset Council,80274774,LL8,Individualised Budget,P03,Wellbeing,PHOENIX (SW) LTD,04/11/2013,74.84
Bath & North East Somerset Council,80274774,LL8,Individualised Budget,P03,Wellbeing,PHOENIX (SW) LTD,04/11/2013,74.84
Bath & North East Somerset Council,80274774,LL8,Individualised Budget,P03,Wellbeing,PHOENIX (SW) LTD,04/11/2013,82.19
Bath & North East Somerset Council,80274774,LL8,Individualised Budget,P03,Wellbeing,PHOENIX (SW) LTD,04/11/2013,82.19
Bath & North East Somerset Council,80274774,LL8,Individualised Budget,P03,Wellbeing,PHOENIX (SW) LTD,04/11/2013,90.28
Bath & North East Somerset Council,80274774,LL8,Individualised Budget,P03,Wellbeing,PHOENIX (SW) LTD,04/11/2013,90.28
Bath & North East Somerset Council,80274774,LL8,Individualised Budget,P03,Wellbeing,PHOENIX (SW) LTD,04/11/2013,106.31
Bath & North East Somerset Council,80274503,LK4,Nursery/Childcare Vouchers,P02,"Early Years, Children & Youth",CHILDBASE LTD,04/11/2013,18846.33
Bath & North East Somerset Council,80274774,LL8,Individualised Budget,P03,Wellbeing,PHOENIX (SW) LTD,04/11/2013,106.31
Bath & North East Somerset Council,80274774,LL8,Individualised Budget,P03,Wellbeing,PHOENIX (SW) LTD,04/11/2013,145.5
Bath & North East Somerset Council,80274774,LL8,Individualised Budget,P03,Wellbeing,PHOENIX (SW) LTD,04/11/2013,145.5
Bath & North East Somerset Council,10717714,HA3,Planned Maintenance,P06,Sustainable Development,HORDERS,04/11/2013,478.27
Bath & North East Somerset Council,80274774,LL8,Individualised Budget,P03,Wellbeing,PHOENIX (SW) LTD,04/11/2013,267.79
Bath & North East Somerset Council,80274774,LL8,Individualised Budget,P03,Wellbeing,PHOENIX (SW) LTD,04/11/2013,267.79
Bath & North East Somerset Council,80274774,LL8,Individualised Budget,P03,Wellbeing,PHOENIX (SW) LTD,04/11/2013,277.21
Bath & North East Somerset Council,80274774,LL8,Individualised Budget,P03,Wellbeing,PHOENIX (SW) LTD,04/11/2013,277.21
Bath & North East Somerset Council,80274774,LL8,Individualised Budget,P03,Wellbeing,PHOENIX (SW) LTD,04/11/2013,345
Bath & North East Somerset Council,80274774,LL8,Individualised Budget,P03,Wellbeing,PHOENIX (SW) LTD,04/11/2013,345
Bath & North East Somerset Council,80274774,LL8,Individualised Budget,P03,Wellbeing,PHOENIX (SW) LTD,04/11/2013,372.74
Bath & North East Somerset Council,80274774,LL8,Individualised Budget,P03,Wellbeing,PHOENIX (SW) LTD,04/11/2013,372.74
Bath & North East Somerset Council,80274774,LL8,Individualised Budget,P03,Wellbeing,PHOENIX (SW) LTD,04/11/2013,372.74
Bath & North East Somerset Council,80274774,LL8,Individualised Budget,P03,Wellbeing,PHOENIX (SW) LTD,04/11/2013,372.74
Bath & North East Somerset Council,80274774,LL8,Individualised Budget,P03,Wellbeing,PHOENIX (SW) LTD,04/11/2013,386.03
Bath & North East Somerset Council,80274774,LL8,Individualised Budget,P03,Wellbeing,PHOENIX (SW) LTD,04/11/2013,386.03
Bath & North East Somerset Council,80274774,LL8,Individualised Budget,P03,Wellbeing,PHOENIX (SW) LTD,04/11/2013,401.29
Bath & North East Somerset Council,80274774,LL8,Individualised Budget,P03,Wellbeing,PHOENIX (SW) LTD,04/11/2013,401.29
Bath & North East Somerset Council,80274774,LL8,Individualised Budget,P03,Wellbeing,PHOENIX (SW) LTD,04/11/2013,426.84
Bath & North East Somerset Council,80274774,LL8,Individualised Budget,P03,Wellbeing,PHOENIX (SW) LTD,04/11/2013,426.84
Bath & North East Somerset Council,80274774,LL8,Individualised Budget,P03,Wellbeing,PHOENIX (SW) LTD,04/11/2013,506.98
Bath & North East Somerset Council,80274774,LL8,Individualised Budget,P03,Wellbeing,PHOENIX (SW) LTD,04/11/2013,506.98
Bath & North East Somerset Council,80274774,LL8,Individualised Budget,P03,Wellbeing,PHOENIX (SW) LTD,04/11/2013,586.2
Bath & North East Somerset Council,80274774,LL8,Individualised Budget,P03,Wellbeing,PHOENIX (SW) LTD,04/11/2013,586.2
Bath & North East Somerset Council,10717708,HA1,Responsive Maintenance,P06,Sustainable Development,HORDERS,04/11/2013,480.92
Bath & North East Somerset Council,10717711,HA3,Planned Maintenance,P06,Sustainable Development,HORDERS,04/11/2013,489.76
Bath & North East Somerset Council,80274921,LL8,Individualised Budget,P03,Wellbeing,REDACTED,04/11/2013,512.57
Bath & North East Somerset Council,80274921,LL8,Individualised Budget,P03,Wellbeing,REDACTED,04/11/2013,512.57
Bath & North East Somerset Council,80274921,LL8,Individualised Budget,P03,Wellbeing,REDACTED,04/11/2013,512.57
Bath & North East Somerset Council,80274921,LL8,Individualised Budget,P03,Wellbeing,REDACTED,04/11/2013,512.57
Bath & North East Somerset Council,80274921,LL8,Individualised Budget,P03,Wellbeing,REDACTED,04/11/2013,512.57
Bath & North East Somerset Council,80274921,LL8,Individualised Budget,P03,Wellbeing,REDACTED,04/11/2013,512.57
Bath & North East Somerset Council,80274921,LL8,Individualised Budget,P03,Wellbeing,REDACTED,04/11/2013,512.57
Bath & North East Somerset Council,80274921,LL8,Individualised Budget,P03,Wellbeing,REDACTED,04/11/2013,512.57
Bath & North East Somerset Council,80274921,LL8,Individualised Budget,P03,Wellbeing,REDACTED,04/11/2013,512.57
Bath & North East Somerset Council,80274921,LL8,Individualised Budget,P03,Wellbeing,REDACTED,04/11/2013,512.57
Bath & North East Somerset Council,80274921,LL8,Individualised Budget,P03,Wellbeing,REDACTED,04/11/2013,512.57
Bath & North East Somerset Council,80274921,LL8,Individualised Budget,P03,Wellbeing,REDACTED,04/11/2013,512.57
Bath & North East Somerset Council,80274921,LL8,Individualised Budget,P03,Wellbeing,REDACTED,04/11/2013,512.57
Bath & North East Somerset Council,80274921,LL8,Individualised Budget,P03,Wellbeing,REDACTED,04/11/2013,512.57
Bath & North East Somerset Council,80274921,LL8,Individualised Budget,P03,Wellbeing,REDACTED,04/11/2013,512.57
Bath & North East Somerset Council,80274921,LL8,Individualised Budget,P03,Wellbeing,REDACTED,04/11/2013,512.57
Bath & North East Somerset Council,80274921,LL8,Individualised Budget,P03,Wellbeing,REDACTED,04/11/2013,512.57
Bath & North East Somerset Council,80274921,LL8,Individualised Budget,P03,Wellbeing,REDACTED,04/11/2013,512.57
Bath & North East Somerset Council,80274921,LL8,Individualised Budget,P03,Wellbeing,REDACTED,04/11/2013,512.57
Bath & North East Somerset Council,80274586,LM6,Nursing Care,P03,Wellbeing,RNID  (REDACTED),04/11/2013,1380.04
Bath & North East Somerset Council,80274586,LM6,Nursing Care,P03,Wellbeing,RNID  (REDACTED),04/11/2013,1380.04
Bath & North East Somerset Council,80274586,LM6,Nursing Care,P03,Wellbeing,RNID  (REDACTED),04/11/2013,2353.59
Bath & North East Somerset Council,80274586,LM6,Nursing Care,P03,Wellbeing,RNID  (REDACTED),04/11/2013,2353.59
Bath & North East Somerset Council,80274599,LM6,Nursing Care,P03,Wellbeing,ROSEVILLE CARE HOMES MELKSHAM,04/11/2013,810
Bath & North East Somerset Council,80274599,LM6,Nursing Care,P03,Wellbeing,ROSEVILLE CARE HOMES MELKSHAM,04/11/2013,810
Bath & North East Somerset Council,80274724,YF2,Fees & Charges,P03,Wellbeing,REDACTED,04/11/2013,1.89
Bath & North East Somerset Council,80274724,YF2,Fees & Charges,P03,Wellbeing,REDACTED,04/11/2013,1.89
Bath & North East Somerset Council,80274724,YF2,Fees & Charges,P03,Wellbeing,REDACTED,04/11/2013,1.89
Bath & North East Somerset Council,80274724,YF2,Fees & Charges,P03,Wellbeing,REDACTED,04/11/2013,1.89
Bath & North East Somerset Council,80274724,YF2,Fees & Charges,P03,Wellbeing,REDACTED,04/11/2013,1.89
Bath & North East Somerset Council,80274724,YF2,Fees & Charges,P03,Wellbeing,REDACTED,04/11/2013,1.89
Bath & North East Somerset Council,80274724,YF2,Fees & Charges,P03,Wellbeing,REDACTED,04/11/2013,1.89
Bath & North East Somerset Council,80274724,YF2,Fees & Charges,P03,Wellbeing,REDACTED,04/11/2013,1.89
Bath & North East Somerset Council,80274724,YF2,Fees & Charges,P03,Wellbeing,REDACTED,04/11/2013,1.89
Bath & North East Somerset Council,80274724,YF2,Fees & Charges,P03,Wellbeing,REDACTED,04/11/2013,1.89
Bath & North East Somerset Council,80274724,YF2,Fees & Charges,P03,Wellbeing,REDACTED,04/11/2013,1.89
Bath & North East Somerset Council,80274724,YF2,Fees & Charges,P03,Wellbeing,REDACTED,04/11/2013,1.89
Bath & North East Somerset Council,80274724,YF2,Fees & Charges,P03,Wellbeing,REDACTED,04/11/2013,1.89
Bath & North East Somerset Council,80274724,YF2,Fees & Charges,P03,Wellbeing,REDACTED,04/11/2013,1.89
Bath & North East Somerset Council,80274724,YF2,Fees & Charges,P03,Wellbeing,REDACTED,04/11/2013,1.89
Bath & North East Somerset Council,80274724,YF2,Fees & Charges,P03,Wellbeing,REDACTED,04/11/2013,1.89
Bath & North East Somerset Council,80274724,YF2,Fees & Charges,P03,Wellbeing,REDACTED,04/11/2013,1.89
Bath & North East Somerset Council,80274724,YF2,Fees & Charges,P03,Wellbeing,REDACTED,04/11/2013,1.89
Bath & North East Somerset Council,80274724,YF2,Fees & Charges,P03,Wellbeing,REDACTED,04/11/2013,1.89
Bath & North East Somerset Council,80274724,YF2,Fees & Charges,P03,Wellbeing,REDACTED,04/11/2013,1.89
Bath & North East Somerset Council,80274724,YF2,Fees & Charges,P03,Wellbeing,REDACTED,04/11/2013,1.89
Bath & North East Somerset Council,80274724,YF2,Fees & Charges,P03,Wellbeing,REDACTED,04/11/2013,1.89
Bath & North East Somerset Council,80274724,YF2,Fees & Charges,P03,Wellbeing,REDACTED,04/11/2013,1.89
Bath & North East Somerset Council,80274724,YF2,Fees & Charges,P03,Wellbeing,REDACTED,04/11/2013,1.89
Bath & North East Somerset Council,80274724,YF2,Fees & Charges,P03,Wellbeing,REDACTED,04/11/2013,1.89
Bath & North East Somerset Council,80274724,YF2,Fees & Charges,P03,Wellbeing,REDACTED,04/11/2013,1.89
Bath & North East Somerset Council,80274724,YF2,Fees & Charges,P03,Wellbeing,REDACTED,04/11/2013,1.89
Bath & North East Somerset Council,80274724,YF2,Fees & Charges,P03,Wellbeing,REDACTED,04/11/2013,1.89
Bath & North East Somerset Council,80274724,YF2,Fees & Charges,P03,Wellbeing,REDACTED,04/11/2013,1.89
Bath & North East Somerset Council,80274724,LL8,Individualised Budget,P03,Wellbeing,REDACTED,04/11/2013,476.52
Bath & North East Somerset Council,80274724,LL8,Individualised Budget,P03,Wellbeing,REDACTED,04/11/2013,476.52
Bath & North East Somerset Council,80274700,LL8,Individualised Budget,P03,Wellbeing,REDACTED,04/11/2013,1156.79
Bath & North East Somerset Council,80274700,LL8,Individualised Budget,P03,Wellbeing,REDACTED,04/11/2013,1156.79
Bath & North East Somerset Council,10717545,HN1,Electricity,P01,Transport,SOUTHERN ELECTRIC PLC,04/11/2013,674.19
Bath & North East Somerset Council,10717620,LJ1,Consultants Fees,P02,"Early Years, Children & Youth",MRS MARGARET PAWLOWSKI,04/11/2013,675
Bath & North East Somerset Council,10717048,EA1,Training,P06,Sustainable Development,ROYAL INSTITUTION OF CHARTERED SURVEYORS,04/11/2013,679.5
Bath & North East Somerset Council,10717720,DB1,Agency Staff,P01,Transport,ROAD RUNNER TAXI BUSES,04/11/2013,688
Bath & North East Somerset Council,10717707,HA1,Responsive Maintenance,P06,Sustainable Development,HORDERS,04/11/2013,638.82
Bath & North East Somerset Council,10717705,HA1,Responsive Maintenance,P06,Sustainable Development,HORDERS,04/11/2013,688.59
Bath & North East Somerset Council,10716775,HE5,Security of Premises,P01,Transport,BRISTOL CITY COUNCIL,04/11/2013,700
Bath & North East Somerset Council,10716775,HE5,Security of Premises,P01,Transport,BRISTOL CITY COUNCIL,04/11/2013,700
Bath & North East Somerset Council,10716600,LX1,Educational Activity,P02,"Early Years, Children & Youth",C J & H M HARTNELL,04/11/2013,708.5
Bath & North East Somerset Council,80274414,LK4,Nursery/Childcare Vouchers,P02,"Early Years, Children & Youth",REDACTED,04/11/2013,711.75
Bath & North East Somerset Council,80274595,LM6,Nursing Care,P03,Wellbeing,SALVATION ARMY,04/11/2013,650
Bath & North East Somerset Council,80274595,LM6,Nursing Care,P03,Wellbeing,SALVATION ARMY,04/11/2013,650
Bath & North East Somerset Council,10717210,LK1,Fees,P03,Wellbeing,IPE ASSOCIATES (UK) LTD,04/11/2013,736.65
Bath & North East Somerset Council,80274855,LL8,Individualised Budget,P03,Wellbeing,REDACTED,04/11/2013,293.64
Bath & North East Somerset Council,80274855,LL8,Individualised Budget,P03,Wellbeing,REDACTED,04/11/2013,293.64
Bath & North East Somerset Council,80274588,LM6,Nursing Care,P03,Wellbeing,SHAW HOMES HOUSING ASSOC LTD,04/11/2013,810
Bath & North East Somerset Council,80274588,LM6,Nursing Care,P03,Wellbeing,SHAW HOMES HOUSING ASSOC LTD,04/11/2013,810
Bath & North East Somerset Council,80274706,LL8,Individualised Budget,P03,Wellbeing,SHAW TRUST LTD,04/11/2013,7.41
Bath & North East Somerset Council,80274706,LL8,Individualised Budget,P03,Wellbeing,SHAW TRUST LTD,04/11/2013,7.41
Bath & North East Somerset Council,80274706,LL8,Individualised Budget,P03,Wellbeing,SHAW TRUST LTD,04/11/2013,7.41
Bath & North East Somerset Council,80274706,LL8,Individualised Budget,P03,Wellbeing,SHAW TRUST LTD,04/11/2013,7.41
Bath & North East Somerset Council,80274706,LL8,Individualised Budget,P03,Wellbeing,SHAW TRUST LTD,04/11/2013,7.41
Bath & North East Somerset Council,80274706,LL8,Individualised Budget,P03,Wellbeing,SHAW TRUST LTD,04/11/2013,7.41
Bath & North East Somerset Council,80274706,LL8,Individualised Budget,P03,Wellbeing,SHAW TRUST LTD,04/11/2013,8.08
Bath & North East Somerset Council,80274706,LL8,Individualised Budget,P03,Wellbeing,SHAW TRUST LTD,04/11/2013,8.08
Bath & North East Somerset Council,80274706,LL8,Individualised Budget,P02,"Early Years, Children & Youth",SHAW TRUST LTD,04/11/2013,23.1
Bath & North East Somerset Council,80274706,LL8,Individualised Budget,P02,"Early Years, Children & Youth",SHAW TRUST LTD,04/11/2013,23.1
Bath & North East Somerset Council,80274706,LL8,Individualised Budget,P03,Wellbeing,SHAW TRUST LTD,04/11/2013,34.57
Bath & North East Somerset Council,80274706,LL8,Individualised Budget,P03,Wellbeing,SHAW TRUST LTD,04/11/2013,34.57
Bath & North East Somerset Council,80274706,LL8,Individualised Budget,P03,Wellbeing,SHAW TRUST LTD,04/11/2013,34.97
Bath & North East Somerset Council,80274706,LL8,Individualised Budget,P03,Wellbeing,SHAW TRUST LTD,04/11/2013,34.97
Bath & North East Somerset Council,80274706,LL8,Individualised Budget,P03,Wellbeing,SHAW TRUST LTD,04/11/2013,46.16
Bath & North East Somerset Council,80274706,LL8,Individualised Budget,P03,Wellbeing,SHAW TRUST LTD,04/11/2013,46.16
Bath & North East Somerset Council,80274706,LL8,Individualised Budget,P03,Wellbeing,SHAW TRUST LTD,04/11/2013,46.61
Bath & North East Somerset Council,80274706,LL8,Individualised Budget,P03,Wellbeing,SHAW TRUST LTD,04/11/2013,46.61
Bath & North East Somerset Council,10717427,LJ4,Contracts,P06,Sustainable Development,ABACUS VALUERS LTD,04/11/2013,750
Bath & North East Somerset Council,10717704,HE1,General Maintenance,P06,Sustainable Development,SEARCY TANSLEY & CO LTD,04/11/2013,750
Bath & North East Somerset Council,80274706,LL8,Individualised Budget,P03,Wellbeing,SHAW TRUST LTD,04/11/2013,47.08
Bath & North East Somerset Council,80274706,LL8,Individualised Budget,P03,Wellbeing,SHAW TRUST LTD,04/11/2013,47.08
Bath & North East Somerset Council,80274706,LL8,Individualised Budget,P03,Wellbeing,SHAW TRUST LTD,04/11/2013,47.58
Bath & North East Somerset Council,80274706,LL8,Individualised Budget,P03,Wellbeing,SHAW TRUST LTD,04/11/2013,47.58
Bath & North East Somerset Council,80274706,LL8,Individualised Budget,P03,Wellbeing,SHAW TRUST LTD,04/11/2013,48.33
Bath & North East Somerset Council,80274706,LL8,Individualised Budget,P03,Wellbeing,SHAW TRUST LTD,04/11/2013,48.33
Bath & North East Somerset Council,80274706,LL8,Individualised Budget,P03,Wellbeing,SHAW TRUST LTD,04/11/2013,53.53
Bath & North East Somerset Council,80274706,LL8,Individualised Budget,P03,Wellbeing,SHAW TRUST LTD,04/11/2013,53.53
Bath & North East Somerset Council,80274706,YF2,Fees & Charges,P03,Wellbeing,SHAW TRUST LTD,04/11/2013,56.71
Bath & North East Somerset Council,80274706,YF2,Fees & Charges,P03,Wellbeing,SHAW TRUST LTD,04/11/2013,56.71
Bath & North East Somerset Council,80274706,YF2,Fees & Charges,P03,Wellbeing,SHAW TRUST LTD,04/11/2013,56.71
Bath & North East Somerset Council,80274706,YF2,Fees & Charges,P03,Wellbeing,SHAW TRUST LTD,04/11/2013,56.71
Bath & North East Somerset Council,80274706,YF2,Fees & Charges,P03,Wellbeing,SHAW TRUST LTD,04/11/2013,56.71
Bath & North East Somerset Council,80274706,YF2,Fees & Charges,P03,Wellbeing,SHAW TRUST LTD,04/11/2013,56.71
Bath & North East Somerset Council,80274706,YF2,Fees & Charges,P03,Wellbeing,SHAW TRUST LTD,04/11/2013,56.71
Bath & North East Somerset Council,80274706,YF2,Fees & Charges,P03,Wellbeing,SHAW TRUST LTD,04/11/2013,56.71
Bath & North East Somerset Council,80274706,YF2,Fees & Charges,P03,Wellbeing,SHAW TRUST LTD,04/11/2013,56.71
Bath & North East Somerset Council,80274706,YF2,Fees & Charges,P03,Wellbeing,SHAW TRUST LTD,04/11/2013,56.71
Bath & North East Somerset Council,10717464,LP5,Software Support,P01,Transport,CHIPSIDE LIMITED,04/11/2013,757.71
Bath & North East Somerset Council,80274706,YF2,Fees & Charges,P03,Wellbeing,SHAW TRUST LTD,04/11/2013,56.71
Bath & North East Somerset Council,80274706,YF2,Fees & Charges,P03,Wellbeing,SHAW TRUST LTD,04/11/2013,56.71
Bath & North East Somerset Council,80274706,YF2,Fees & Charges,P03,Wellbeing,SHAW TRUST LTD,04/11/2013,56.71
Bath & North East Somerset Council,80274706,YF2,Fees & Charges,P03,Wellbeing,SHAW TRUST LTD,04/11/2013,56.71
Bath & North East Somerset Council,80274706,YF2,Fees & Charges,P03,Wellbeing,SHAW TRUST LTD,04/11/2013,56.71
Bath & North East Somerset Council,80274706,YF2,Fees & Charges,P03,Wellbeing,SHAW TRUST LTD,04/11/2013,56.71
Bath & North East Somerset Council,10716775,HE5,Security of Premises,P01,Transport,BRISTOL CITY COUNCIL,04/11/2013,767
Bath & North East Somerset Council,80274422,LK4,Nursery/Childcare Vouchers,P02,"Early Years, Children & Youth",FIRST STEPS NURSERY,04/11/2013,22715.56
Bath & North East Somerset Council,80274706,YF2,Fees & Charges,P03,Wellbeing,SHAW TRUST LTD,04/11/2013,56.71
Bath & North East Somerset Council,80274706,YF2,Fees & Charges,P03,Wellbeing,SHAW TRUST LTD,04/11/2013,56.71
Bath & North East Somerset Council,80274706,YF2,Fees & Charges,P03,Wellbeing,SHAW TRUST LTD,04/11/2013,56.71
Bath & North East Somerset Council,80274706,YF2,Fees & Charges,P03,Wellbeing,SHAW TRUST LTD,04/11/2013,56.71
Bath & North East Somerset Council,80274706,YF2,Fees & Charges,P03,Wellbeing,SHAW TRUST LTD,04/11/2013,56.71
Bath & North East Somerset Council,80274706,YF2,Fees & Charges,P03,Wellbeing,SHAW TRUST LTD,04/11/2013,56.71
Bath & North East Somerset Council,80274706,YF2,Fees & Charges,P03,Wellbeing,SHAW TRUST LTD,04/11/2013,56.71
Bath & North East Somerset Council,80274706,YF2,Fees & Charges,P03,Wellbeing,SHAW TRUST LTD,04/11/2013,56.71
Bath & North East Somerset Council,80274706,YF2,Fees & Charges,P03,Wellbeing,SHAW TRUST LTD,04/11/2013,56.71
Bath & North East Somerset Council,80274706,YF2,Fees & Charges,P03,Wellbeing,SHAW TRUST LTD,04/11/2013,56.71
Bath & North East Somerset Council,80274706,YF2,Fees & Charges,P03,Wellbeing,SHAW TRUST LTD,04/11/2013,56.71
Bath & North East Somerset Council,80274706,YF2,Fees & Charges,P03,Wellbeing,SHAW TRUST LTD,04/11/2013,56.71
Bath & North East Somerset Council,80274706,YF2,Fees & Charges,P03,Wellbeing,SHAW TRUST LTD,04/11/2013,56.71
Bath & North East Somerset Council,80274706,LL8,Individualised Budget,P03,Wellbeing,SHAW TRUST LTD,04/11/2013,58.97
Bath & North East Somerset Council,80274706,LL8,Individualised Budget,P03,Wellbeing,SHAW TRUST LTD,04/11/2013,58.97
Bath & North East Somerset Council,80274706,LL8,Individualised Budget,P03,Wellbeing,SHAW TRUST LTD,04/11/2013,61.06
Bath & North East Somerset Council,80274706,LL8,Individualised Budget,P03,Wellbeing,SHAW TRUST LTD,04/11/2013,61.06
Bath & North East Somerset Council,80274706,LL8,Individualised Budget,P03,Wellbeing,SHAW TRUST LTD,04/11/2013,65.85
Bath & North East Somerset Council,80274706,LL8,Individualised Budget,P03,Wellbeing,SHAW TRUST LTD,04/11/2013,65.85
Bath & North East Somerset Council,80274629,LL4,Direct Payments,P02,"Early Years, Children & Youth",SHAW TRUST LTD,04/11/2013,66.78
Bath & North East Somerset Council,80274629,LL4,Direct Payments,P02,"Early Years, Children & Youth",SHAW TRUST LTD,04/11/2013,66.78
Bath & North East Somerset Council,80274706,LL8,Individualised Budget,P03,Wellbeing,SHAW TRUST LTD,04/11/2013,66.96
Bath & North East Somerset Council,80274706,LL8,Individualised Budget,P03,Wellbeing,SHAW TRUST LTD,04/11/2013,66.96
Bath & North East Somerset Council,80274706,LL8,Individualised Budget,P03,Wellbeing,SHAW TRUST LTD,04/11/2013,68.57
Bath & North East Somerset Council,80274706,LL8,Individualised Budget,P03,Wellbeing,SHAW TRUST LTD,04/11/2013,68.57
Bath & North East Somerset Council,80274629,LL4,Direct Payments,P02,"Early Years, Children & Youth",SHAW TRUST LTD,04/11/2013,72.19
Bath & North East Somerset Council,80274629,LL4,Direct Payments,P02,"Early Years, Children & Youth",SHAW TRUST LTD,04/11/2013,72.19
Bath & North East Somerset Council,80274706,LL8,Individualised Budget,P03,Wellbeing,SHAW TRUST LTD,04/11/2013,79.78
Bath & North East Somerset Council,80274706,LL8,Individualised Budget,P03,Wellbeing,SHAW TRUST LTD,04/11/2013,79.78
Bath & North East Somerset Council,80274706,LL8,Individualised Budget,P03,Wellbeing,SHAW TRUST LTD,04/11/2013,80.08
Bath & North East Somerset Council,80274706,LL8,Individualised Budget,P03,Wellbeing,SHAW TRUST LTD,04/11/2013,80.08
Bath & North East Somerset Council,80274706,LL8,Individualised Budget,P03,Wellbeing,SHAW TRUST LTD,04/11/2013,86.58
Bath & North East Somerset Council,80274706,LL8,Individualised Budget,P03,Wellbeing,SHAW TRUST LTD,04/11/2013,86.58
Bath & North East Somerset Council,80274706,LL8,Individualised Budget,P03,Wellbeing,SHAW TRUST LTD,04/11/2013,95.32
Bath & North East Somerset Council,80274706,LL8,Individualised Budget,P03,Wellbeing,SHAW TRUST LTD,04/11/2013,95.32
Bath & North East Somerset Council,80274706,LL8,Individualised Budget,P03,Wellbeing,SHAW TRUST LTD,04/11/2013,97.28
Bath & North East Somerset Council,80274706,LL8,Individualised Budget,P03,Wellbeing,SHAW TRUST LTD,04/11/2013,97.28
Bath & North East Somerset Council,80274706,LL8,Individualised Budget,P03,Wellbeing,SHAW TRUST LTD,04/11/2013,99.42
Bath & North East Somerset Council,80274706,LL8,Individualised Budget,P03,Wellbeing,SHAW TRUST LTD,04/11/2013,99.42
Bath & North East Somerset Council,80274706,LL8,Individualised Budget,P03,Wellbeing,SHAW TRUST LTD,04/11/2013,100.16
Bath & North East Somerset Council,80274706,LL8,Individualised Budget,P03,Wellbeing,SHAW TRUST LTD,04/11/2013,100.16
Bath & North East Somerset Council,80274706,LL8,Individualised Budget,P03,Wellbeing,SHAW TRUST LTD,04/11/2013,101.08
Bath & North East Somerset Council,80274706,LL8,Individualised Budget,P03,Wellbeing,SHAW TRUST LTD,04/11/2013,101.08
Bath & North East Somerset Council,80274706,LL8,Individualised Budget,P03,Wellbeing,SHAW TRUST LTD,04/11/2013,101.74
Bath & North East Somerset Council,80274706,LL8,Individualised Budget,P03,Wellbeing,SHAW TRUST LTD,04/11/2013,101.74
Bath & North East Somerset Council,80274706,LL8,Individualised Budget,P03,Wellbeing,SHAW TRUST LTD,04/11/2013,102.77
Bath & North East Somerset Council,80274706,LL8,Individualised Budget,P03,Wellbeing,SHAW TRUST LTD,04/11/2013,102.77
Bath & North East Somerset Council,80274706,LL8,Individualised Budget,P03,Wellbeing,SHAW TRUST LTD,04/11/2013,105.72
Bath & North East Somerset Council,80274706,LL8,Individualised Budget,P03,Wellbeing,SHAW TRUST LTD,04/11/2013,105.72
Bath & North East Somerset Council,80274706,LL8,Individualised Budget,P03,Wellbeing,SHAW TRUST LTD,04/11/2013,106.93
Bath & North East Somerset Council,80274706,LL8,Individualised Budget,P03,Wellbeing,SHAW TRUST LTD,04/11/2013,106.93
Bath & North East Somerset Council,80274706,LL8,Individualised Budget,P03,Wellbeing,SHAW TRUST LTD,04/11/2013,107.56
Bath & North East Somerset Council,80274706,LL8,Individualised Budget,P03,Wellbeing,SHAW TRUST LTD,04/11/2013,107.56
Bath & North East Somerset Council,80274706,LL8,Individualised Budget,P03,Wellbeing,SHAW TRUST LTD,04/11/2013,108.46
Bath & North East Somerset Council,80274706,LL8,Individualised Budget,P03,Wellbeing,SHAW TRUST LTD,04/11/2013,108.46
Bath & North East Somerset Council,80274706,LL8,Individualised Budget,P03,Wellbeing,SHAW TRUST LTD,04/11/2013,108.92
Bath & North East Somerset Council,80274706,LL8,Individualised Budget,P03,Wellbeing,SHAW TRUST LTD,04/11/2013,108.92
Bath & North East Somerset Council,80274706,LL8,Individualised Budget,P03,Wellbeing,SHAW TRUST LTD,04/11/2013,111.06
Bath & North East Somerset Council,80274706,LL8,Individualised Budget,P03,Wellbeing,SHAW TRUST LTD,04/11/2013,111.06
Bath & North East Somerset Council,80274706,LL8,Individualised Budget,P03,Wellbeing,SHAW TRUST LTD,04/11/2013,111.5
Bath & North East Somerset Council,80274706,LL8,Individualised Budget,P03,Wellbeing,SHAW TRUST LTD,04/11/2013,111.5
Bath & North East Somerset Council,80274706,LL8,Individualised Budget,P03,Wellbeing,SHAW TRUST LTD,04/11/2013,112.89
Bath & North East Somerset Council,80274706,LL8,Individualised Budget,P03,Wellbeing,SHAW TRUST LTD,04/11/2013,112.89
Bath & North East Somerset Council,80274706,LL8,Individualised Budget,P03,Wellbeing,SHAW TRUST LTD,04/11/2013,113.43
Bath & North East Somerset Council,80274706,LL8,Individualised Budget,P03,Wellbeing,SHAW TRUST LTD,04/11/2013,113.43
Bath & North East Somerset Council,80274706,LL8,Individualised Budget,P03,Wellbeing,SHAW TRUST LTD,04/11/2013,115.2
Bath & North East Somerset Council,80274706,LL8,Individualised Budget,P03,Wellbeing,SHAW TRUST LTD,04/11/2013,124.55
Bath & North East Somerset Council,80274706,LL8,Individualised Budget,P03,Wellbeing,SHAW TRUST LTD,04/11/2013,124.55
Bath & North East Somerset Council,80274706,LL8,Individualised Budget,P03,Wellbeing,SHAW TRUST LTD,04/11/2013,128.56
Bath & North East Somerset Council,80274706,LL8,Individualised Budget,P03,Wellbeing,SHAW TRUST LTD,04/11/2013,128.56
Bath & North East Somerset Council,80274706,LL8,Individualised Budget,P03,Wellbeing,SHAW TRUST LTD,04/11/2013,129.32
Bath & North East Somerset Council,80274706,LL8,Individualised Budget,P03,Wellbeing,SHAW TRUST LTD,04/11/2013,129.32
Bath & North East Somerset Council,80274706,LL8,Individualised Budget,P03,Wellbeing,SHAW TRUST LTD,04/11/2013,133.8
Bath & North East Somerset Council,80274706,LL8,Individualised Budget,P03,Wellbeing,SHAW TRUST LTD,04/11/2013,133.8
Bath & North East Somerset Council,80274706,LL8,Individualised Budget,P03,Wellbeing,SHAW TRUST LTD,04/11/2013,135.43
Bath & North East Somerset Council,80274706,LL8,Individualised Budget,P03,Wellbeing,SHAW TRUST LTD,04/11/2013,135.43
Bath & North East Somerset Council,80274706,LL8,Individualised Budget,P03,Wellbeing,SHAW TRUST LTD,04/11/2013,141.07
Bath & North East Somerset Council,80274706,LL8,Individualised Budget,P03,Wellbeing,SHAW TRUST LTD,04/11/2013,141.07
Bath & North East Somerset Council,80274706,LL8,Individualised Budget,P03,Wellbeing,SHAW TRUST LTD,04/11/2013,146.27
Bath & North East Somerset Council,80274706,LL8,Individualised Budget,P03,Wellbeing,SHAW TRUST LTD,04/11/2013,146.27
Bath & North East Somerset Council,80274706,LL8,Individualised Budget,P03,Wellbeing,SHAW TRUST LTD,04/11/2013,147.5
Bath & North East Somerset Council,80274706,LL8,Individualised Budget,P03,Wellbeing,SHAW TRUST LTD,04/11/2013,147.5
Bath & North East Somerset Council,80274706,LL8,Individualised Budget,P03,Wellbeing,SHAW TRUST LTD,04/11/2013,150.52
Bath & North East Somerset Council,80274706,LL8,Individualised Budget,P03,Wellbeing,SHAW TRUST LTD,04/11/2013,150.52
Bath & North East Somerset Council,80274706,LL8,Individualised Budget,P03,Wellbeing,SHAW TRUST LTD,04/11/2013,165.62
Bath & North East Somerset Council,80274706,LL8,Individualised Budget,P03,Wellbeing,SHAW TRUST LTD,04/11/2013,165.62
Bath & North East Somerset Council,80274706,LL8,Individualised Budget,P03,Wellbeing,SHAW TRUST LTD,04/11/2013,169.2
Bath & North East Somerset Council,80274706,LL8,Individualised Budget,P03,Wellbeing,SHAW TRUST LTD,04/11/2013,169.2
Bath & North East Somerset Council,80274706,LL8,Individualised Budget,P03,Wellbeing,SHAW TRUST LTD,04/11/2013,169.2
Bath & North East Somerset Council,80274706,LL8,Individualised Budget,P03,Wellbeing,SHAW TRUST LTD,04/11/2013,169.2
Bath & North East Somerset Council,80274706,LL8,Individualised Budget,P03,Wellbeing,SHAW TRUST LTD,04/11/2013,170.57
Bath & North East Somerset Council,80274706,LL8,Individualised Budget,P03,Wellbeing,SHAW TRUST LTD,04/11/2013,170.57
Bath & North East Somerset Council,80274706,LL8,Individualised Budget,P03,Wellbeing,SHAW TRUST LTD,04/11/2013,171.93
Bath & North East Somerset Council,80274706,LL8,Individualised Budget,P03,Wellbeing,SHAW TRUST LTD,04/11/2013,171.93
Bath & North East Somerset Council,80274706,LL8,Individualised Budget,P03,Wellbeing,SHAW TRUST LTD,04/11/2013,184.97
Bath & North East Somerset Council,80274706,LL8,Individualised Budget,P03,Wellbeing,SHAW TRUST LTD,04/11/2013,184.97
Bath & North East Somerset Council,80274706,LL8,Individualised Budget,P03,Wellbeing,SHAW TRUST LTD,04/11/2013,196.43
Bath & North East Somerset Council,80274706,LL8,Individualised Budget,P03,Wellbeing,SHAW TRUST LTD,04/11/2013,196.43
Bath & North East Somerset Council,80274706,LL8,Individualised Budget,P03,Wellbeing,SHAW TRUST LTD,04/11/2013,198.88
Bath & North East Somerset Council,80274706,LL8,Individualised Budget,P03,Wellbeing,SHAW TRUST LTD,04/11/2013,198.88
Bath & North East Somerset Council,80274706,LL8,Individualised Budget,P03,Wellbeing,SHAW TRUST LTD,04/11/2013,200.58
Bath & North East Somerset Council,80274706,LL8,Individualised Budget,P03,Wellbeing,SHAW TRUST LTD,04/11/2013,200.58
Bath & North East Somerset Council,80274706,LL8,Individualised Budget,P03,Wellbeing,SHAW TRUST LTD,04/11/2013,202.8
Bath & North East Somerset Council,80274706,LL8,Individualised Budget,P03,Wellbeing,SHAW TRUST LTD,04/11/2013,202.8
Bath & North East Somerset Council,80274706,LL8,Individualised Budget,P03,Wellbeing,SHAW TRUST LTD,04/11/2013,205.61
Bath & North East Somerset Council,80274706,LL8,Individualised Budget,P03,Wellbeing,SHAW TRUST LTD,04/11/2013,205.61
Bath & North East Somerset Council,80274706,LL8,Individualised Budget,P03,Wellbeing,SHAW TRUST LTD,04/11/2013,207.4
Bath & North East Somerset Council,80274706,LL8,Individualised Budget,P03,Wellbeing,SHAW TRUST LTD,04/11/2013,207.4
Bath & North East Somerset Council,80274706,LL8,Individualised Budget,P03,Wellbeing,SHAW TRUST LTD,04/11/2013,208.77
Bath & North East Somerset Council,80274706,LL8,Individualised Budget,P03,Wellbeing,SHAW TRUST LTD,04/11/2013,208.77
Bath & North East Somerset Council,80274706,LL8,Individualised Budget,P03,Wellbeing,SHAW TRUST LTD,04/11/2013,210.19
Bath & North East Somerset Council,80274706,LL8,Individualised Budget,P03,Wellbeing,SHAW TRUST LTD,04/11/2013,210.19
Bath & North East Somerset Council,80274706,LL8,Individualised Budget,P03,Wellbeing,SHAW TRUST LTD,04/11/2013,215.89
Bath & North East Somerset Council,80274706,LL8,Individualised Budget,P03,Wellbeing,SHAW TRUST LTD,04/11/2013,215.89
Bath & North East Somerset Council,80274706,LL8,Individualised Budget,P03,Wellbeing,SHAW TRUST LTD,04/11/2013,221.77
Bath & North East Somerset Council,80274706,LL8,Individualised Budget,P03,Wellbeing,SHAW TRUST LTD,04/11/2013,221.77
Bath & North East Somerset Council,80274706,LL8,Individualised Budget,P03,Wellbeing,SHAW TRUST LTD,04/11/2013,235.15
Bath & North East Somerset Council,80274706,LL8,Individualised Budget,P03,Wellbeing,SHAW TRUST LTD,04/11/2013,235.15
Bath & North East Somerset Council,80274706,LL8,Individualised Budget,P03,Wellbeing,SHAW TRUST LTD,04/11/2013,243.27
Bath & North East Somerset Council,80274706,LL8,Individualised Budget,P03,Wellbeing,SHAW TRUST LTD,04/11/2013,243.27
Bath & North East Somerset Council,80274706,LL8,Individualised Budget,P03,Wellbeing,SHAW TRUST LTD,04/11/2013,243.27
Bath & North East Somerset Council,80274706,LL8,Individualised Budget,P03,Wellbeing,SHAW TRUST LTD,04/11/2013,243.27
Bath & North East Somerset Council,80274706,LL8,Individualised Budget,P03,Wellbeing,SHAW TRUST LTD,04/11/2013,243.27
Bath & North East Somerset Council,80274706,LL8,Individualised Budget,P03,Wellbeing,SHAW TRUST LTD,04/11/2013,243.27
Bath & North East Somerset Council,80274706,LL8,Individualised Budget,P03,Wellbeing,SHAW TRUST LTD,04/11/2013,243.27
Bath & North East Somerset Council,80274706,LL8,Individualised Budget,P03,Wellbeing,SHAW TRUST LTD,04/11/2013,243.27
Bath & North East Somerset Council,80274706,LL8,Individualised Budget,P03,Wellbeing,SHAW TRUST LTD,04/11/2013,243.27
Bath & North East Somerset Council,80274706,LL8,Individualised Budget,P03,Wellbeing,SHAW TRUST LTD,04/11/2013,243.27
Bath & North East Somerset Council,80274706,LL8,Individualised Budget,P03,Wellbeing,SHAW TRUST LTD,04/11/2013,243.27
Bath & North East Somerset Council,80274706,LL8,Individualised Budget,P03,Wellbeing,SHAW TRUST LTD,04/11/2013,243.27
Bath & North East Somerset Council,80274706,LL8,Individualised Budget,P03,Wellbeing,SHAW TRUST LTD,04/11/2013,243.27
Bath & North East Somerset Council,80274706,LL8,Individualised Budget,P03,Wellbeing,SHAW TRUST LTD,04/11/2013,243.27
Bath & North East Somerset Council,80274706,LL8,Individualised Budget,P03,Wellbeing,SHAW TRUST LTD,04/11/2013,243.27
Bath & North East Somerset Council,80274706,LL8,Individualised Budget,P03,Wellbeing,SHAW TRUST LTD,04/11/2013,243.27
Bath & North East Somerset Council,80274706,LL8,Individualised Budget,P03,Wellbeing,SHAW TRUST LTD,04/11/2013,243.27
Bath & North East Somerset Council,80274706,LL8,Individualised Budget,P03,Wellbeing,SHAW TRUST LTD,04/11/2013,243.27
Bath & North East Somerset Council,80274706,LL8,Individualised Budget,P03,Wellbeing,SHAW TRUST LTD,04/11/2013,243.27
Bath & North East Somerset Council,80274706,LL8,Individualised Budget,P03,Wellbeing,SHAW TRUST LTD,04/11/2013,243.27
Bath & North East Somerset Council,80274706,LL8,Individualised Budget,P03,Wellbeing,SHAW TRUST LTD,04/11/2013,243.27
Bath & North East Somerset Council,80274706,LL8,Individualised Budget,P03,Wellbeing,SHAW TRUST LTD,04/11/2013,243.27
Bath & North East Somerset Council,80274706,LL8,Individualised Budget,P03,Wellbeing,SHAW TRUST LTD,04/11/2013,243.27
Bath & North East Somerset Council,80274706,LL8,Individualised Budget,P03,Wellbeing,SHAW TRUST LTD,04/11/2013,243.27
Bath & North East Somerset Council,80274706,LL8,Individualised Budget,P03,Wellbeing,SHAW TRUST LTD,04/11/2013,243.27
Bath & North East Somerset Council,80274706,LL8,Individualised Budget,P03,Wellbeing,SHAW TRUST LTD,04/11/2013,243.27
Bath & North East Somerset Council,80274706,LL8,Individualised Budget,P03,Wellbeing,SHAW TRUST LTD,04/11/2013,243.27
Bath & North East Somerset Council,80274706,LL8,Individualised Budget,P03,Wellbeing,SHAW TRUST LTD,04/11/2013,243.27
Bath & North East Somerset Council,80274706,LL8,Individualised Budget,P03,Wellbeing,SHAW TRUST LTD,04/11/2013,243.27
Bath & North East Somerset Council,80274706,LL8,Individualised Budget,P03,Wellbeing,SHAW TRUST LTD,04/11/2013,243.27
Bath & North East Somerset Council,80274706,LL8,Individualised Budget,P03,Wellbeing,SHAW TRUST LTD,04/11/2013,243.27
Bath & North East Somerset Council,80274706,LL8,Individualised Budget,P03,Wellbeing,SHAW TRUST LTD,04/11/2013,270.55
Bath & North East Somerset Council,80274706,LL8,Individualised Budget,P03,Wellbeing,SHAW TRUST LTD,04/11/2013,270.55
Bath & North East Somerset Council,80274706,LL8,Individualised Budget,P03,Wellbeing,SHAW TRUST LTD,04/11/2013,294.71
Bath & North East Somerset Council,80274706,LL8,Individualised Budget,P03,Wellbeing,SHAW TRUST LTD,04/11/2013,294.71
Bath & North East Somerset Council,80274706,LL8,Individualised Budget,P03,Wellbeing,SHAW TRUST LTD,04/11/2013,309.92
Bath & North East Somerset Council,80274706,LL8,Individualised Budget,P03,Wellbeing,SHAW TRUST LTD,04/11/2013,309.92
Bath & North East Somerset Council,80274706,LL8,Individualised Budget,P03,Wellbeing,SHAW TRUST LTD,04/11/2013,315.73
Bath & North East Somerset Council,80274706,LL8,Individualised Budget,P03,Wellbeing,SHAW TRUST LTD,04/11/2013,315.73
Bath & North East Somerset Council,80274706,LL8,Individualised Budget,P03,Wellbeing,SHAW TRUST LTD,04/11/2013,338.27
Bath & North East Somerset Council,80274706,LL8,Individualised Budget,P03,Wellbeing,SHAW TRUST LTD,04/11/2013,338.27
Bath & North East Somerset Council,80274706,LL8,Individualised Budget,P03,Wellbeing,SHAW TRUST LTD,04/11/2013,345.23
Bath & North East Somerset Council,80274706,LL8,Individualised Budget,P03,Wellbeing,SHAW TRUST LTD,04/11/2013,345.23
Bath & North East Somerset Council,80274706,LL8,Individualised Budget,P03,Wellbeing,SHAW TRUST LTD,04/11/2013,363.28
Bath & North East Somerset Council,80274706,LL8,Individualised Budget,P03,Wellbeing,SHAW TRUST LTD,04/11/2013,363.28
Bath & North East Somerset Council,80274706,LL8,Individualised Budget,P03,Wellbeing,SHAW TRUST LTD,04/11/2013,383.43
Bath & North East Somerset Council,80274706,LL8,Individualised Budget,P03,Wellbeing,SHAW TRUST LTD,04/11/2013,383.43
Bath & North East Somerset Council,80274706,LL8,Individualised Budget,P03,Wellbeing,SHAW TRUST LTD,04/11/2013,395
Bath & North East Somerset Council,80274706,LL8,Individualised Budget,P03,Wellbeing,SHAW TRUST LTD,04/11/2013,395
Bath & North East Somerset Council,80274706,LL8,Individualised Budget,P03,Wellbeing,SHAW TRUST LTD,04/11/2013,419.53
Bath & North East Somerset Council,80274706,LL8,Individualised Budget,P03,Wellbeing,SHAW TRUST LTD,04/11/2013,419.53
Bath & North East Somerset Council,80274706,LL8,Individualised Budget,P03,Wellbeing,SHAW TRUST LTD,04/11/2013,433.61
Bath & North East Somerset Council,80274706,LL8,Individualised Budget,P03,Wellbeing,SHAW TRUST LTD,04/11/2013,433.61
Bath & North East Somerset Council,80274706,LL8,Individualised Budget,P03,Wellbeing,SHAW TRUST LTD,04/11/2013,450.28
Bath & North East Somerset Council,80274706,LL8,Individualised Budget,P03,Wellbeing,SHAW TRUST LTD,04/11/2013,450.28
Bath & North East Somerset Council,80274706,LL8,Individualised Budget,P03,Wellbeing,SHAW TRUST LTD,04/11/2013,458.32
Bath & North East Somerset Council,80274706,LL8,Individualised Budget,P03,Wellbeing,SHAW TRUST LTD,04/11/2013,458.32
Bath & North East Somerset Council,80274629,LL4,Direct Payments,P03,Wellbeing,SHAW TRUST LTD,04/11/2013,517.21
Bath & North East Somerset Council,80274629,LL4,Direct Payments,P03,Wellbeing,SHAW TRUST LTD,04/11/2013,517.21
Bath & North East Somerset Council,80274706,LL8,Individualised Budget,P03,Wellbeing,SHAW TRUST LTD,04/11/2013,620.27
Bath & North East Somerset Council,80274706,LL8,Individualised Budget,P03,Wellbeing,SHAW TRUST LTD,04/11/2013,620.27
Bath & North East Somerset Council,80274706,LL8,Individualised Budget,P03,Wellbeing,SHAW TRUST LTD,04/11/2013,696.77
Bath & North East Somerset Council,80274706,LL8,Individualised Budget,P03,Wellbeing,SHAW TRUST LTD,04/11/2013,696.77
Bath & North East Somerset Council,80274706,LL8,Individualised Budget,P03,Wellbeing,SHAW TRUST LTD,04/11/2013,701.36
Bath & North East Somerset Council,80274706,LL8,Individualised Budget,P03,Wellbeing,SHAW TRUST LTD,04/11/2013,701.36
Bath & North East Somerset Council,80274706,LL8,Individualised Budget,P03,Wellbeing,SHAW TRUST LTD,04/11/2013,742.47
Bath & North East Somerset Council,80274706,LL8,Individualised Budget,P03,Wellbeing,SHAW TRUST LTD,04/11/2013,742.47
Bath & North East Somerset Council,80274705,LL8,Individualised Budget,P03,Wellbeing,SHAW TRUST LTD,04/11/2013,800
Bath & North East Somerset Council,80274706,LL8,Individualised Budget,P03,Wellbeing,SHAW TRUST LTD,04/11/2013,826
Bath & North East Somerset Council,80274706,LL8,Individualised Budget,P03,Wellbeing,SHAW TRUST LTD,04/11/2013,826
Bath & North East Somerset Council,80274706,LL8,Individualised Budget,P03,Wellbeing,SHAW TRUST LTD,04/11/2013,904.63
Bath & North East Somerset Council,80274706,LL8,Individualised Budget,P03,Wellbeing,SHAW TRUST LTD,04/11/2013,904.63
Bath & North East Somerset Council,80274706,LL8,Individualised Budget,P03,Wellbeing,SHAW TRUST LTD,04/11/2013,989.25
Bath & North East Somerset Council,80274706,LL8,Individualised Budget,P03,Wellbeing,SHAW TRUST LTD,04/11/2013,989.25
Bath & North East Somerset Council,80274705,LL8,Individualised Budget,P03,Wellbeing,SHAW TRUST LTD,04/11/2013,1300
Bath & North East Somerset Council,80274706,LL8,Individualised Budget,P03,Wellbeing,SHAW TRUST LTD,04/11/2013,1778.16
Bath & North East Somerset Council,80274706,LL8,Individualised Budget,P03,Wellbeing,SHAW TRUST LTD,04/11/2013,1778.16
Bath & North East Somerset Council,80274706,LL8,Individualised Budget,P03,Wellbeing,SHAW TRUST LTD,04/11/2013,6920.29
Bath & North East Somerset Council,80274907,LL8,Individualised Budget,P03,Wellbeing,REDACTED,04/11/2013,512.57
Bath & North East Somerset Council,80274907,LL8,Individualised Budget,P03,Wellbeing,REDACTED,04/11/2013,512.57
Bath & North East Somerset Council,80274591,LM6,Nursing Care,P03,Wellbeing,SHERWOOD LODGE,04/11/2013,1361.76
Bath & North East Somerset Council,80274591,LM6,Nursing Care,P03,Wellbeing,SHERWOOD LODGE,04/11/2013,1361.76
Bath & North East Somerset Council,10716312,LA1,Equipment Purchase (Non Medical),P03,Wellbeing,INVACARE (UK) LTD,04/11/2013,836
Bath & North East Somerset Council,10717716,LV2,Contributions to Organisations,P03,Wellbeing,SIRONA CARE & HEALTH C.I.C.,04/11/2013,347917.17
Bath & North East Somerset Council,80274421,LK4,Nursery/Childcare Vouchers,P02,"Early Years, Children & Youth",FIRST STEPS NURSERY,04/11/2013,25473.23
Bath & North East Somerset Council,10717610,3N7,Misc. Costs,P01,Transport,BRUNEL SURVEYS LTD,04/11/2013,850
Bath & North East Somerset Council,10717208,LJ1,Consultants Fees,P04,Leader,PLACE STUDIO LTD,04/11/2013,850
Bath & North East Somerset Council,10717625,LK1,Fees,P02,"Early Years, Children & Youth",FIRST RESPONSE TRAINING & CONSULTANC,04/11/2013,852
Bath & North East Somerset Council,80274513,LK4,Nursery/Childcare Vouchers,P02,"Early Years, Children & Youth",FOOTSTEPS NURSERY (PAULTON),04/11/2013,6145.25
Bath & North East Somerset Council,10717723,3F7,External Fees,P01,Transport,LANDSCAPE PROJECTS,04/11/2013,950
Bath & North East Somerset Council,80274435,LK4,Nursery/Childcare Vouchers,P02,"Early Years, Children & Youth",MOGGHILL HOUSE NURSERY SCHOOL,04/11/2013,975
Bath & North East Somerset Council,80274449,LK4,Nursery/Childcare Vouchers,P02,"Early Years, Children & Youth",SOMERSET COUNTY COUNCIL,04/11/2013,975
Bath & North East Somerset Council,80274516,LK4,Nursery/Childcare Vouchers,P02,"Early Years, Children & Youth",GIGGLES,04/11/2013,975
Bath & North East Somerset Council,80274418,LK4,Nursery/Childcare Vouchers,P02,"Early Years, Children & Youth",GREEN SHOOTS (BATH) LTD,04/11/2013,3301.5
Bath & North East Somerset Council,80274620,LM6,Nursing Care,P03,Wellbeing,STANTON COURT,04/11/2013,650
Bath & North East Somerset Council,80274620,LM6,Nursing Care,P03,Wellbeing,STANTON COURT,04/11/2013,650
Bath & North East Somerset Council,80274620,LM6,Nursing Care,P03,Wellbeing,STANTON COURT,04/11/2013,650
Bath & North East Somerset Council,80274620,LM6,Nursing Care,P03,Wellbeing,STANTON COURT,04/11/2013,650
Bath & North East Somerset Council,80274620,LM6,Nursing Care,P03,Wellbeing,STANTON COURT,04/11/2013,650
Bath & North East Somerset Council,80274620,LM6,Nursing Care,P03,Wellbeing,STANTON COURT,04/11/2013,650
Bath & North East Somerset Council,80274620,LM6,Nursing Care,P03,Wellbeing,STANTON COURT,04/11/2013,750
Bath & North East Somerset Council,80274620,LM6,Nursing Care,P03,Wellbeing,STANTON COURT,04/11/2013,750
Bath & North East Somerset Council,80274620,LM6,Nursing Care,P03,Wellbeing,STANTON COURT,04/11/2013,821
Bath & North East Somerset Council,80274620,LM6,Nursing Care,P03,Wellbeing,STANTON COURT,04/11/2013,821
Bath & North East Somerset Council,80274620,LM6,Nursing Care,P03,Wellbeing,STANTON COURT,04/11/2013,836.8
Bath & North East Somerset Council,80274620,LM6,Nursing Care,P03,Wellbeing,STANTON COURT,04/11/2013,836.8
Bath & North East Somerset Council,10717713,LJ4,Contracts,P06,Sustainable Development,ACOUSTIGUIDE LTD,04/11/2013,1000
Bath & North East Somerset Council,10715305,LF3,Books & Publications,P03,Wellbeing,ROYAL UNITED HOSPITAL NHS TRUST,04/11/2013,1000
Bath & North East Somerset Council,80274511,LK4,Nursery/Childcare Vouchers,P02,"Early Years, Children & Youth",LAUREL FARM KINDERGARTEN,04/11/2013,1038.38
Bath & North East Somerset Council,80274490,LK4,Nursery/Childcare Vouchers,P02,"Early Years, Children & Youth",REDACTED,04/11/2013,1067.3
Bath & North East Somerset Council,10717439,LF5,Postages,P07,Community Resources,TNT POST SOUTH WEST LTD,04/11/2013,1076.21
Bath & North East Somerset Council,10715243,3G1,Grants/Advances,P03,Wellbeing,WE CARE & REPAIR LTD,04/11/2013,1088.52
Bath & North East Somerset Council,80274494,LK4,Nursery/Childcare Vouchers,P02,"Early Years, Children & Youth",REDACTED,04/11/2013,711.5
Bath & North East Somerset Council,10716775,HE5,Security of Premises,P01,Transport,BRISTOL CITY COUNCIL,04/11/2013,1100
Bath & North East Somerset Council,80274594,LM6,Nursing Care,P03,Wellbeing,SUNNYMEDE LTD,04/11/2013,650
Bath & North East Somerset Council,80274594,LM6,Nursing Care,P03,Wellbeing,SUNNYMEDE LTD,04/11/2013,650
Bath & North East Somerset Council,80274594,LM6,Nursing Care,P03,Wellbeing,SUNNYMEDE LTD,04/11/2013,650
Bath & North East Somerset Council,80274594,LM6,Nursing Care,P03,Wellbeing,SUNNYMEDE LTD,04/11/2013,650
Bath & North East Somerset Council,80274505,LK4,Nursery/Childcare Vouchers,P02,"Early Years, Children & Youth",REDACTED,04/11/2013,1462.5
Bath & North East Somerset Council,80274423,LK4,Nursery/Childcare Vouchers,P02,"Early Years, Children & Youth",HOPSCOTCH NURSERY SCHOOL,04/11/2013,3078.39
Bath & North East Somerset Council,80274606,LM6,Nursing Care,P03,Wellbeing,T C CAREHOME LTD,04/11/2013,650
Bath & North East Somerset Council,80274606,LM6,Nursing Care,P03,Wellbeing,T C CAREHOME LTD,04/11/2013,650
Bath & North East Somerset Council,80274606,LM6,Nursing Care,P03,Wellbeing,T C CAREHOME LTD,04/11/2013,650
Bath & North East Somerset Council,80274606,LM6,Nursing Care,P03,Wellbeing,T C CAREHOME LTD,04/11/2013,650
Bath & North East Somerset Council,10716705,EA1,Training,P01,Transport,TMS CONSULTANCY,04/11/2013,1310
Bath & North East Somerset Council,10715649,EA1,Training,P04,Leader,CHANGINGPEOPLE LTD,04/11/2013,1320.8
Bath & North East Somerset Council,80274416,LK4,Nursery/Childcare Vouchers,P02,"Early Years, Children & Youth",REDACTED,04/11/2013,975
Bath & North East Somerset Council,10717427,LJ4,Contracts,P06,Sustainable Development,ABACUS VALUERS LTD,04/11/2013,1400
Bath & North East Somerset Council,10716133,KA1,Repairs & Maintenance,P01,Transport,PARKEON LIMITED,04/11/2013,1440
Bath & North East Somerset Council,10717305,LK1,Fees,P04,Leader,HOMEBASE LTD,04/11/2013,1476.64
Bath & North East Somerset Council,80274436,LK4,Nursery/Childcare Vouchers,P02,"Early Years, Children & Youth",MONKTON COMBE PRE-PREPATORY SCHOOL,04/11/2013,1483.75
Bath & North East Somerset Council,80274611,LM6,Nursing Care,P03,Wellbeing,THE SUSSEX BEACON,04/11/2013,1400
Bath & North East Somerset Council,80274611,LM6,Nursing Care,P03,Wellbeing,THE SUSSEX BEACON,04/11/2013,1400
Bath & North East Somerset Council,10717131,KD1,Employees Public Transport,P04,Leader,N WASHBOURNE PERSONAL DRIVER,04/11/2013,1500
Bath & North East Somerset Council,80274509,LK4,Nursery/Childcare Vouchers,P02,"Early Years, Children & Youth",LITTLE WILLOW DAY NURSERY,04/11/2013,10268.93
Bath & North East Somerset Council,80274427,LK4,Nursery/Childcare Vouchers,P02,"Early Years, Children & Youth",LITTLE FIDGETS PLAYGROUP,04/11/2013,1877.85
Bath & North East Somerset Council,80274617,LM6,Nursing Care,P03,Wellbeing,TRACS LIMITED,04/11/2013,1542
Bath & North East Somerset Council,80274617,LM6,Nursing Care,P03,Wellbeing,TRACS LIMITED,04/11/2013,1542
Bath & North East Somerset Council,80274432,LK4,Nursery/Childcare Vouchers,P02,"Early Years, Children & Youth",MARKSBURY & DISTRICT PLAYGROUP,04/11/2013,2007.53
Bath & North East Somerset Council,80274453,LK4,Nursery/Childcare Vouchers,P02,"Early Years, Children & Youth",STANTON DREW & PENSFORD PRESCH,04/11/2013,2007.54
Bath & North East Somerset Council,80274614,LM6,Nursing Care,P03,Wellbeing,TRU REHABILITATION UNIT LTD,04/11/2013,2870
Bath & North East Somerset Council,80274614,LM6,Nursing Care,P03,Wellbeing,TRU REHABILITATION UNIT LTD,04/11/2013,2870
Bath & North East Somerset Council,10716260,LH5,Marketing,P07,Community Resources,COSTAR UK LIMITED,04/11/2013,2244
Bath & North East Somerset Council,80274510,LK4,Nursery/Childcare Vouchers,P02,"Early Years, Children & Youth",REDACTED,04/11/2013,998.72
Bath & North East Somerset Council,10716349,LP1,Hardware Purchase,P02,"Early Years, Children & Youth",DELL PRODUCTS,04/11/2013,2359.6
Bath & North East Somerset Council,10717622,LE1,Education Payment (independent school),P02,"Early Years, Children & Youth",THE PARAGON SCHOOL,04/11/2013,2445
Bath & North East Somerset Council,80274417,LK4,Nursery/Childcare Vouchers,P02,"Early Years, Children & Youth",MARSHFIELD PRE-SCHOOL,04/11/2013,975
Bath & North East Somerset Council,80274439,LK4,Nursery/Childcare Vouchers,P02,"Early Years, Children & Youth",OAK TREE DAY NURSERY,04/11/2013,2644.87
Bath & North East Somerset Council,80274411,LK4,Nursery/Childcare Vouchers,P02,"Early Years, Children & Youth",FARMBOROUGH PLAYGROUP,04/11/2013,2670.2
Bath & North East Somerset Council,10717648,LJ4,Contracts,P02,"Early Years, Children & Youth",TIME2SHARE,04/11/2013,2689.25
Bath & North East Somerset Council,10717378,HA5,Service Contract PCB,P07,Community Resources,GREYFIELD PROPERTIES,04/11/2013,2714.47
Bath & North East Somerset Council,10716344,LP1,Hardware Purchase,P02,"Early Years, Children & Youth",DELL PRODUCTS,04/11/2013,2717.46
Bath & North East Somerset Council,80274462,LK4,Nursery/Childcare Vouchers,P02,"Early Years, Children & Youth",WHISTY PLAYGROUP,04/11/2013,2721.05
Bath & North East Somerset Council,10714762,HX9,Other Premises Related,P05,Neighbourhoods,PLAYFORCE LTD,04/11/2013,2215
Bath & North East Somerset Council,80274621,LM6,Nursing Care,P03,Wellbeing,WESTCROFT CARE LTD,04/11/2013,650
Bath & North East Somerset Council,80274621,LM6,Nursing Care,P03,Wellbeing,WESTCROFT CARE LTD,04/11/2013,650
Bath & North East Somerset Council,80274621,LM6,Nursing Care,P03,Wellbeing,WESTCROFT CARE LTD,04/11/2013,650
Bath & North East Somerset Council,80274621,LM6,Nursing Care,P03,Wellbeing,WESTCROFT CARE LTD,04/11/2013,650
Bath & North East Somerset Council,80274608,LM6,Nursing Care,P03,Wellbeing,WESTMINSTER HEALTHCARE LTD,04/11/2013,966.15
Bath & North East Somerset Council,80274608,LM6,Nursing Care,P03,Wellbeing,WESTMINSTER HEALTHCARE LTD,04/11/2013,966.15
Bath & North East Somerset Council,80274441,LK4,Nursery/Childcare Vouchers,P02,"Early Years, Children & Youth",BATHAMPTON PLAYGROUP,04/11/2013,2948.28
Bath & North East Somerset Council,10717649,HX9,Other Premises Related,P03,Wellbeing,POWERGUARDS RAMPING SYSTEMS LTD,04/11/2013,1223.33
Bath & North East Somerset Council,80274431,LK4,Nursery/Childcare Vouchers,P02,"Early Years, Children & Youth",MAGIC BOX PRE-SCHOOL,04/11/2013,3392.02
Bath & North East Somerset Council,80274434,LK4,Nursery/Childcare Vouchers,P02,"Early Years, Children & Youth",MOGGHILL HOUSE NURSERY SCHOOL,04/11/2013,3474.59
Bath & North East Somerset Council,80274869,LM3,Residential Care,P03,Wellbeing,WHITEHAVEN RESIDENTIAL HOME,04/11/2013,70.71
Bath & North East Somerset Council,80274455,LK4,Nursery/Childcare Vouchers,P02,"Early Years, Children & Youth",SUNSHINE PRE SCHOOL,04/11/2013,3807.37
Bath & North East Somerset Council,80274512,LK4,Nursery/Childcare Vouchers,P02,"Early Years, Children & Youth",REDACTED,04/11/2013,975
Bath & North East Somerset Council,80274497,LK4,Nursery/Childcare Vouchers,P02,"Early Years, Children & Youth",REDACTED,04/11/2013,711.75
Bath & North East Somerset Council,80274869,LM3,Residential Care,P03,Wellbeing,WHITEHAVEN RESIDENTIAL HOME,04/11/2013,424.29
Bath & North East Somerset Council,10717644,LJ4,Contracts,P01,Transport,MCC - PATROL/BUS,04/11/2013,4044.6
Bath & North East Somerset Council,80274504,LK4,Nursery/Childcare Vouchers,P02,"Early Years, Children & Youth",REDACTED,04/11/2013,711.75
Bath & North East Somerset Council,80274424,LK4,Nursery/Childcare Vouchers,P02,"Early Years, Children & Youth",JACK & JILL PLAYGROUP,04/11/2013,4268.88
Bath & North East Somerset Council,80274467,LK4,Nursery/Childcare Vouchers,P02,"Early Years, Children & Youth",APPLE TREE DAY NURSERY,04/11/2013,4626.37
Bath & North East Somerset Council,80274481,LK4,Nursery/Childcare Vouchers,P02,"Early Years, Children & Youth",STEPPING STONES PLAYGROUP,04/11/2013,4638.07
Bath & North East Somerset Council,10717720,LJ4,Contracts,P01,Transport,ROAD RUNNER TAXI BUSES,04/11/2013,4678.34
Bath & North East Somerset Council,10715990,3C4,Building Works,P01,Transport,SPRINGFIELD ROAD SURFACING CO,04/11/2013,1105
Bath & North East Somerset Council,80274488,LK4,Nursery/Childcare Vouchers,P02,"Early Years, Children & Youth",LITTLE SCRIBBLERS LTD,04/11/2013,4780.76
Bath & North East Somerset Council,80274445,LK4,Nursery/Childcare Vouchers,P02,"Early Years, Children & Youth",PINOCCHIO DAY NURSERY,04/11/2013,4839.9
Bath & North East Somerset Council,80274486,LK4,Nursery/Childcare Vouchers,P02,"Early Years, Children & Youth",REDACTED,04/11/2013,6414.85
Bath & North East Somerset Council,10716776,LF6,Subscriptions,P04,Leader,REGEN SW,04/11/2013,5000
Bath & North East Somerset Council,80274485,LK4,Nursery/Childcare Vouchers,P02,"Early Years, Children & Youth",CLUTTON PLAYGROUP,04/11/2013,5122.65
Bath & North East Somerset Council,80274517,LK4,Nursery/Childcare Vouchers,P02,"Early Years, Children & Youth",REDACTED,04/11/2013,4015.05
Bath & North East Somerset Council,80274410,LK4,Nursery/Childcare Vouchers,P02,"Early Years, Children & Youth",ACORN PRE-SCHOOL,04/11/2013,5422.64
Bath & North East Somerset Council,80274470,LK4,Nursery/Childcare Vouchers,P02,"Early Years, Children & Youth",YMCA DAY NURSERY,04/11/2013,5634.01
Bath & North East Somerset Council,80274507,LK4,Nursery/Childcare Vouchers,P02,"Early Years, Children & Youth",EAST HARPTREE PRE-SCHOOL,04/11/2013,6232.82
Bath & North East Somerset Council,80274430,LK4,Nursery/Childcare Vouchers,P02,"Early Years, Children & Youth",BATH OPPORTUNITY PRE-SCHOOL,04/11/2013,6299.76
Bath & North East Somerset Council,10716634,3G1,Grants/Advances,P03,Wellbeing,DOLPHIN LIFTS (WESTERN) LTD,04/11/2013,6325
Bath & North East Somerset Council,80274412,LK4,Nursery/Childcare Vouchers,P02,"Early Years, Children & Youth",SNAPDRAGONS NURSERIES (KEYNHSAM) LTD,04/11/2013,6099.11
Bath & North East Somerset Council,80274480,LK4,Nursery/Childcare Vouchers,P02,"Early Years, Children & Youth",OLDFIELD PARK BAPTIST PRE-SCHOOL,04/11/2013,6427.31
Bath & North East Somerset Council,80274428,LK4,Nursery/Childcare Vouchers,P02,"Early Years, Children & Youth",LONGVERNAL NURSERY SCHOOL,04/11/2013,6472.7
Bath & North East Somerset Council,80274498,LK4,Nursery/Childcare Vouchers,P02,"Early Years, Children & Youth",FRESHFORD PRE-SCHOOL,04/11/2013,6473.36
Bath & North East Somerset Council,80274444,LK4,Nursery/Childcare Vouchers,P02,"Early Years, Children & Youth",PETER PAN PLAYGROUP,04/11/2013,6622.55
Bath & North East Somerset Council,80274869,LM3,Residential Care,P03,Wellbeing,WHITEHAVEN RESIDENTIAL HOME,04/11/2013,495
Bath & North East Somerset Council,80274461,LK4,Nursery/Childcare Vouchers,P02,"Early Years, Children & Youth",WESTWOOD NURSERY SCHOOL,04/11/2013,6706.87
Bath & North East Somerset Council,80274478,LK4,Nursery/Childcare Vouchers,P02,"Early Years, Children & Youth",MAGNA MINORS DAY NURSERY,04/11/2013,7070.06
Bath & North East Somerset Council,80274472,LK4,Nursery/Childcare Vouchers,P02,"Early Years, Children & Youth",SOUTHDOWN INFANTS SCHOOL,04/11/2013,10703.63
Bath & North East Somerset Council,80274496,LK4,Nursery/Childcare Vouchers,P02,"Early Years, Children & Youth",S J SCUDAMORE,04/11/2013,7417.52
Bath & North East Somerset Council,80274474,LK4,Nursery/Childcare Vouchers,P02,"Early Years, Children & Youth",CATERPILLARS DAY NURSERY,04/11/2013,7737.14
Bath & North East Somerset Council,80274463,LK4,Nursery/Childcare Vouchers,P02,"Early Years, Children & Youth",BO PEEP PRE SCHOOL,04/11/2013,7776.27
Bath & North East Somerset Council,80274438,LK4,Nursery/Childcare Vouchers,P02,"Early Years, Children & Youth",NOAHS ARK PRE-SCHOOL,04/11/2013,7785.45
Bath & North East Somerset Council,80274460,LK4,Nursery/Childcare Vouchers,P02,"Early Years, Children & Youth",TWERTON INFANT SCHOOL,04/11/2013,7823.77
Bath & North East Somerset Council,10716978,3C4,Building Works,P05,Neighbourhoods,TPM (SOUTH WEST) LTD,04/11/2013,362
Bath & North East Somerset Council,80274483,LK4,Nursery/Childcare Vouchers,P02,"Early Years, Children & Youth",FOOTSTEPS (SOUTHWEST) LTD,04/11/2013,7954.03
Bath & North East Somerset Council,80274471,LK4,Nursery/Childcare Vouchers,P02,"Early Years, Children & Youth",NOAH'S ARK PRE-SCHOOL,04/11/2013,8340.62
Bath & North East Somerset Council,80274442,LK4,Nursery/Childcare Vouchers,P02,"Early Years, Children & Youth",PEPPERPOT BATHFORD PRE-SCHOOL,04/11/2013,8378.03
Bath & North East Somerset Council,80274459,LK4,Nursery/Childcare Vouchers,P02,"Early Years, Children & Youth",TIMSBURY PRE-SCHOOL,04/11/2013,8390.44
Bath & North East Somerset Council,80274466,LK4,Nursery/Childcare Vouchers,P02,"Early Years, Children & Youth",ST ANDREWS PRIMARY SCHOOL,04/11/2013,4578.92
Bath & North East Somerset Council,80274433,LK4,Nursery/Childcare Vouchers,P02,"Early Years, Children & Youth",MIDSOMER NORTON PRIMARY SCHOO,04/11/2013,9229.03
Bath & North East Somerset Council,10717675,LJ4,Contracts,P01,Transport,MINIBUS TRAVEL,04/11/2013,9249.68
Bath & North East Somerset Council,80274448,LK4,Nursery/Childcare Vouchers,P02,"Early Years, Children & Youth",SNAPDRAGONS NURSERY,04/11/2013,9483.83
Bath & North East Somerset Council,80274499,LK4,Nursery/Childcare Vouchers,P02,"Early Years, Children & Youth",ST KEYNA PRIMARY SCHOOL,04/11/2013,9760.1
Bath & North East Somerset Council,80274429,LK4,Nursery/Childcare Vouchers,P02,"Early Years, Children & Youth",LONGVERNAL NURSERY SCHOOL,04/11/2013,9761.7
Bath & North East Somerset Council,80274450,LK4,Nursery/Childcare Vouchers,P02,"Early Years, Children & Youth",ST NICHOLAS PRESCHOOL,04/11/2013,9853.03
Bath & North East Somerset Council,80274508,LK4,Nursery/Childcare Vouchers,P02,"Early Years, Children & Youth",CASTLE PRIMARY SCHOOL,04/11/2013,9915.22
Bath & North East Somerset Council,10717735,HA5,Service Contract PCB,P07,Community Resources,TPM (SOUTH WEST) LTD,04/11/2013,530
Bath & North East Somerset Council,80274477,LK4,Nursery/Childcare Vouchers,P02,"Early Years, Children & Youth",ST MARYS C OF E PRIMARY SCHOOL,04/11/2013,3642.52
Bath & North East Somerset Council,80274500,LK4,Nursery/Childcare Vouchers,P02,"Early Years, Children & Youth",NEXT STEPS NURSERY,04/11/2013,11317.5
Bath & North East Somerset Council,10716978,3C4,Building Works,P05,Neighbourhoods,TPM (SOUTH WEST) LTD,04/11/2013,588
Bath & North East Somerset Council,80274446,LK4,Nursery/Childcare Vouchers,P02,"Early Years, Children & Youth",QUEENS ROAD CHURCH PRE SCHOOL,04/11/2013,11742.9
Bath & North East Somerset Council,80274475,LK4,Nursery/Childcare Vouchers,P02,"Early Years, Children & Youth",ST SAVIOURS C OF E INFANTS SCHOOL,04/11/2013,9468.13
Bath & North East Somerset Council,80274464,LK4,Nursery/Childcare Vouchers,P02,"Early Years, Children & Youth",WIDCOMBE ACORNS PRE-SCHOOL,04/11/2013,13514.15
Bath & North East Somerset Council,80274426,LK4,Nursery/Childcare Vouchers,P02,"Early Years, Children & Youth",KINGSWOOD PRE SCHOOL,04/11/2013,15310.26
Bath & North East Somerset Council,80274454,LK4,Nursery/Childcare Vouchers,P02,"Early Years, Children & Youth",SUNFLOWERS NURSERY LTD,04/11/2013,15541.4
Bath & North East Somerset Council,80274493,LK4,Nursery/Childcare Vouchers,P02,"Early Years, Children & Youth",REDACTED,04/11/2013,711.75
Bath & North East Somerset Council,10717354,LX6,Bus Revenue Support,P01,Transport,CT COACHES,04/11/2013,16363.92
Bath & North East Somerset Council,80274447,LK4,Nursery/Childcare Vouchers,P02,"Early Years, Children & Youth",ROYAL HIGH SCHOOL,04/11/2013,16614
Bath & North East Somerset Council,10716731,LK1,Fees,P05,Neighbourhoods,CABOT LEARNING FEDERATION,04/11/2013,16770
Bath & North East Somerset Council,80274457,LK4,Nursery/Childcare Vouchers,P02,"Early Years, Children & Youth",THE PARAGON SCHOOL,04/11/2013,17402.1
Bath & North East Somerset Council,80274458,LK4,Nursery/Childcare Vouchers,P02,"Early Years, Children & Youth",TIDDLERS DAY NURSERY LTD,04/11/2013,20601.05
Bath & North East Somerset Council,80274440,LK4,Nursery/Childcare Vouchers,P02,"Early Years, Children & Youth",PEASEDOWN ST JOHN PRIMARY SCHOOL,04/11/2013,22768.43
Bath & North East Somerset Council,10717028,LK1,Fees,P02,"Early Years, Children & Youth",LONDON BOROUGH OF LAMBETH EDUCATION,04/11/2013,26126.36
Bath & North East Somerset Council,80274749,LL8,Individualised Budget,P03,Wellbeing,REDACTED,04/11/2013,1696.43
Bath & North East Somerset Council,80274482,LK4,Nursery/Childcare Vouchers,P02,"Early Years, Children & Youth",SNAPDRAGONS NURSERY,04/11/2013,26671.29
Bath & North East Somerset Council,80274425,LK4,Nursery/Childcare Vouchers,P02,"Early Years, Children & Youth",KING EDWARDS PRE PREP SCHOOL,04/11/2013,26983.56
Bath & North East Somerset Council,10717460,LX6,Bus Revenue Support,P01,Transport,FIRST SOMERSET & AVON LTD,04/11/2013,29589.48
Bath & North East Somerset Council,10717457,LX6,Bus Revenue Support,P01,Transport,FLIGHTS HALLMARK LTD,04/11/2013,29691.66
Bath & North East Somerset Council,10717469,LX6,Bus Revenue Support,P01,Transport,FIRST SOMERSET & AVON LTD,04/11/2013,30839.48
Bath & North East Somerset Council,80274749,LL8,Individualised Budget,P03,Wellbeing,REDACTED,04/11/2013,1696.43
Bath & North East Somerset Council,80274711,LL8,Individualised Budget,P03,Wellbeing,REDACTED,04/11/2013,259.58
Bath & North East Somerset Council,80274711,LL8,Individualised Budget,P03,Wellbeing,REDACTED,04/11/2013,259.58
Bath & North East Somerset Council,80275185,LM3,Residential Care,P03,Wellbeing,6 THE AVENUE -KEYNSHAM MENCAP,06/11/2013,577.87
Bath & North East Somerset Council,80275185,LM3,Residential Care,P03,Wellbeing,6 THE AVENUE -KEYNSHAM MENCAP,06/11/2013,577.87
Bath & North East Somerset Council,80275185,LM3,Residential Care,P03,Wellbeing,6 THE AVENUE -KEYNSHAM MENCAP,06/11/2013,577.87
Bath & North East Somerset Council,80275185,LM3,Residential Care,P03,Wellbeing,6 THE AVENUE -KEYNSHAM MENCAP,06/11/2013,577.87
Bath & North East Somerset Council,80275185,LM3,Residential Care,P03,Wellbeing,6 THE AVENUE -KEYNSHAM MENCAP,06/11/2013,577.87
Bath & North East Somerset Council,10717781,LX1,Educational Activity,P02,"Early Years, Children & Youth",ACORN PRE SCHOOL,06/11/2013,125
Bath & North East Somerset Council,80275185,LM3,Residential Care,P03,Wellbeing,6 THE AVENUE -KEYNSHAM MENCAP,06/11/2013,577.87
Bath & North East Somerset Council,80275185,LM3,Residential Care,P03,Wellbeing,6 THE AVENUE -KEYNSHAM MENCAP,06/11/2013,577.87
Bath & North East Somerset Council,80275185,LM3,Residential Care,P03,Wellbeing,6 THE AVENUE -KEYNSHAM MENCAP,06/11/2013,577.87
Bath & North East Somerset Council,80275185,LM3,Residential Care,P03,Wellbeing,6 THE AVENUE -KEYNSHAM MENCAP,06/11/2013,577.87
Bath & North East Somerset Council,80275185,LM3,Residential Care,P03,Wellbeing,6 THE AVENUE -KEYNSHAM MENCAP,06/11/2013,577.87
Bath & North East Somerset Council,80275185,LM3,Residential Care,P03,Wellbeing,6 THE AVENUE -KEYNSHAM MENCAP,06/11/2013,971.93
Bath & North East Somerset Council,80275185,LM3,Residential Care,P03,Wellbeing,6 THE AVENUE -KEYNSHAM MENCAP,06/11/2013,971.93
Bath & North East Somerset Council,80275185,LM3,Residential Care,P03,Wellbeing,6 THE AVENUE -KEYNSHAM MENCAP,06/11/2013,1196.17
Bath & North East Somerset Council,80275185,LM3,Residential Care,P03,Wellbeing,6 THE AVENUE -KEYNSHAM MENCAP,06/11/2013,1196.17
Bath & North East Somerset Council,80275157,LM6,Nursing Care,P03,Wellbeing,ABBEYFIELD WALES SOCIETY LTD,06/11/2013,587
Bath & North East Somerset Council,80275157,LM6,Nursing Care,P03,Wellbeing,ABBEYFIELD WALES SOCIETY LTD,06/11/2013,587
Bath & North East Somerset Council,80275120,LM6,Nursing Care,P03,Wellbeing,ADIEMUS CARE LTD - T/A WICKWAR,06/11/2013,552
Bath & North East Somerset Council,80275120,LM6,Nursing Care,P03,Wellbeing,ADIEMUS CARE LTD - T/A WICKWAR,06/11/2013,552
Bath & North East Somerset Council,80275067,LM3,Residential Care,P03,Wellbeing,ALPINE VILLA CARE HOME LTD,06/11/2013,700
Bath & North East Somerset Council,80275067,LM3,Residential Care,P03,Wellbeing,ALPINE VILLA CARE HOME LTD,06/11/2013,700
Bath & North East Somerset Council,80274285,LM9,Day Care,P03,Wellbeing,ALZHEIMER'S SOCIETY,06/11/2013,70.34
Bath & North East Somerset Council,80274284,LM9,Day Care,P03,Wellbeing,ALZHEIMER'S SOCIETY,06/11/2013,140.68
Bath & North East Somerset Council,80274284,LM9,Day Care,P03,Wellbeing,ALZHEIMER'S SOCIETY,06/11/2013,140.68
Bath & North East Somerset Council,80274284,LM9,Day Care,P03,Wellbeing,ALZHEIMER'S SOCIETY,06/11/2013,140.68
Bath & North East Somerset Council,80274284,LM9,Day Care,P03,Wellbeing,ALZHEIMER'S SOCIETY,06/11/2013,140.68
Bath & North East Somerset Council,80274285,LM9,Day Care,P03,Wellbeing,ALZHEIMER'S SOCIETY,06/11/2013,140.68
Bath & North East Somerset Council,80274285,LM9,Day Care,P03,Wellbeing,ALZHEIMER'S SOCIETY,06/11/2013,140.68
Bath & North East Somerset Council,80274285,LM9,Day Care,P03,Wellbeing,ALZHEIMER'S SOCIETY,06/11/2013,140.68
Bath & North East Somerset Council,80274285,LM9,Day Care,P03,Wellbeing,ALZHEIMER'S SOCIETY,06/11/2013,140.68
Bath & North East Somerset Council,80274978,LM3,Residential Care,P03,Wellbeing,ANCHOR TRUST,06/11/2013,433.5
Bath & North East Somerset Council,80274978,LM3,Residential Care,P03,Wellbeing,ANCHOR TRUST,06/11/2013,433.5
Bath & North East Somerset Council,80274978,LM3,Residential Care,P03,Wellbeing,ANCHOR TRUST,06/11/2013,433.5
Bath & North East Somerset Council,80274978,LM3,Residential Care,P03,Wellbeing,ANCHOR TRUST,06/11/2013,433.5
Bath & North East Somerset Council,80274978,LM3,Residential Care,P03,Wellbeing,ANCHOR TRUST,06/11/2013,515.45
Bath & North East Somerset Council,80274978,LM3,Residential Care,P03,Wellbeing,ANCHOR TRUST,06/11/2013,515.45
Bath & North East Somerset Council,80274978,LM3,Residential Care,P03,Wellbeing,ANCHOR TRUST,06/11/2013,550
Bath & North East Somerset Council,80274978,LM3,Residential Care,P03,Wellbeing,ANCHOR TRUST,06/11/2013,550
Bath & North East Somerset Council,80274978,LM3,Residential Care,P03,Wellbeing,ANCHOR TRUST,06/11/2013,550
Bath & North East Somerset Council,80274978,LM3,Residential Care,P03,Wellbeing,ANCHOR TRUST,06/11/2013,550
Bath & North East Somerset Council,80274978,LM6,Nursing Care,P03,Wellbeing,ANCHOR TRUST,06/11/2013,575
Bath & North East Somerset Council,80274978,LM6,Nursing Care,P03,Wellbeing,ANCHOR TRUST,06/11/2013,575
Bath & North East Somerset Council,80274978,LM3,Residential Care,P03,Wellbeing,ANCHOR TRUST,06/11/2013,600
Bath & North East Somerset Council,80274978,LM3,Residential Care,P03,Wellbeing,ANCHOR TRUST,06/11/2013,600
Bath & North East Somerset Council,80274978,LM3,Residential Care,P03,Wellbeing,ANCHOR TRUST,06/11/2013,680
Bath & North East Somerset Council,80274978,LM3,Residential Care,P03,Wellbeing,ANCHOR TRUST,06/11/2013,680
Bath & North East Somerset Council,80274978,LM3,Residential Care,P03,Wellbeing,ANCHOR TRUST,06/11/2013,680
Bath & North East Somerset Council,80274978,LM3,Residential Care,P03,Wellbeing,ANCHOR TRUST,06/11/2013,680
Bath & North East Somerset Council,80274979,LM3,Residential Care,P03,Wellbeing,ASPECTS & MILESTONES TRUST,06/11/2013,843.17
Bath & North East Somerset Council,80274979,LM3,Residential Care,P03,Wellbeing,ASPECTS & MILESTONES TRUST,06/11/2013,843.17
Bath & North East Somerset Council,80274984,LM3,Residential Care,P03,Wellbeing,ASPECTS & MILESTONES TRUST,06/11/2013,886.06
Bath & North East Somerset Council,80274984,LM3,Residential Care,P03,Wellbeing,ASPECTS & MILESTONES TRUST,06/11/2013,886.06
Bath & North East Somerset Council,80274983,LM6,Nursing Care,P03,Wellbeing,ASPECTS & MILESTONES TRUST,06/11/2013,1423.09
Bath & North East Somerset Council,80274983,LM6,Nursing Care,P03,Wellbeing,ASPECTS & MILESTONES TRUST,06/11/2013,1423.09
Bath & North East Somerset Council,80274980,LM3,Residential Care,P03,Wellbeing,ASPECTS & MILESTONES TRUST,06/11/2013,1877.25
Bath & North East Somerset Council,80274980,LM3,Residential Care,P03,Wellbeing,ASPECTS & MILESTONES TRUST,06/11/2013,1877.25
Bath & North East Somerset Council,80274982,LM3,Residential Care,P03,Wellbeing,ASPECTS & MILESTONES TRUST,06/11/2013,2202.48
Bath & North East Somerset Council,80274982,LM3,Residential Care,P03,Wellbeing,ASPECTS & MILESTONES TRUST,06/11/2013,2202.48
Bath & North East Somerset Council,80274982,LM3,Residential Care,P03,Wellbeing,ASPECTS & MILESTONES TRUST,06/11/2013,2508.64
Bath & North East Somerset Council,80274982,LM3,Residential Care,P03,Wellbeing,ASPECTS & MILESTONES TRUST,06/11/2013,2508.64
Bath & North East Somerset Council,80275019,LM3,Residential Care,P03,Wellbeing,AUTISM SPECIALISED CARE HOMES LTD,06/11/2013,1284.26
Bath & North East Somerset Council,80275019,LM3,Residential Care,P03,Wellbeing,AUTISM SPECIALISED CARE HOMES LTD,06/11/2013,1284.26
Bath & North East Somerset Council,80275082,LM3,Residential Care,P03,Wellbeing,AVERY HOMES BRISTOL LIMITED,06/11/2013,475
Bath & North East Somerset Council,80275082,LM3,Residential Care,P03,Wellbeing,AVERY HOMES BRISTOL LIMITED,06/11/2013,475
Bath & North East Somerset Council,80275108,LM6,Nursing Care,P03,Wellbeing,AVONPARK VILLAGE (CARE HOMES) LTD,06/11/2013,575
Bath & North East Somerset Council,80275108,LM6,Nursing Care,P03,Wellbeing,AVONPARK VILLAGE (CARE HOMES) LTD,06/11/2013,575
Bath & North East Somerset Council,80274968,LM6,Nursing Care,P03,Wellbeing,BARCHESTER HEALTH CARE,06/11/2013,109.79
Bath & North East Somerset Council,80274968,LM6,Nursing Care,P03,Wellbeing,BARCHESTER HEALTH CARE,06/11/2013,109.79
Bath & North East Somerset Council,80274968,LM6,Nursing Care,P03,Wellbeing,BARCHESTER HEALTH CARE,06/11/2013,109.79
Bath & North East Somerset Council,80274968,LM6,Nursing Care,P03,Wellbeing,BARCHESTER HEALTH CARE,06/11/2013,109.79
Bath & North East Somerset Council,80274968,LM6,Nursing Care,P03,Wellbeing,BARCHESTER HEALTH CARE,06/11/2013,109.79
Bath & North East Somerset Council,80274968,LM6,Nursing Care,P03,Wellbeing,BARCHESTER HEALTH CARE,06/11/2013,109.79
Bath & North East Somerset Council,80274968,LM6,Nursing Care,P03,Wellbeing,BARCHESTER HEALTH CARE,06/11/2013,109.79
Bath & North East Somerset Council,80274968,LM6,Nursing Care,P03,Wellbeing,BARCHESTER HEALTH CARE,06/11/2013,109.79
Bath & North East Somerset Council,80274968,LM6,Nursing Care,P03,Wellbeing,BARCHESTER HEALTH CARE,06/11/2013,109.79
Bath & North East Somerset Council,80274968,LM6,Nursing Care,P03,Wellbeing,BARCHESTER HEALTH CARE,06/11/2013,109.79
Bath & North East Somerset Council,80274968,LM6,Nursing Care,P03,Wellbeing,BARCHESTER HEALTH CARE,06/11/2013,109.79
Bath & North East Somerset Council,80274968,LM6,Nursing Care,P03,Wellbeing,BARCHESTER HEALTH CARE,06/11/2013,109.79
Bath & North East Somerset Council,80274968,LM6,Nursing Care,P03,Wellbeing,BARCHESTER HEALTH CARE,06/11/2013,109.79
Bath & North East Somerset Council,80274968,LM6,Nursing Care,P03,Wellbeing,BARCHESTER HEALTH CARE,06/11/2013,109.79
Bath & North East Somerset Council,80274968,LM6,Nursing Care,P03,Wellbeing,BARCHESTER HEALTH CARE,06/11/2013,109.79
Bath & North East Somerset Council,80274968,LM6,Nursing Care,P03,Wellbeing,BARCHESTER HEALTH CARE,06/11/2013,109.79
Bath & North East Somerset Council,80274968,LM6,Nursing Care,P03,Wellbeing,BARCHESTER HEALTH CARE,06/11/2013,109.79
Bath & North East Somerset Council,80274968,LM6,Nursing Care,P03,Wellbeing,BARCHESTER HEALTH CARE,06/11/2013,109.79
Bath & North East Somerset Council,80274968,LM6,Nursing Care,P03,Wellbeing,BARCHESTER HEALTH CARE,06/11/2013,109.79
Bath & North East Somerset Council,80274968,LM6,Nursing Care,P03,Wellbeing,BARCHESTER HEALTH CARE,06/11/2013,109.79
Bath & North East Somerset Council,80275140,LM6,Nursing Care,P03,Wellbeing,BARCHESTER HEALTH CARE,06/11/2013,552
Bath & North East Somerset Council,80275140,LM6,Nursing Care,P03,Wellbeing,BARCHESTER HEALTH CARE,06/11/2013,552
Bath & North East Somerset Council,80275140,LM6,Nursing Care,P03,Wellbeing,BARCHESTER HEALTH CARE,06/11/2013,552
Bath & North East Somerset Council,80275140,LM6,Nursing Care,P03,Wellbeing,BARCHESTER HEALTH CARE,06/11/2013,552
Bath & North East Somerset Council,80275140,LM6,Nursing Care,P03,Wellbeing,BARCHESTER HEALTH CARE,06/11/2013,552
Bath & North East Somerset Council,80275140,LM6,Nursing Care,P03,Wellbeing,BARCHESTER HEALTH CARE,06/11/2013,552
Bath & North East Somerset Council,80275140,LM6,Nursing Care,P03,Wellbeing,BARCHESTER HEALTH CARE,06/11/2013,900
Bath & North East Somerset Council,80275140,LM6,Nursing Care,P03,Wellbeing,BARCHESTER HEALTH CARE,06/11/2013,900
Bath & North East Somerset Council,80275021,LM6,Nursing Care,P03,Wellbeing,BARCHESTER HEALTHCARE,06/11/2013,700
Bath & North East Somerset Council,80275021,LM6,Nursing Care,P03,Wellbeing,BARCHESTER HEALTHCARE,06/11/2013,700
Bath & North East Somerset Council,80275021,LM6,Nursing Care,P03,Wellbeing,BARCHESTER HEALTHCARE,06/11/2013,700
Bath & North East Somerset Council,80275021,LM6,Nursing Care,P03,Wellbeing,BARCHESTER HEALTHCARE,06/11/2013,700
Bath & North East Somerset Council,80274953,LM6,Nursing Care,P03,Wellbeing,BARCHESTER HEALTHCARE HOMES LTD,06/11/2013,109.79
Bath & North East Somerset Council,80274953,LM6,Nursing Care,P03,Wellbeing,BARCHESTER HEALTHCARE HOMES LTD,06/11/2013,109.79
Bath & North East Somerset Council,80274953,LM6,Nursing Care,P03,Wellbeing,BARCHESTER HEALTHCARE HOMES LTD,06/11/2013,109.79
Bath & North East Somerset Council,80274953,LM6,Nursing Care,P03,Wellbeing,BARCHESTER HEALTHCARE HOMES LTD,06/11/2013,109.79
Bath & North East Somerset Council,80274953,LM6,Nursing Care,P03,Wellbeing,BARCHESTER HEALTHCARE HOMES LTD,06/11/2013,109.79
Bath & North East Somerset Council,80274953,LM6,Nursing Care,P03,Wellbeing,BARCHESTER HEALTHCARE HOMES LTD,06/11/2013,109.79
Bath & North East Somerset Council,80274953,LM6,Nursing Care,P03,Wellbeing,BARCHESTER HEALTHCARE HOMES LTD,06/11/2013,109.79
Bath & North East Somerset Council,80274953,LM6,Nursing Care,P03,Wellbeing,BARCHESTER HEALTHCARE HOMES LTD,06/11/2013,109.79
Bath & North East Somerset Council,80274953,LM6,Nursing Care,P03,Wellbeing,BARCHESTER HEALTHCARE HOMES LTD,06/11/2013,109.79
Bath & North East Somerset Council,80274953,LM6,Nursing Care,P03,Wellbeing,BARCHESTER HEALTHCARE HOMES LTD,06/11/2013,109.79
Bath & North East Somerset Council,80274953,LM6,Nursing Care,P03,Wellbeing,BARCHESTER HEALTHCARE HOMES LTD,06/11/2013,109.79
Bath & North East Somerset Council,80274953,LM6,Nursing Care,P03,Wellbeing,BARCHESTER HEALTHCARE HOMES LTD,06/11/2013,109.79
Bath & North East Somerset Council,80274953,LM6,Nursing Care,P03,Wellbeing,BARCHESTER HEALTHCARE HOMES LTD,06/11/2013,109.79
Bath & North East Somerset Council,80274953,LM6,Nursing Care,P03,Wellbeing,BARCHESTER HEALTHCARE HOMES LTD,06/11/2013,109.79
Bath & North East Somerset Council,80274953,LM6,Nursing Care,P03,Wellbeing,BARCHESTER HEALTHCARE HOMES LTD,06/11/2013,109.79
Bath & North East Somerset Council,80274953,LM6,Nursing Care,P03,Wellbeing,BARCHESTER HEALTHCARE HOMES LTD,06/11/2013,109.79
Bath & North East Somerset Council,80274953,LM6,Nursing Care,P03,Wellbeing,BARCHESTER HEALTHCARE HOMES LTD,06/11/2013,109.79
Bath & North East Somerset Council,80274953,LM6,Nursing Care,P03,Wellbeing,BARCHESTER HEALTHCARE HOMES LTD,06/11/2013,109.79
Bath & North East Somerset Council,80274953,LM6,Nursing Care,P03,Wellbeing,BARCHESTER HEALTHCARE HOMES LTD,06/11/2013,109.79
Bath & North East Somerset Council,80274953,LM6,Nursing Care,P03,Wellbeing,BARCHESTER HEALTHCARE HOMES LTD,06/11/2013,109.79
Bath & North East Somerset Council,80274953,LM6,Nursing Care,P03,Wellbeing,BARCHESTER HEALTHCARE HOMES LTD,06/11/2013,109.79
Bath & North East Somerset Council,80274953,LM6,Nursing Care,P03,Wellbeing,BARCHESTER HEALTHCARE HOMES LTD,06/11/2013,109.79
Bath & North East Somerset Council,80274953,LM6,Nursing Care,P03,Wellbeing,BARCHESTER HEALTHCARE HOMES LTD,06/11/2013,109.79
Bath & North East Somerset Council,80274953,LM6,Nursing Care,P03,Wellbeing,BARCHESTER HEALTHCARE HOMES LTD,06/11/2013,109.79
Bath & North East Somerset Council,80274953,LM6,Nursing Care,P03,Wellbeing,BARCHESTER HEALTHCARE HOMES LTD,06/11/2013,109.79
Bath & North East Somerset Council,80274953,LM6,Nursing Care,P03,Wellbeing,BARCHESTER HEALTHCARE HOMES LTD,06/11/2013,109.79
Bath & North East Somerset Council,80274953,LM6,Nursing Care,P03,Wellbeing,BARCHESTER HEALTHCARE HOMES LTD,06/11/2013,109.79
Bath & North East Somerset Council,80274953,LM6,Nursing Care,P03,Wellbeing,BARCHESTER HEALTHCARE HOMES LTD,06/11/2013,109.79
Bath & North East Somerset Council,80274953,LM6,Nursing Care,P03,Wellbeing,BARCHESTER HEALTHCARE HOMES LTD,06/11/2013,109.79
Bath & North East Somerset Council,80274953,LM6,Nursing Care,P03,Wellbeing,BARCHESTER HEALTHCARE HOMES LTD,06/11/2013,109.79
Bath & North East Somerset Council,80274953,LM6,Nursing Care,P03,Wellbeing,BARCHESTER HEALTHCARE HOMES LTD,06/11/2013,109.79
Bath & North East Somerset Council,80274953,LM6,Nursing Care,P03,Wellbeing,BARCHESTER HEALTHCARE HOMES LTD,06/11/2013,109.79
Bath & North East Somerset Council,80274953,LM6,Nursing Care,P03,Wellbeing,BARCHESTER HEALTHCARE HOMES LTD,06/11/2013,109.79
Bath & North East Somerset Council,80274953,LM6,Nursing Care,P03,Wellbeing,BARCHESTER HEALTHCARE HOMES LTD,06/11/2013,109.79
Bath & North East Somerset Council,80274953,LM6,Nursing Care,P03,Wellbeing,BARCHESTER HEALTHCARE HOMES LTD,06/11/2013,109.79
Bath & North East Somerset Council,80274953,LM6,Nursing Care,P03,Wellbeing,BARCHESTER HEALTHCARE HOMES LTD,06/11/2013,109.79
Bath & North East Somerset Council,80274953,LM6,Nursing Care,P03,Wellbeing,BARCHESTER HEALTHCARE HOMES LTD,06/11/2013,109.79
Bath & North East Somerset Council,80274953,LM6,Nursing Care,P03,Wellbeing,BARCHESTER HEALTHCARE HOMES LTD,06/11/2013,109.79
Bath & North East Somerset Council,80274953,LM6,Nursing Care,P03,Wellbeing,BARCHESTER HEALTHCARE HOMES LTD,06/11/2013,109.79
Bath & North East Somerset Council,80274953,LM6,Nursing Care,P03,Wellbeing,BARCHESTER HEALTHCARE HOMES LTD,06/11/2013,109.79
Bath & North East Somerset Council,80274953,LM6,Nursing Care,P03,Wellbeing,BARCHESTER HEALTHCARE HOMES LTD,06/11/2013,109.79
Bath & North East Somerset Council,80274953,LM6,Nursing Care,P03,Wellbeing,BARCHESTER HEALTHCARE HOMES LTD,06/11/2013,109.79
Bath & North East Somerset Council,80274953,LM6,Nursing Care,P03,Wellbeing,BARCHESTER HEALTHCARE HOMES LTD,06/11/2013,109.79
Bath & North East Somerset Council,80274953,LM6,Nursing Care,P03,Wellbeing,BARCHESTER HEALTHCARE HOMES LTD,06/11/2013,109.79
Bath & North East Somerset Council,80274953,LM6,Nursing Care,P03,Wellbeing,BARCHESTER HEALTHCARE HOMES LTD,06/11/2013,109.79
Bath & North East Somerset Council,80274953,LM6,Nursing Care,P03,Wellbeing,BARCHESTER HEALTHCARE HOMES LTD,06/11/2013,109.79
Bath & North East Somerset Council,80274953,LM6,Nursing Care,P03,Wellbeing,BARCHESTER HEALTHCARE HOMES LTD,06/11/2013,109.79
Bath & North East Somerset Council,80274953,LM6,Nursing Care,P03,Wellbeing,BARCHESTER HEALTHCARE HOMES LTD,06/11/2013,109.79
Bath & North East Somerset Council,80274953,LM6,Nursing Care,P03,Wellbeing,BARCHESTER HEALTHCARE HOMES LTD,06/11/2013,109.79
Bath & North East Somerset Council,80274953,LM6,Nursing Care,P03,Wellbeing,BARCHESTER HEALTHCARE HOMES LTD,06/11/2013,109.79
Bath & North East Somerset Council,80274953,LM6,Nursing Care,P03,Wellbeing,BARCHESTER HEALTHCARE HOMES LTD,06/11/2013,109.79
Bath & North East Somerset Council,80274953,LM6,Nursing Care,P03,Wellbeing,BARCHESTER HEALTHCARE HOMES LTD,06/11/2013,109.79
Bath & North East Somerset Council,80274953,LM6,Nursing Care,P03,Wellbeing,BARCHESTER HEALTHCARE HOMES LTD,06/11/2013,109.79
Bath & North East Somerset Council,80274953,LM6,Nursing Care,P03,Wellbeing,BARCHESTER HEALTHCARE HOMES LTD,06/11/2013,109.79
Bath & North East Somerset Council,80275173,LM3,Residential Care,P03,Wellbeing,BARCHESTER HEALTHCARE HOMES LTD,06/11/2013,433.5
Bath & North East Somerset Council,80275173,LM3,Residential Care,P03,Wellbeing,BARCHESTER HEALTHCARE HOMES LTD,06/11/2013,433.5
Bath & North East Somerset Council,80275173,LM3,Residential Care,P03,Wellbeing,BARCHESTER HEALTHCARE HOMES LTD,06/11/2013,505
Bath & North East Somerset Council,80275173,LM3,Residential Care,P03,Wellbeing,BARCHESTER HEALTHCARE HOMES LTD,06/11/2013,505
Bath & North East Somerset Council,80275173,LM6,Nursing Care,P03,Wellbeing,BARCHESTER HEALTHCARE HOMES LTD,06/11/2013,552
Bath & North East Somerset Council,80275173,LM6,Nursing Care,P03,Wellbeing,BARCHESTER HEALTHCARE HOMES LTD,06/11/2013,552
Bath & North East Somerset Council,80275173,LM6,Nursing Care,P03,Wellbeing,BARCHESTER HEALTHCARE HOMES LTD,06/11/2013,552
Bath & North East Somerset Council,80275173,LM6,Nursing Care,P03,Wellbeing,BARCHESTER HEALTHCARE HOMES LTD,06/11/2013,552
Bath & North East Somerset Council,80275173,LM6,Nursing Care,P03,Wellbeing,BARCHESTER HEALTHCARE HOMES LTD,06/11/2013,552
Bath & North East Somerset Council,80275173,LM6,Nursing Care,P03,Wellbeing,BARCHESTER HEALTHCARE HOMES LTD,06/11/2013,552
Bath & North East Somerset Council,80275173,LM6,Nursing Care,P03,Wellbeing,BARCHESTER HEALTHCARE HOMES LTD,06/11/2013,552
Bath & North East Somerset Council,80275173,LM6,Nursing Care,P03,Wellbeing,BARCHESTER HEALTHCARE HOMES LTD,06/11/2013,552
Bath & North East Somerset Council,80275173,LM6,Nursing Care,P03,Wellbeing,BARCHESTER HEALTHCARE HOMES LTD,06/11/2013,552
Bath & North East Somerset Council,80275173,LM6,Nursing Care,P03,Wellbeing,BARCHESTER HEALTHCARE HOMES LTD,06/11/2013,552
Bath & North East Somerset Council,80275173,LM6,Nursing Care,P03,Wellbeing,BARCHESTER HEALTHCARE HOMES LTD,06/11/2013,552
Bath & North East Somerset Council,80275173,LM6,Nursing Care,P03,Wellbeing,BARCHESTER HEALTHCARE HOMES LTD,06/11/2013,552
Bath & North East Somerset Council,80275173,LM6,Nursing Care,P03,Wellbeing,BARCHESTER HEALTHCARE HOMES LTD,06/11/2013,552
Bath & North East Somerset Council,80275173,LM6,Nursing Care,P03,Wellbeing,BARCHESTER HEALTHCARE HOMES LTD,06/11/2013,552
Bath & North East Somerset Council,80275173,LM6,Nursing Care,P03,Wellbeing,BARCHESTER HEALTHCARE HOMES LTD,06/11/2013,552
Bath & North East Somerset Council,80275173,LM6,Nursing Care,P03,Wellbeing,BARCHESTER HEALTHCARE HOMES LTD,06/11/2013,552
Bath & North East Somerset Council,80275173,LM6,Nursing Care,P03,Wellbeing,BARCHESTER HEALTHCARE HOMES LTD,06/11/2013,552
Bath & North East Somerset Council,80275173,LM6,Nursing Care,P03,Wellbeing,BARCHESTER HEALTHCARE HOMES LTD,06/11/2013,552
Bath & North East Somerset Council,80275173,LM6,Nursing Care,P03,Wellbeing,BARCHESTER HEALTHCARE HOMES LTD,06/11/2013,552
Bath & North East Somerset Council,80275173,LM6,Nursing Care,P03,Wellbeing,BARCHESTER HEALTHCARE HOMES LTD,06/11/2013,552
Bath & North East Somerset Council,80275173,LM6,Nursing Care,P03,Wellbeing,BARCHESTER HEALTHCARE HOMES LTD,06/11/2013,552
Bath & North East Somerset Council,80275173,LM6,Nursing Care,P03,Wellbeing,BARCHESTER HEALTHCARE HOMES LTD,06/11/2013,552
Bath & North East Somerset Council,80275173,LM6,Nursing Care,P03,Wellbeing,BARCHESTER HEALTHCARE HOMES LTD,06/11/2013,552
Bath & North East Somerset Council,80275173,LM6,Nursing Care,P03,Wellbeing,BARCHESTER HEALTHCARE HOMES LTD,06/11/2013,552
Bath & North East Somerset Council,80275173,LM6,Nursing Care,P03,Wellbeing,BARCHESTER HEALTHCARE HOMES LTD,06/11/2013,560.55
Bath & North East Somerset Council,80275173,LM6,Nursing Care,P03,Wellbeing,BARCHESTER HEALTHCARE HOMES LTD,06/11/2013,560.55
Bath & North East Somerset Council,80275173,LM6,Nursing Care,P03,Wellbeing,BARCHESTER HEALTHCARE HOMES LTD,06/11/2013,575
Bath & North East Somerset Council,80275173,LM6,Nursing Care,P03,Wellbeing,BARCHESTER HEALTHCARE HOMES LTD,06/11/2013,575
Bath & North East Somerset Council,80275173,LM6,Nursing Care,P03,Wellbeing,BARCHESTER HEALTHCARE HOMES LTD,06/11/2013,575
Bath & North East Somerset Council,80275173,LM6,Nursing Care,P03,Wellbeing,BARCHESTER HEALTHCARE HOMES LTD,06/11/2013,575
Bath & North East Somerset Council,80275173,LM6,Nursing Care,P03,Wellbeing,BARCHESTER HEALTHCARE HOMES LTD,06/11/2013,596
Bath & North East Somerset Council,80275173,LM6,Nursing Care,P03,Wellbeing,BARCHESTER HEALTHCARE HOMES LTD,06/11/2013,596
Bath & North East Somerset Council,80275173,LM6,Nursing Care,P03,Wellbeing,BARCHESTER HEALTHCARE HOMES LTD,06/11/2013,600
Bath & North East Somerset Council,80275173,LM6,Nursing Care,P03,Wellbeing,BARCHESTER HEALTHCARE HOMES LTD,06/11/2013,600
Bath & North East Somerset Council,80275173,LM6,Nursing Care,P03,Wellbeing,BARCHESTER HEALTHCARE HOMES LTD,06/11/2013,650
Bath & North East Somerset Council,80275173,LM6,Nursing Care,P03,Wellbeing,BARCHESTER HEALTHCARE HOMES LTD,06/11/2013,650
Bath & North East Somerset Council,80275173,LM6,Nursing Care,P03,Wellbeing,BARCHESTER HEALTHCARE HOMES LTD,06/11/2013,656.5
Bath & North East Somerset Council,80275173,LM6,Nursing Care,P03,Wellbeing,BARCHESTER HEALTHCARE HOMES LTD,06/11/2013,656.5
Bath & North East Somerset Council,80275173,LM6,Nursing Care,P03,Wellbeing,BARCHESTER HEALTHCARE HOMES LTD,06/11/2013,750
Bath & North East Somerset Council,80275173,LM6,Nursing Care,P03,Wellbeing,BARCHESTER HEALTHCARE HOMES LTD,06/11/2013,750
Bath & North East Somerset Council,80275173,LM6,Nursing Care,P03,Wellbeing,BARCHESTER HEALTHCARE HOMES LTD,06/11/2013,750
Bath & North East Somerset Council,80275173,LM6,Nursing Care,P03,Wellbeing,BARCHESTER HEALTHCARE HOMES LTD,06/11/2013,750
Bath & North East Somerset Council,80275173,LM6,Nursing Care,P03,Wellbeing,BARCHESTER HEALTHCARE HOMES LTD,06/11/2013,750
Bath & North East Somerset Council,80275173,LM6,Nursing Care,P03,Wellbeing,BARCHESTER HEALTHCARE HOMES LTD,06/11/2013,750
Bath & North East Somerset Council,80275173,LM6,Nursing Care,P03,Wellbeing,BARCHESTER HEALTHCARE HOMES LTD,06/11/2013,810
Bath & North East Somerset Council,80275173,LM6,Nursing Care,P03,Wellbeing,BARCHESTER HEALTHCARE HOMES LTD,06/11/2013,810
Bath & North East Somerset Council,80275173,LM6,Nursing Care,P03,Wellbeing,BARCHESTER HEALTHCARE HOMES LTD,06/11/2013,810
Bath & North East Somerset Council,80275173,LM6,Nursing Care,P03,Wellbeing,BARCHESTER HEALTHCARE HOMES LTD,06/11/2013,810
Bath & North East Somerset Council,80275173,LM6,Nursing Care,P03,Wellbeing,BARCHESTER HEALTHCARE HOMES LTD,06/11/2013,810
Bath & North East Somerset Council,80275173,LM6,Nursing Care,P03,Wellbeing,BARCHESTER HEALTHCARE HOMES LTD,06/11/2013,810
Bath & North East Somerset Council,80275173,LM6,Nursing Care,P03,Wellbeing,BARCHESTER HEALTHCARE HOMES LTD,06/11/2013,810
Bath & North East Somerset Council,80275173,LM6,Nursing Care,P03,Wellbeing,BARCHESTER HEALTHCARE HOMES LTD,06/11/2013,810
Bath & North East Somerset Council,80275173,LM6,Nursing Care,P03,Wellbeing,BARCHESTER HEALTHCARE HOMES LTD,06/11/2013,810
Bath & North East Somerset Council,80275173,LM6,Nursing Care,P03,Wellbeing,BARCHESTER HEALTHCARE HOMES LTD,06/11/2013,810
Bath & North East Somerset Council,80275173,LM6,Nursing Care,P03,Wellbeing,BARCHESTER HEALTHCARE HOMES LTD,06/11/2013,810
Bath & North East Somerset Council,80275173,LM6,Nursing Care,P03,Wellbeing,BARCHESTER HEALTHCARE HOMES LTD,06/11/2013,810
Bath & North East Somerset Council,80275173,LM6,Nursing Care,P03,Wellbeing,BARCHESTER HEALTHCARE HOMES LTD,06/11/2013,810
Bath & North East Somerset Council,80275173,LM6,Nursing Care,P03,Wellbeing,BARCHESTER HEALTHCARE HOMES LTD,06/11/2013,810
Bath & North East Somerset Council,80275173,LM6,Nursing Care,P03,Wellbeing,BARCHESTER HEALTHCARE HOMES LTD,06/11/2013,816.66
Bath & North East Somerset Council,80275173,LM6,Nursing Care,P03,Wellbeing,BARCHESTER HEALTHCARE HOMES LTD,06/11/2013,816.66
Bath & North East Somerset Council,80275173,LM6,Nursing Care,P03,Wellbeing,BARCHESTER HEALTHCARE HOMES LTD,06/11/2013,900
Bath & North East Somerset Council,80275173,LM6,Nursing Care,P03,Wellbeing,BARCHESTER HEALTHCARE HOMES LTD,06/11/2013,900
Bath & North East Somerset Council,80275173,LM6,Nursing Care,P03,Wellbeing,BARCHESTER HEALTHCARE HOMES LTD,06/11/2013,959.5
Bath & North East Somerset Council,80275173,LM6,Nursing Care,P03,Wellbeing,BARCHESTER HEALTHCARE HOMES LTD,06/11/2013,959.5
Bath & North East Somerset Council,80275080,LM3,Residential Care,P03,Wellbeing,BARCHESTER HEALTHCARE HOMES LTD,06/11/2013,1735
Bath & North East Somerset Council,80275080,LM3,Residential Care,P03,Wellbeing,BARCHESTER HEALTHCARE HOMES LTD,06/11/2013,1735
Bath & North East Somerset Council,80274964,LM6,Nursing Care,P03,Wellbeing,BARKER CHEMICALS LTD T/A ST TERESA'S NH,06/11/2013,109.79
Bath & North East Somerset Council,80274964,LM6,Nursing Care,P03,Wellbeing,BARKER CHEMICALS LTD T/A ST TERESA'S NH,06/11/2013,109.79
Bath & North East Somerset Council,80274964,LM6,Nursing Care,P03,Wellbeing,BARKER CHEMICALS LTD T/A ST TERESA'S NH,06/11/2013,109.79
Bath & North East Somerset Council,80274964,LM6,Nursing Care,P03,Wellbeing,BARKER CHEMICALS LTD T/A ST TERESA'S NH,06/11/2013,109.79
Bath & North East Somerset Council,80274964,LM6,Nursing Care,P03,Wellbeing,BARKER CHEMICALS LTD T/A ST TERESA'S NH,06/11/2013,109.79
Bath & North East Somerset Council,80274964,LM6,Nursing Care,P03,Wellbeing,BARKER CHEMICALS LTD T/A ST TERESA'S NH,06/11/2013,109.79
Bath & North East Somerset Council,80274964,LM6,Nursing Care,P03,Wellbeing,BARKER CHEMICALS LTD T/A ST TERESA'S NH,06/11/2013,109.79
Bath & North East Somerset Council,80274964,LM6,Nursing Care,P03,Wellbeing,BARKER CHEMICALS LTD T/A ST TERESA'S NH,06/11/2013,109.79
Bath & North East Somerset Council,80274964,LM6,Nursing Care,P03,Wellbeing,BARKER CHEMICALS LTD T/A ST TERESA'S NH,06/11/2013,109.79
Bath & North East Somerset Council,80274964,LM6,Nursing Care,P03,Wellbeing,BARKER CHEMICALS LTD T/A ST TERESA'S NH,06/11/2013,109.79
Bath & North East Somerset Council,80274964,LM6,Nursing Care,P03,Wellbeing,BARKER CHEMICALS LTD T/A ST TERESA'S NH,06/11/2013,109.79
Bath & North East Somerset Council,80274964,LM6,Nursing Care,P03,Wellbeing,BARKER CHEMICALS LTD T/A ST TERESA'S NH,06/11/2013,109.79
Bath & North East Somerset Council,80274964,LM6,Nursing Care,P03,Wellbeing,BARKER CHEMICALS LTD T/A ST TERESA'S NH,06/11/2013,109.79
Bath & North East Somerset Council,80274964,LM6,Nursing Care,P03,Wellbeing,BARKER CHEMICALS LTD T/A ST TERESA'S NH,06/11/2013,109.79
Bath & North East Somerset Council,80274964,LM6,Nursing Care,P03,Wellbeing,BARKER CHEMICALS LTD T/A ST TERESA'S NH,06/11/2013,109.79
Bath & North East Somerset Council,80274964,LM6,Nursing Care,P03,Wellbeing,BARKER CHEMICALS LTD T/A ST TERESA'S NH,06/11/2013,109.79
Bath & North East Somerset Council,80274964,LM6,Nursing Care,P03,Wellbeing,BARKER CHEMICALS LTD T/A ST TERESA'S NH,06/11/2013,109.79
Bath & North East Somerset Council,80274964,LM6,Nursing Care,P03,Wellbeing,BARKER CHEMICALS LTD T/A ST TERESA'S NH,06/11/2013,109.79
Bath & North East Somerset Council,80274964,LM6,Nursing Care,P03,Wellbeing,BARKER CHEMICALS LTD T/A ST TERESA'S NH,06/11/2013,109.79
Bath & North East Somerset Council,80274964,LM6,Nursing Care,P03,Wellbeing,BARKER CHEMICALS LTD T/A ST TERESA'S NH,06/11/2013,109.79
Bath & North East Somerset Council,80274964,LM6,Nursing Care,P03,Wellbeing,BARKER CHEMICALS LTD T/A ST TERESA'S NH,06/11/2013,109.79
Bath & North East Somerset Council,80274964,LM6,Nursing Care,P03,Wellbeing,BARKER CHEMICALS LTD T/A ST TERESA'S NH,06/11/2013,109.79
Bath & North East Somerset Council,80274964,LM6,Nursing Care,P03,Wellbeing,BARKER CHEMICALS LTD T/A ST TERESA'S NH,06/11/2013,109.79
Bath & North East Somerset Council,80274964,LM6,Nursing Care,P03,Wellbeing,BARKER CHEMICALS LTD T/A ST TERESA'S NH,06/11/2013,109.79
Bath & North East Somerset Council,80274964,LM6,Nursing Care,P03,Wellbeing,BARKER CHEMICALS LTD T/A ST TERESA'S NH,06/11/2013,109.79
Bath & North East Somerset Council,80274964,LM6,Nursing Care,P03,Wellbeing,BARKER CHEMICALS LTD T/A ST TERESA'S NH,06/11/2013,109.79
Bath & North East Somerset Council,80274964,LM6,Nursing Care,P03,Wellbeing,BARKER CHEMICALS LTD T/A ST TERESA'S NH,06/11/2013,109.79
Bath & North East Somerset Council,80274964,LM6,Nursing Care,P03,Wellbeing,BARKER CHEMICALS LTD T/A ST TERESA'S NH,06/11/2013,109.79
Bath & North East Somerset Council,80274964,LM6,Nursing Care,P03,Wellbeing,BARKER CHEMICALS LTD T/A ST TERESA'S NH,06/11/2013,109.79
Bath & North East Somerset Council,80274964,LM6,Nursing Care,P03,Wellbeing,BARKER CHEMICALS LTD T/A ST TERESA'S NH,06/11/2013,109.79
Bath & North East Somerset Council,80274964,LM6,Nursing Care,P03,Wellbeing,BARKER CHEMICALS LTD T/A ST TERESA'S NH,06/11/2013,109.79
Bath & North East Somerset Council,80274964,LM6,Nursing Care,P03,Wellbeing,BARKER CHEMICALS LTD T/A ST TERESA'S NH,06/11/2013,109.79
Bath & North East Somerset Council,80274964,LM6,Nursing Care,P03,Wellbeing,BARKER CHEMICALS LTD T/A ST TERESA'S NH,06/11/2013,109.79
Bath & North East Somerset Council,80274964,LM6,Nursing Care,P03,Wellbeing,BARKER CHEMICALS LTD T/A ST TERESA'S NH,06/11/2013,109.79
Bath & North East Somerset Council,80274964,LM6,Nursing Care,P03,Wellbeing,BARKER CHEMICALS LTD T/A ST TERESA'S NH,06/11/2013,109.79
